Workbook

Sheet Validation (hidden)
A1: =IF(MYP!#REF!=NoSaveAfterMacro,TRUE,FALSE) ->  | B1: After running the "Prepare Workbook for External Distribution" macro, data cannot be saved to Vena. Save to box and continue working there.
A2: =ISREF(INDIRECT("'MYP'"&"!A1")) -> TRUE | B2: One or more template sheets have been deleted from the workbook. Save to box and continue working there.
A3: =ISREF(INDIRECT("'MYP-Multisite'"&"!A1")) -> FALSE | B3: One or more template sheets have been deleted from the workbook. Save to box and continue working there.
A4: =ISREF(INDIRECT("'Cash Flow'"&"!A1")) -> TRUE | B4: One or more template sheets have been deleted from the workbook. Save to box and continue working there.
A5: =ISREF(INDIRECT("'Payroll'"&"!A1")) -> TRUE | B5: One or more template sheets have been deleted from the workbook. Save to box and continue working there.
A6: =ISREF(INDIRECT("'Rates'"&"!A1")) -> FALSE | B6: One or more template sheets have been deleted from the workbook. Save to box and continue working there.
A7: =ISREF(INDIRECT("'Graphs'"&"!A1")) -> FALSE | B7: One or more template sheets have been deleted from the workbook. Save to box and continue working there.

Sheet MYP
A1: ARISE High School
A2: Multi-year Projection
A3: As of Apr FY2022
C5: Start-up Year | D5: Year 1 | E5: Year 2 | F5: Year 3 | G5: Year 4
D6: 2021-22 | E6: 2022-23 | F6: 2023-24 | G6: 2024-25
A10: SUMMARY
A11: Revenue
B12: LCFF Entitlement | C12: =+C108 -> 0 | D12: =+D108 -> 4764963 | E12: 5679404 | F12: 5984514 | G12: 6225107
B13: Federal Revenue | C13: =+C127 -> 0 | D13: =+D127 -> 699382.57 | E13: 670699.3949 | F13: 676072.0478 | G13: 261348.3065
B14: Other State Revenues | C14: =+C154 -> 0 | D14: =+D154 -> 1335825.507 | E14: 1568852.837 | F14: 1103250.102 | G14: 1017119.29
B15: Local Revenues | C15: =+C236 -> 0 | D15: =+D236 -> 737712.46 | E15: 724745.46 | F15: 724745.46 | G15: 724745.46
B16: Fundraising and Grants | C16: =+C256 -> 0 | D16: =+D256 -> 25441 | E16: 236000 | F16: 25000 | G16: 25000
B17: Total Revenue | C17: =SUM(C12:C16) -> 0 | D17: =SUM(D12:D16) -> 7563324.537 | E17: 8879701.692 | F17: 8513581.61 | G17: 8253320.056
A19: Expenses
B20: Compensation and Benefits | C20: =C313+C375+C388 -> 0 | D20: 5161386.86 | E20: 5768418.77 | F20: 5656942.75 | G20: 5702406.071
B21: Books and Supplies | C21: =C451 -> 0 | D21: =D451 -> 527174.11 | E21: 348660.2 | F21: 355633.404 | G21: 362746.0721
B22: Services and Other Operating Expenditures | C22: =C577 -> 0 | D22: =D577 -> 2003803.838 | E22: 2433377.147 | F22: 2099693.616 | G22: 2079779.744
B23: Depreciation | C23: =C580 -> 0 | D23: =D581 -> 45026.38027 | E23: 40176.85396 | F23: 36849.77096 | G23: 35834.61149
B24: Other Outflows | C24: =C597+C581 -> 0 | D24: =D597 -> 49606.33 | E24: 39916.59 | F24: 41950.42273 | G24: 35308.92586
B25: Total Expenses | C25: =SUM(C20:C24) -> 0 | D25: =SUM(D20:D24) -> 7786997.519 | E25: 8630549.561 | F25: 8191069.963 | G25: 8216075.424
A27: Operating Income | C27: =C17-C25 -> 0 | D27: =D17-D25 -> -223672.9816 | E27: 249152.1308 | F27: 322511.647 | G27: 37244.63179
A29: Fund Balance
B30: Beginning Balance (Unaudited) | C30: 0 | D30: 2124854.79 | E30: =D35 -> 1878187.808 | F30: =E35 -> 2127339.939 | G30: 2449851.586
B31: Audit Adjustment | D31: -22994
B32: Beginning Balance (Audited) | C32: =SUM(C30:C31) -> 0 | D32: =SUM(D30:D31) -> 2101860.79 | E32: 1878187.808 | F32: 2127339.939 | G32: 2449851.586
B33: Operating Income | C33: =+C27 -> 0 | D33: =+D27 -> -223672.9816 | E33: 249152.1308 | F33: 322511.647 | G33: 37244.63179
A35: Ending Fund Balance | C35: =C32+C33 -> 0 | D35: =D32+D33 -> 1878187.808 | E35: 2127339.939 | F35: 2449851.586 | G35: 2487096.218
A37: Total Revenue Per ADA | D37: =IFERROR(D17/D$78,"") -> 20894.31609 | E37: 22656.9241 | F37: 21722.75365 | G37: 21058.68559
A38: Total Expenses Per ADA | D38: =IFERROR(D25/D$78,"") -> 21512.23139 | E38: 22021.20219 | F38: 20899.85192 | G38: 20963.65438
A39: Operating Income Per ADA | D39: =IFERROR(D27/D$78,"") -> -617.9153035 | E39: 635.7219096 | F39: 822.9017326 | G39: 95.03120993
A40: Fund Balance as a % of Expenses | C40: =IFERROR(C35/C25,"") ->  | D40: 0.2411953778 | E40: 0.2464895108 | F40: 0.2990881042 | G40: 0.3027109769
A42: Key Assumptions
A44: Enrollment Breakdown
B45: TK | D45: 0 | E45: 0 | F45: 0 | G45: 0
B46: K | D46: 0 | E46: 0 | F46: 0 | G46: 0
B47: 1 | D47: 0 | E47: 0 | F47: 0 | G47: 0
B48: 2 | D48: 0 | E48: 0 | F48: 0 | G48: 0
B49: 3 | D49: 0 | E49: 0 | F49: 0 | G49: 0
B50: 4 | D50: 0 | E50: 0 | F50: 0 | G50: 0
B51: 5 | D51: 0 | E51: 0 | F51: 0 | G51: 0
B52: 6 | D52: 0 | E52: 0 | F52: 0 | G52: 0
B53: 7 | D53: 0 | E53: 0 | F53: 0 | G53: 0
B54: 8 | D54: 0 | E54: 0 | F54: 0 | G54: 0
B55: 9 | D55: 120 | E55: 120 | F55: 120 | G55: 120
B56: 10 | D56: 110 | E56: 118 | F56: 118 | G56: 118
B57: 11 | D57: 95 | E57: 108 | F57: 108 | G57: 108
B58: 12 | D58: 75 | E58: 80 | F58: 80 | G58: 80
A59: Enrollment Summary
B60: K-3 | D60: =SUM(D45:D49) -> 0 | E60: 0 | F60: 0 | G60: 0
B61: 4-6 | D61: =SUM(D50:D52) -> 0 | E61: 0 | F61: 0 | G61: 0
B62: 7-8 | D62: =SUM(D53:D54) -> 0 | E62: 0 | F62: 0 | G62: 0
B63: 9-12 | D63: =SUM(D55:D58) -> 400 | E63: 426 | F63: 426 | G63: 426
B64: Total Enrolled | D64: =SUM(D60:D63) -> 400 | E64: 426 | F64: 426 | G64: 426
A66: ADA %
B67: K-3 | C67: =IFERROR(C74/C60,"") ->  | D67: =IFERROR(D74/D60,"") -> 
B68: 4-6 | C68: =IFERROR(C75/C61,"") -> 
B69: 7-8 | C69: =IFERROR(C76/C62,"") -> 
B70: 9-12 | C70: =IFERROR(C77/C63,"") ->  | D70: 0.90495 | E70: 0.92 | F70: 0.92 | G70: 0.92
B71: Average ADA % | C71: =IFERROR(C78/C64,"") ->  | D71: 0.90495 | E71: 0.92 | F71: 0.92 | G71: 0.92
A73: ADA
B74: K-3 | D74: 0 | E74: 0 | F74: 0 | G74: 0
B75: 4-6 | D75: 0 | E75: 0 | F75: 0 | G75: 0
B76: 7-8 | D76: 0 | E76: 0 | F76: 0 | G76: 0
B77: 9-12 | D77: 361.98 | E77: 391.92 | F77: 391.92 | G77: 391.92
B78: Total ADA | D78: 361.98 | E78: 391.92 | F78: 391.92 | G78: 391.92
A80: Demographic Information
B81: CALPADS Enrollment (for unduplicated % calc) | D81: 400 | E81: 426 | F81: 426 | G81: 426
B82: # Unduplicated (CALPADS) | D82: 353 | E82: 376 | F82: 376 | G82: 376
B83: # Free & Reduced Lunch (CALPADS) | D83: 341 | E83: 363 | F83: 363 | G83: 363
B84: # ELL (CALPADS) | D84: 84 | E84: 89 | F84: 89 | G84: 89
B85: New Students | D85: 13 | E85: 26 | F85: 0 | G85: 0
A87: School Information
B88: FTE's | D88: 49.75058814 | E88: 51.525 | F88: 51.525 | G88: 51.525
B89: Teachers | D89: 26.89614695 | E89: 28.15 | F89: 28.15 | G89: 28.15
B90: Certificated Pay Increases | D90: 0.03 | E90: 0.03 | F90: 0.03 | G90: 0.03
B91: Classified Pay Increases | D91: 0.03 | E91: 0.03 | F91: 0.03 | G91: 0.03
B92: # of school days | D92: 0 | E92: 0 | F92: 0 | G92: 0
B93: Default Expense Inflation Rate | E93: 0.02 | F93: 0.02 | G93: 0.02
A96: REVENUE
A98: LCFF Entitlement
A100: 8000 | B100: Revenue
A101: 8010 | B101: Principal Apportionment
A102: 8011 | B102: Charter Schools General Purpose Entitlement - State Aid | D102: 2526117 | E102: 3255379 | F102: 3560489 | G102: 3801082
A103: 8012 | B103: Education Protection Account Entitlement | D103: 1212994.68 | E103: 1313323.72 | F103: 1313323.72 | G103: 1313323.72
A104: 8018 | B104: Advance Apportionment (clearing acct-shld be zero at yr end
A105: 8019 | B105: State Aid - Prior Years | D105: 0 | E105: 0 | F105: 0 | G105: 0
A106: 8096 | B106: Charter Schools in Lieu of Property Taxes | D106: 1025851.32 | E106: 1110701.28 | F106: 1110701.28 | G106: 1110701.28
B108: SUBTOTAL - LCFF Entitlement | C108: =SUM(C99:C107) -> 0 | D108: 4764963 | E108: 5679404 | F108: 5984514 | G108: 6225107
A110: Federal Revenue
A112: 8100 | B112: Federal Revenue
A113: 8181 | B113: Special Education - Entitlement | D113: 54029.07 | E113: 55844 | F113: 59473.86 | G113: 59473.86
A114: 8182 | B114: Special Education Reimbursement | D114: 0 | E114: 0 | F114: 0 | G114: 0
A115: 8220 | B115: Child Nutrition Programs | D115: 36720 | E115: 22414.64488 | F115: 22862.93778 | G115: 23320.19654
A116: 8290 | B116: No Child Left Behind | D116: 0 | E116: 0 | F116: 0 | G116: 0
A117: 8291 | B117: Title I | D117: 139873 | E117: 139873 | F117: 139873 | G117: 139873
A118: 8292 | B118: Title II | D118: 19417.5 | E118: 20064.75 | F118: 21359.25 | G118: 21359.25
A119: 8293 | B119: Title III | D119: 7322 | E119: 7322 | F119: 7322 | G119: 7322
A120: 8294 | B120: Title IV | D120: 10000 | E120: 10000 | F120: 10000 | G120: 10000
A121: 8295 | B121: Title V | D121: 0 | E121: 0 | F121: 0 | G121: 0
A122: 8296 | B122: Other Federal Revenue | D122: 0 | E122: 0 | F122: 0 | G122: 0
A123: 8297 | B123: PY Federal - Not Accrued | D123: -5160 | E123: 0 | F123: 0 | G123: 0
A124: 8298 | B124: Implementation Grant | D124: 0 | E124: 0 | F124: 0 | G124: 0
A125: 8299 | B125: All Other Federal Revenue | C125: 0 | D125: 437181 | E125: 415181 | F125: 415181 | G125: 0
B127: SUBTOTAL - Federal Revenue | C127: =SUM(C111:C126) -> 0 | D127: 699382.57 | E127: 670699.3949 | F127: 676072.0478 | G127: 261348.3065
A129: Other State Revenue
A131: 8300 | B131: Other State Revenues
A132: 8311 | B132: Other State Apportionments - Current Year | D132: 0 | E132: 0 | F132: 0 | G132: 0
A133: 8319 | B133: Other State Apportionments - Prior Years | D133: 960 | E133: 0 | F133: 0 | G133: 0
A134: 8380 | B134: Special Ed | D134: 0 | E134: 0 | F134: 0 | G134: 0
A135: 8381 | B135: Special Education - Entitlement (State | D135: 258815.7 | E135: 321374.4 | F135: 321374.4 | G135: 321374.4
A136: 8382 | B136: Special Education Reimbursement (State | C136: 0 | D136: 84412 | E136: 50400 | F136: 50400 | G136: 50400
A137: 8434 | B137: Class Size Reduction, Grades K-3
A138: 8480 | B138: Charter Schools Categorical Block (DO NOT USE; USE 8592
A139: 8520 | B139: Child Nutrition - State | C139: 0 | D139: 2700 | E139: 2700 | F139: 2700 | G139: 2700
A140: 8545 | B140: School Facilities Apportionments | D140: 410282.6112 | E140: 463068.0908 | F140: 487981.1541 | G140: 507597.9965
A141: 8550 | B141: Mandated Cost Reimbursements | D141: 17399.408 | E141: 18453.7404 | F141: 21053.9424 | G141: 21716.2872
A142: 8560 | B142: State Lottery Revenue | D142: 86200.78782 | E142: 93330.60601 | F142: 93330.60601 | G142: 93330.60601
A143: 8590 | B143: All Other State Revenue | D143: 475055 | E143: 619526 | F143: 126410 | G143: 20000
A144: 8591 | B144: Supplemental Hourly Revenue
A145: 8592 | B145: Categorical Block Grant
A146: 8593 | B146: Other State Revenue 3 | D146: 0 | E146: 0 | F146: 0 | G146: 0
A147: 8594 | B147: Other State Revenue 4 | D147: 0 | E147: 0 | F147: 0 | G147: 0
A148: 8595 | B148: Other State Revenue 5 | D148: 0 | E148: 0 | F148: 0 | G148: 0
A149: 8596 | B149: Other State Revenue 6 | D149: 0 | E149: 0 | F149: 0 | G149: 0
A150: 8597 | B150: Other State Revenue 7 | D150: 0 | E150: 0 | F150: 0 | G150: 0
A151: 8598 | B151: Other State Revenue 8 | D151: 0 | E151: 0 | F151: 0 | G151: 0
A152: 8599 | B152: Other State Revenue 9 | D152: 0 | E152: 0 | F152: 0 | G152: 0
B154: SUBTOTAL - Other State Revenue | C154: =SUM(C130:C153) -> 0 | D154: 1335825.507 | E154: 1568852.837 | F154: 1103250.102 | G154: 1017119.29
A156: Local Revenue
A158: 8600 | B158: Other Local Revenue
A159: 8631 | B159: Sales | D159: 0 | E159: 0 | F159: 0 | G159: 0
A160: 8632 | B160: Sale of Publications | D160: 0 | E160: 0 | F160: 0 | G160: 0
A161: 8634 | B161: Food Service Sales | D161: 0 | E161: 0 | F161: 0 | G161: 0
A162: 8636 | B162: Uniforms | D162: 0 | E162: 0 | F162: 0 | G162: 0
A163: 8638 | B163: Merchandise Sales | D163: 0 | E163: 0 | F163: 0 | G163: 0
A164: 8639 | B164: All Other Sales | D164: 0 | E164: 0 | F164: 0 | G164: 0
A165: 8650 | B165: Leases and Rentals | D165: 3450 | E165: 3450 | F165: 3450 | G165: 3450
A166: 8660 | B166: Interest | D166: 360 | E166: 360 | F166: 360 | G166: 360
A167: 8661 | B167: Interest - Temporarily Restricted | D167: 0 | E167: 0 | F167: 0 | G167: 0
A168: 8662 | B168: Net Increase (Decrease | D168: 0 | E168: 0 | F168: 0 | G168: 0
A169: 8670 | B169: Fees and Contracts | D169: 0 | E169: 0 | F169: 0 | G169: 0
A170: 8671 | B170: Adult Education Fees | D170: 0 | E170: 0 | F170: 0 | G170: 0
A171: 8672 | B171: Pre School Revenue | D171: 0 | E171: 0 | F171: 0 | G171: 0
A172: 8673 | B172: Child Development Parent Fees | D172: 0 | E172: 0 | F172: 0 | G172: 0
A173: 8675 | B173: Transportation Fees from Individuals | D173: 0 | E173: 0 | F173: 0 | G173: 0
A174: 8676 | B174: After School Program Revenue | D174: 0 | E174: 0 | F174: 0 | G174: 0
A175: 8678 | B175: Parking Fees | D175: 0 | E175: 0 | F175: 0 | G175: 0
A176: 8681 | B176: Fees & Contracts 1 | D176: 0 | E176: 0 | F176: 0 | G176: 0
A177: 8682 | B177: Fees & Contracts 2 | D177: 0 | E177: 0 | F177: 0 | G177: 0
A178: 8683 | B178: Fees & Contracts 3 | D178: 0 | E178: 0 | F178: 0 | G178: 0
A179: 8684 | B179: Fees & Contracts 4 | D179: 0 | E179: 0 | F179: 0 | G179: 0
A180: 8685 | B180: Fees & Contracts 5 | D180: 0 | E180: 0 | F180: 0 | G180: 0
A181: 8686 | B181: Fees & Contracts 6 | D181: 0 | E181: 0 | F181: 0 | G181: 0
A182: 8687 | B182: Fees & Contracts 7 | D182: 0 | E182: 0 | F182: 0 | G182: 0
A183: 8688 | B183: Fees & Contracts 8 | D183: 0 | E183: 0 | F183: 0 | G183: 0
A184: 8689 | B184: All Other Fees and Contracts | D184: 0 | E184: 0 | F184: 0 | G184: 0
A185: 8690 | B185: Other Local Revenue | D185: 0 | E185: 0 | F185: 0 | G185: 0
A186: 8693 | B186: Field Trips | D186: 0 | E186: 0 | F186: 0 | G186: 0
A187: 8697 | B187: Pass through revenue from local sources | D187: 0 | E187: 0 | F187: 0 | G187: 0
A188: 8699 | B188: All Other Local Revenue | C188: 0 | D188: 123777.46 | E188: 110810.46 | F188: 110810.46 | G188: 110810.46
A189: 8701 | B189: Measure N | D189: 422625 | E189: 422625 | F189: 422625 | G189: 422625
A190: 8702 | B190: CTEIG | D190: 187500 | E190: 187500 | F190: 187500 | G190: 187500
A191: 8703 | B191: Revenue Program 3 | D191: 0 | E191: 0 | F191: 0 | G191: 0
A192: 8704 | B192: Revenue Program 4 | D192: 0 | E192: 0 | F192: 0 | G192: 0
A193: 8705 | B193: Revenue Program 5 | D193: 0 | E193: 0 | F193: 0 | G193: 0
A194: 8706 | B194: Revenue Program 6 | D194: 0 | E194: 0 | F194: 0 | G194: 0
A195: 8707 | B195: Revenue Program 7 | D195: 0 | E195: 0 | F195: 0 | G195: 0
A196: 8708 | B196: Revenue Program 8 | D196: 0 | E196: 0 | F196: 0 | G196: 0
A197: 8709 | B197: Revenue Program 9 | D197: 0 | E197: 0 | F197: 0 | G197: 0
A198: 8711 | B198: Revenue Program 11 | D198: 0 | E198: 0 | F198: 0 | G198: 0
A199: 8712 | B199: Revenue Program 12 | D199: 0 | E199: 0 | F199: 0 | G199: 0
A200: 8713 | B200: Revenue Program 13 | D200: 0 | E200: 0 | F200: 0 | G200: 0
A201: 8714 | B201: Revenue Program 14 | D201: 0 | E201: 0 | F201: 0 | G201: 0
A202: 8715 | B202: Revenue Program 15 | D202: 0 | E202: 0 | F202: 0 | G202: 0
A203: 8716 | B203: Revenue Program 16 | D203: 0 | E203: 0 | F203: 0 | G203: 0
A204: 8717 | B204: Revenue Program 17 | D204: 0 | E204: 0 | F204: 0 | G204: 0
A205: 8718 | B205: Revenue Program 18 | D205: 0 | E205: 0 | F205: 0 | G205: 0
A206: 8719 | B206: Revenue Program 19 | D206: 0 | E206: 0 | F206: 0 | G206: 0
A207: 8720 | B207: Revenue Program 20 | D207: 0 | E207: 0 | F207: 0 | G207: 0
A208: 8721 | B208: CMO Fees Revenue | D208: 0 | E208: 0 | F208: 0 | G208: 0
A209: 8722 | B209: Revenue Program 22 | D209: 0 | E209: 0 | F209: 0 | G209: 0
A210: 8723 | B210: Revenue Program 23 | D210: 0 | E210: 0 | F210: 0 | G210: 0
A211: 8724 | B211: Revenue Program 24 | D211: 0 | E211: 0 | F211: 0 | G211: 0
A212: 8725 | B212: Revenue Program 25 | D212: 0 | E212: 0 | F212: 0 | G212: 0
A213: 8726 | B213: Revenue Program 26 | D213: 0 | E213: 0 | F213: 0 | G213: 0
A214: 8727 | B214: Revenue Program 27 | D214: 0 | E214: 0 | F214: 0 | G214: 0
A215: 8728 | B215: Revenue Program 28 | D215: 0 | E215: 0 | F215: 0 | G215: 0
A216: 8729 | B216: Revenue Program 29 | D216: 0 | E216: 0 | F216: 0 | G216: 0
A217: 8730 | B217: Revenue Program 30 | D217: 0 | E217: 0 | F217: 0 | G217: 0
A218: 8731 | B218: Revenue Program 31 | D218: 0 | E218: 0 | F218: 0 | G218: 0
A219: 8732 | B219: Revenue Program 32 | D219: 0 | E219: 0 | F219: 0 | G219: 0
A220: 8733 | B220: Revenue Program 33 | D220: 0 | E220: 0 | F220: 0 | G220: 0
A221: 8734 | B221: Revenue Program 34 | D221: 0 | E221: 0 | F221: 0 | G221: 0
A222: 8735 | B222: Revenue Program 35 | D222: 0 | E222: 0 | F222: 0 | G222: 0
A223: 8736 | B223: Revenue Program 36 | D223: 0 | E223: 0 | F223: 0 | G223: 0
A224: 8737 | B224: Revenue Program 37 | D224: 0 | E224: 0 | F224: 0 | G224: 0
A225: 8738 | B225: Revenue Program 38 | D225: 0 | E225: 0 | F225: 0 | G225: 0
A226: 8739 | B226: Revenue Program 39 | D226: 0 | E226: 0 | F226: 0 | G226: 0
A227: 8740 | B227: Revenue Program 40 | D227: 0 | E227: 0 | F227: 0 | G227: 0
A228: 8741 | B228: Revenue Program 41 | D228: 0 | E228: 0 | F228: 0 | G228: 0
... 345 more rows

Sheet Cash Flow
A1: ARISE High School
A2: Monthly Cash Forecast
A3: As of Apr FY2022
C5: 2021-22 | Q5: 2022-23
C6: Actuals & Forecast | Q6: Actuals & Forecast
C7: Jul | D7: Aug | E7: Sep | F7: Oct | G7: Nov | H7: Dec | I7: Jan | J7: Feb | K7: Mar | L7: Apr | M7: May | N7: Jun | O7: Forecast | P7: Remaining | Q7: Jul | R7: Aug | S7: Sep | T7: Oct | U7: Nov | V7: Dec | W7: Jan | X7: Feb | Y7: Mar | Z7: Apr | AA7: May | AB7: Jun | AC7: Forecast | AD7: Remaining
C8: Actuals | D8: Actuals | E8: Actuals | F8: Actuals | G8: Actuals | H8: Actuals | I8: Actuals | J8: Actuals | K8: Actuals | L8: Actuals | M8: Forecast | N8: Forecast | P8: Balance | Q8: Forecast | R8: Forecast | S8: Forecast | T8: Forecast | U8: Forecast | V8: Forecast | W8: Forecast | X8: Forecast | Y8: Forecast | Z8: Forecast | AA8: Forecast | AB8: Forecast | AD8: Balance
A10: Beginning Cash | C10: 366989.31 | D10: =C570 -> 962604.07 | E10: =D570 -> 177235.22 | F10: =E570 -> 209074.97 | G10: =F570 -> 390042.63 | H10: =G570 -> 99409.77 | I10: =H570 -> -168425.35 | J10: =I570 -> 287036.51 | K10: =J570 -> 100299.17 | L10: =K570 -> 38238.14 | M10: =L570 -> 17400.32 | N10: =M570 -> 11002.96508 | Q10: =N570 -> 107795.3712 | R10: =Q570 -> 866592.3317 | S10: =R570 -> 717346.7385 | T10: =S570 -> 343565.4286 | U10: =T570 -> 461732.3657 | V10: =U570 -> 184947.9807 | W10: =V570 -> -9261.15073 | X10: =W570 -> -63516.78612 | Y10: =X570 -> -319843.2609 | Z10: =Y570 -> -178306.586 | AA10: =Z570 -> 94533.97987 | AB10: =AA570 -> 26347.47905
A12: REVENUE
A14: LCFF Entitlement
P15: =O15-SUM(C15:N15) -> 0 | AD15: =AC15-SUM(Q15:AB15) -> 0
A16: 8000 | B16: Revenue | C16: 0 | D16: 0 | E16: 0 | F16: 0 | G16: 0 | H16: 0 | I16: 0 | J16: 0 | K16: 0 | L16: 0 | M16: 0 | N16: 0 | P16: =O16-SUM(C16:N16) -> 0 | AD16: =AC16-SUM(Q16:AB16) -> 0
A17: 8010 | B17: Principal Apportionment | C17: 0 | D17: 0 | E17: 0 | F17: 0 | G17: 0 | H17: 0 | I17: 0 | J17: 0 | K17: 0 | L17: 0 | M17: 0 | N17: 0 | P17: 0 | AD17: 0
A18: 8011 | B18: Charter Schools General Purpose Entitlement - State Aid | C18: 0 | D18: 134238 | E18: 134238 | F18: 241629 | G18: 241629 | H18: 241629 | I18: 241629 | J18: 241629 | K18: 201710 | L18: 201710 | M18: 201710.5 | N18: 201710.25 | O18: 2526117 | P18: 242655.25 | Q18: 0 | R18: 150334.5186 | S18: 150334.5186 | T18: 270602.1334 | U18: 270602.1334 | V18: 270602.1334 | W18: 270602.1334 | X18: 270602.1334 | Y18: 320339.8591 | Z18: 320339.8591 | AA18: 320339.8591 | AB18: 320339.8591 | AC18: 3255379 | AD18: 320339.8591
A19: 8012 | B19: Education Protection Account Entitlement | C19: 0 | D19: 0 | E19: 0 | F19: 262400 | G19: 0 | H19: 0 | I19: 262400 | J19: 0 | K19: 0 | L19: 270708 | M19: 0 | N19: 0 | O19: 1212994.68 | P19: 417486.68 | Q19: 0 | R19: 0 | S19: 0 | T19: 303248.67 | U19: 0 | V19: 0 | W19: 303248.67 | X19: 0 | Y19: 0 | Z19: 378495.45 | AA19: 0 | AB19: 0 | AC19: 1313323.72 | AD19: 328330.93
A20: 8018 | B20: Advance Apportionment (clearing acct-shld be zero at yr end | C20: 0 | D20: 0 | E20: 0 | F20: 0 | G20: 0 | H20: 0 | I20: 0 | J20: 0 | K20: 0 | L20: 0 | M20: 0 | N20: 0 | P20: 0 | AD20: 0
A21: 8019 | B21: State Aid - Prior Years | C21: 0 | D21: 0 | E21: 0 | F21: 0 | G21: 0 | H21: -83 | I21: 0 | J21: 0 | K21: 0 | L21: 0 | M21: 83 | N21: 0 | O21: 0 | P21: 0 | Q21: 0 | R21: 0 | S21: 0 | T21: 0 | U21: 0 | V21: 0 | W21: 0 | X21: 0 | Y21: 0 | Z21: 0 | AA21: 0 | AB21: 0 | AC21: 0 | AD21: 0
A22: 8096 | B22: Charter Schools in Lieu of Property Taxes | C22: 0 | D22: 0 | E22: 0 | F22: 267989 | G22: 82458 | H22: 82458 | I22: 82458 | J22: 82458 | K22: 160195 | L22: 80097 | M22: 22635.18667 | N22: 65731.77667 | O22: 1025851.32 | P22: 99371.35667 | Q22: 0 | R22: 61551.0792 | S22: 123102.1584 | T22: 82068.1056 | U22: 82068.1056 | V22: 82068.1056 | W22: 82068.1056 | X22: 82068.1056 | Y22: 171902.5048 | Z22: 85951.2524 | AA22: 85951.2524 | AB22: 85951.2524 | AC22: 1110701.28 | AD22: 85951.2524
B24: LCFF Entitlement | C24: =SUM(C15:C23) -> 0 | D24: 134238 | E24: 134238 | F24: 772018 | G24: 324087 | H24: 324004 | I24: 586487 | J24: 324087 | K24: 361905 | L24: 552515 | M24: 224428.6867 | N24: 267442.0267 | O24: 4764963 | P24: 759513.2867 | Q24: 0 | R24: 211885.5978 | S24: 273436.677 | T24: 655918.909 | U24: 352670.239 | V24: 352670.239 | W24: 655918.909 | X24: 352670.239 | Y24: 492242.3639 | Z24: 784786.5615 | AA24: 406291.1115 | AB24: 406291.1115 | AC24: 5679404 | AD24: 734622.0415
A26: Federal Revenue
P27: =O27-SUM(C27:N27) -> 0 | AD27: =AC27-SUM(Q27:AB27) -> 0
A28: 8100 | B28: Federal Revenue | C28: 0 | D28: 0 | E28: 0 | F28: 0 | G28: 0 | H28: 0 | I28: 0 | J28: 0 | K28: 0 | L28: 0 | M28: 0 | N28: 0 | P28: =O28-SUM(C28:N28) -> 0 | AD28: =AC28-SUM(Q28:AB28) -> 0
A29: 8181 | B29: Special Education - Entitlement | C29: 0 | D29: 0 | E29: 0 | F29: 0 | G29: 0 | H29: 0 | I29: 0 | J29: 0 | K29: 0 | L29: 0 | M29: 0 | N29: 0 | O29: 54029.07 | P29: 54029.07 | Q29: 0 | R29: 0 | S29: 0 | T29: 0 | U29: 0 | V29: 0 | W29: 0 | X29: 0 | Y29: 0 | Z29: 0 | AA29: 0 | AB29: 0 | AC29: 55844 | AD29: 55844
A30: 8182 | B30: Special Education Reimbursement | C30: 0 | D30: 0 | E30: 0 | F30: 0 | G30: 0 | H30: 0 | I30: 0 | J30: 0 | K30: 0 | L30: 0 | M30: 0 | N30: 0 | O30: 0 | P30: 0 | Q30: 0 | R30: 0 | S30: 0 | T30: 0 | U30: 0 | V30: 0 | W30: 0 | X30: 0 | Y30: 0 | Z30: 0 | AA30: 0 | AB30: 0 | AC30: 0 | AD30: 0
A31: 8220 | B31: Child Nutrition Programs | C31: 0 | D31: 0 | E31: 0 | F31: 0 | G31: 0 | H31: 0 | I31: 12434.46 | J31: 7087.91 | K31: 2325.57 | L31: 9725.42 | M31: 3672 | N31: 3672 | O31: 36720 | P31: -2197.36 | Q31: 0 | R31: 0 | S31: 0 | T31: 0 | U31: 2241.464488 | V31: 2241.464488 | W31: 2241.464488 | X31: 2241.464488 | Y31: 2241.464488 | Z31: 2241.464488 | AA31: 2241.464488 | AB31: 2241.464488 | AC31: 22414.64488 | AD31: 4482.928977
A32: 8290 | B32: No Child Left Behind | C32: 0 | D32: 0 | E32: 0 | F32: 0 | G32: 0 | H32: 0 | I32: 0 | J32: 0 | K32: 0 | L32: 0 | M32: 0 | N32: 0 | O32: 0 | P32: 0 | Q32: 0 | R32: 0 | S32: 0 | T32: 0 | U32: 0 | V32: 0 | W32: 0 | X32: 0 | Y32: 0 | Z32: 0 | AA32: 0 | AB32: 0 | AC32: 0 | AD32: 0
A33: 8291 | B33: Title I | C33: 0 | D33: 0 | E33: 0 | F33: 35687 | G33: 0 | H33: 0 | I33: 66840 | J33: 0 | K33: 0 | L33: 0 | M33: 27287 | N33: 0 | O33: 139873 | P33: 10059 | Q33: 0 | R33: 0 | S33: 0 | T33: 0 | U33: 34968.25 | V33: 0 | W33: 0 | X33: 34968.25 | Y33: 0 | Z33: 0 | AA33: 34968.25 | AB33: 0 | AC33: 139873 | AD33: 34968.25
A34: 8292 | B34: Title II | C34: 0 | D34: 0 | E34: 0 | F34: 0 | G34: 0 | H34: 0 | I34: 0 | J34: 6088 | K34: 0 | L34: 0 | M34: 4854.375 | N34: 0 | O34: 19417.5 | P34: 8475.125 | Q34: 0 | R34: 0 | S34: 0 | T34: 0 | U34: 5016.1875 | V34: 0 | W34: 0 | X34: 5016.1875 | Y34: 0 | Z34: 0 | AA34: 5016.1875 | AB34: 0 | AC34: 20064.75 | AD34: 5016.1875
A35: 8293 | B35: Title III | C35: 0 | D35: 0 | E35: 0 | F35: 0 | G35: 0 | H35: 0 | I35: 0 | J35: 0 | K35: 0 | L35: 0 | M35: 1830.5 | N35: 0 | O35: 7322 | P35: 5491.5 | Q35: 0 | R35: 0 | S35: 0 | T35: 0 | U35: 1830.5 | V35: 0 | W35: 0 | X35: 1830.5 | Y35: 0 | Z35: 0 | AA35: 1830.5 | AB35: 0 | AC35: 7322 | AD35: 1830.5
A36: 8294 | B36: Title IV | C36: 0 | D36: 0 | E36: 0 | F36: 0 | G36: 0 | H36: 0 | I36: 0 | J36: 0 | K36: 0 | L36: 0 | M36: 2500 | N36: 0 | O36: 10000 | P36: 7500 | Q36: 0 | R36: 0 | S36: 0 | T36: 0 | U36: 2500 | V36: 0 | W36: 0 | X36: 2500 | Y36: 0 | Z36: 0 | AA36: 2500 | AB36: 0 | AC36: 10000 | AD36: 2500
A37: 8295 | B37: Title V | C37: 0 | D37: 0 | E37: 0 | F37: 0 | G37: 0 | H37: 0 | I37: 0 | J37: 0 | K37: 0 | L37: 0 | M37: 0 | N37: 0 | O37: 0 | P37: 0 | Q37: 0 | R37: 0 | S37: 0 | T37: 0 | U37: 0 | V37: 0 | W37: 0 | X37: 0 | Y37: 0 | Z37: 0 | AA37: 0 | AB37: 0 | AC37: 0 | AD37: 0
A38: 8296 | B38: Other Federal Revenue | C38: 0 | D38: 0 | E38: 0 | F38: 0 | G38: 0 | H38: 0 | I38: 0 | J38: 0 | K38: 0 | L38: 0 | M38: 0 | N38: 0 | O38: 0 | P38: 0 | Q38: 0 | R38: 0 | S38: 0 | T38: 0 | U38: 0 | V38: 0 | W38: 0 | X38: 0 | Y38: 0 | Z38: 0 | AA38: 0 | AB38: 0 | AC38: 0 | AD38: 0
A39: 8297 | B39: PY Federal - Not Accrued | C39: 0 | D39: 0 | E39: 0 | F39: 0 | G39: 193 | H39: 0 | I39: 0 | J39: 0 | K39: -5353 | L39: 0 | M39: 0 | N39: 0 | O39: -5160 | P39: 0 | Q39: 0 | R39: 0 | S39: 0 | T39: 0 | U39: 0 | V39: 0 | W39: 0 | X39: 0 | Y39: 0 | Z39: 0 | AA39: 0 | AB39: 0 | AC39: 0 | AD39: 0
A40: 8298 | B40: Implementation Grant | C40: 0 | D40: 0 | E40: 0 | F40: 0 | G40: 0 | H40: 0 | I40: 0 | J40: 0 | K40: 0 | L40: 0 | M40: 0 | N40: 0 | O40: 0 | P40: 0 | Q40: 0 | R40: 0 | S40: 0 | T40: 0 | U40: 0 | V40: 0 | W40: 0 | X40: 0 | Y40: 0 | Z40: 0 | AA40: 0 | AB40: 0 | AC40: 0 | AD40: 0
A41: 8299 | B41: All Other Federal Revenue | C41: 58449 | D41: 0 | E41: 0 | F41: 2 | G41: 0 | H41: 0 | I41: 1118 | J41: 14145 | K41: 103227 | L41: 0 | M41: 72000 | N41: 0 | O41: 437181 | P41: 188240 | Q41: 0 | R41: 0 | S41: 103795.25 | T41: 0 | U41: 0 | V41: 103795.25 | W41: 0 | X41: 0 | Y41: 103795.25 | Z41: 0 | AA41: 0 | AB41: 103795.25 | AC41: 415181 | AD41: 0
B43: Federal Revenue | C43: =SUM(C27:C42) -> 58449 | D43: 0 | E43: 0 | F43: 35689 | G43: 193 | H43: 0 | I43: 80392.46 | J43: 27320.91 | K43: 100199.57 | L43: 9725.42 | M43: 112143.875 | N43: 3672 | O43: 699382.57 | P43: 271597.335 | Q43: =SUM(Q27:Q42) -> 0 | R43: 0 | S43: 103795.25 | T43: 0 | U43: 46556.40199 | V43: 106036.7145 | W43: 2241.464488 | X43: 46556.40199 | Y43: 106036.7145 | Z43: 2241.464488 | AA43: 46556.40199 | AB43: 106036.7145 | AC43: 670699.3949 | AD43: 104641.8665
A45: Other State Revenue
P46: =O46-SUM(C46:N46) -> 0 | AD46: =AC46-SUM(Q46:AB46) -> 0
A47: 8300 | B47: Other State Revenues | C47: 0 | D47: 0 | E47: 0 | F47: 0 | G47: 0 | H47: 0 | I47: 0 | J47: 0 | K47: 0 | L47: 0 | M47: 0 | N47: 0 | P47: =O47-SUM(C47:N47) -> 0 | AD47: =AC47-SUM(Q47:AB47) -> 0
A48: 8311 | B48: Other State Apportionments - Current Year | C48: 0 | D48: 0 | E48: 0 | F48: 0 | G48: 0 | H48: 0 | I48: 0 | J48: 0 | K48: 0 | L48: 0 | M48: 0 | N48: 0 | O48: 0 | P48: 0 | Q48: 0 | R48: 0 | S48: 0 | T48: 0 | U48: 0 | V48: 0 | W48: 0 | X48: 0 | Y48: 0 | Z48: 0 | AA48: 0 | AB48: 0 | AC48: 0 | AD48: 0
A49: 8319 | B49: Other State Apportionments - Prior Years | C49: 959.99 | D49: 0 | E49: 0 | F49: 0 | G49: 0 | H49: 0 | I49: 0 | J49: 0 | K49: 0 | L49: 0 | M49: 0 | N49: 0 | O49: 960 | P49: 0.01 | Q49: 0 | R49: 0 | S49: 0 | T49: 0 | U49: 0 | V49: 0 | W49: 0 | X49: 0 | Y49: 0 | Z49: 0 | AA49: 0 | AB49: 0 | AC49: 0 | AD49: 0
A50: 8380 | B50: Special Ed | C50: 0 | D50: 0 | E50: 0 | F50: 0 | G50: 0 | H50: 0 | I50: 0 | J50: 0 | K50: 0 | L50: 0 | M50: 0 | N50: 0 | O50: 0 | P50: 0 | Q50: 0 | R50: 0 | S50: 0 | T50: 0 | U50: 0 | V50: 0 | W50: 0 | X50: 0 | Y50: 0 | Z50: 0 | AA50: 0 | AB50: 0 | AC50: 0 | AD50: 0
A51: 8381 | B51: Special Education - Entitlement (State | C51: 12540 | D51: 0 | E51: 0 | F51: 22571 | G51: 45142 | H51: 0 | I51: 22571 | J51: 22571 | K51: 53846 | L51: 20653 | M51: 32162.935 | N51: 26758.765 | O51: 258815.7 | P51: 0 | Q51: 12940.785 | R51: 12940.785 | S51: 23293.413 | T51: 23293.413 | U51: 23293.413 | V51: 23293.413 | W51: 23293.413 | X51: 35805.153 | Y51: 35805.153 | Z51: 35805.153 | AA51: 35805.153 | AB51: 35805.153 | AC51: 321374.4 | AD51: 0
A52: 8382 | B52: Special Education Reimbursement (State | C52: 0 | D52: 0 | E52: 0 | F52: 0 | G52: 0 | H52: 0 | I52: 21458 | J52: 7336 | K52: 25200 | L52: 6431 | M52: 0 | N52: 23987 | O52: 84412 | P52: 0 | Q52: 0 | R52: 0 | S52: 0 | T52: 0 | U52: 0 | V52: 0 | W52: 12811.96038 | X52: 4380.116571 | Y52: 15046.20196 | Z52: 3839.766858 | AA52: 0 | AB52: 14321.95422 | AC52: 50400 | AD52: 0
A53: 8434 | B53: Class Size Reduction, Grades K-3 | C53: 0 | D53: 0 | E53: 0 | F53: 0 | G53: 0 | H53: 0 | I53: 0 | J53: 0 | K53: 0 | L53: 0 | M53: 0 | N53: 0 | P53: 0 | AD53: 0
A54: 8480 | B54: Charter Schools Categorical Block (DO NOT USE; USE 8592 | C54: 0 | D54: 0 | E54: 0 | F54: 0 | G54: 0 | H54: 0 | I54: 0 | J54: 0 | K54: 0 | L54: 0 | M54: 0 | N54: 0 | P54: 0 | AD54: 0
A55: 8520 | B55: Child Nutrition - State | C55: 0 | D55: 0 | E55: 0 | F55: 0 | G55: 0 | H55: 0 | I55: 899.27 | J55: 497.38 | K55: 169.85 | L55: 685.89 | M55: 452.1026987 | N55: 282.0021051 | O55: 2700 | P55: -286.4948039 | Q55: 0 | R55: 0 | S55: 225 | T55: 225 | U55: 225 | V55: 225 | W55: 225 | X55: 225 | Y55: 225 | Z55: 225 | AA55: 225 | AB55: 225 | AC55: 2700 | AD55: 450
A56: 8545 | B56: School Facilities Apportionments | C56: 0 | D56: 0 | E56: 0 | F56: 0 | G56: 0 | H56: 0 | I56: 0 | J56: 0 | K56: 224039.2 | L56: 0 | M56: 112000 | N56: 0 | O56: 410282.6112 | P56: 74243.4112 | Q56: 0 | R56: 0 | S56: 0 | T56: 0 | U56: 0 | V56: 0 | W56: 0 | X56: 0 | Y56: 252863.2747 | Z56: 0 | AA56: 126409.5157 | AB56: 0 | AC56: 463068.0908 | AD56: 83795.30046
A57: 8550 | B57: Mandated Cost Reimbursements | C57: 0 | D57: 0 | E57: 0 | F57: 0 | G57: 0 | H57: 17399 | I57: 0 | J57: 0 | K57: 0 | L57: 0 | M57: 0.408 | N57: 0 | O57: 17399.408 | P57: 0 | Q57: 0 | R57: 0 | S57: 0 | T57: 0 | U57: 0 | V57: 18453.7404 | W57: 0 | X57: 0 | Y57: 0 | Z57: 0 | AA57: 0 | AB57: 0 | AC57: 18453.7404 | AD57: 0
A58: 8560 | B58: State Lottery Revenue | C58: 0 | D58: 0 | E58: 0 | F58: 0 | G58: 0 | H58: 0 | I58: 26880.75 | J58: 0 | K58: 0 | L58: 23680.96 | M58: 0 | N58: 0 | O58: 86200.78782 | P58: 35639.07782 | Q58: 0 | R58: 0 | S58: 0 | T58: 0 | U58: 0 | V58: 0 | W58: 0 | X58: 21550.19696 | Y58: 0 | Z58: 0 | AA58: 21550.19696 | AB58: 0 | AC58: 93330.60601 | AD58: 50230.2121
A59: 8590 | B59: All Other State Revenue | C59: 0 | D59: 0 | E59: 0 | F59: 0 | G59: 0 | H59: 0 | I59: 38034 | J59: 0 | K59: 0 | L59: 0 | M59: 42098 | N59: 106409 | O59: 475055 | P59: 288514 | Q59: 126409 | R59: 0 | S59: 0 | T59: 0 | U59: 0 | V59: 0 | W59: 0 | X59: 0 | Y59: 0 | Z59: 0 | AA59: 0 | AB59: 493117 | AC59: 619526 | AD59: 0
A60: 8591 | B60: Supplemental Hourly Revenue | C60: 0 | D60: 0 | E60: 0 | F60: 0 | G60: 0 | H60: 0 | I60: 0 | J60: 0 | K60: 0 | L60: 0 | M60: 0 | N60: 0 | P60: 0 | Q60: 0 | R60: 0 | S60: 0 | T60: 0 | U60: 0 | V60: 0 | W60: 0 | X60: 0 | Y60: 0 | Z60: 0 | AA60: 0 | AB60: 0 | AD60: 0
A61: 8592 | B61: Categorical Block Grant | C61: 0 | D61: 0 | E61: 0 | F61: 0 | G61: 0 | H61: 0 | I61: 0 | J61: 0 | K61: 0 | L61: 0 | M61: 0 | N61: 0 | P61: 0 | Q61: 0 | R61: 0 | S61: 0 | T61: 0 | U61: 0 | V61: 0 | W61: 0 | X61: 0 | Y61: 0 | Z61: 0 | AA61: 0 | AB61: 0 | AD61: 0
A62: 8593 | B62: Other State Revenue 3 | C62: 0 | D62: 0 | E62: 0 | F62: 0 | G62: 0 | H62: 0 | I62: 0 | J62: 0 | K62: 0 | L62: 0 | M62: 0 | N62: 0 | O62: 0 | P62: 0 | Q62: 0 | R62: 0 | S62: 0 | T62: 0 | U62: 0 | V62: 0 | W62: 0 | X62: 0 | Y62: 0 | Z62: 0 | AA62: 0 | AB62: 0 | AC62: 0 | AD62: 0
A63: 8594 | B63: Other State Revenue 4 | C63: 0 | D63: 0 | E63: 0 | F63: 0 | G63: 0 | H63: 0 | I63: 0 | J63: 0 | K63: 0 | L63: 0 | M63: 0 | N63: 0 | O63: 0 | P63: 0 | Q63: 0 | R63: 0 | S63: 0 | T63: 0 | U63: 0 | V63: 0 | W63: 0 | X63: 0 | Y63: 0 | Z63: 0 | AA63: 0 | AB63: 0 | AC63: 0 | AD63: 0
A64: 8595 | B64: Other State Revenue 5 | C64: 0 | D64: 0 | E64: 0 | F64: 0 | G64: 0 | H64: 0 | I64: 0 | J64: 0 | K64: 0 | L64: 0 | M64: 0 | N64: 0 | O64: 0 | P64: 0 | Q64: 0 | R64: 0 | S64: 0 | T64: 0 | U64: 0 | V64: 0 | W64: 0 | X64: 0 | Y64: 0 | Z64: 0 | AA64: 0 | AB64: 0 | AC64: 0 | AD64: 0
A65: 8596 | B65: Other State Revenue 6 | C65: 0 | D65: 0 | E65: 0 | F65: 0 | G65: 0 | H65: 0 | I65: 0 | J65: 0 | K65: 0 | L65: 0 | M65: 0 | N65: 0 | O65: 0 | P65: 0 | Q65: 0 | R65: 0 | S65: 0 | T65: 0 | U65: 0 | V65: 0 | W65: 0 | X65: 0 | Y65: 0 | Z65: 0 | AA65: 0 | AB65: 0 | AC65: 0 | AD65: 0
A66: 8597 | B66: Other State Revenue 7 | C66: 0 | D66: 0 | E66: 0 | F66: 0 | G66: 0 | H66: 0 | I66: 0 | J66: 0 | K66: 0 | L66: 0 | M66: 0 | N66: 0 | O66: 0 | P66: 0 | Q66: 0 | R66: 0 | S66: 0 | T66: 0 | U66: 0 | V66: 0 | W66: 0 | X66: 0 | Y66: 0 | Z66: 0 | AA66: 0 | AB66: 0 | AC66: 0 | AD66: 0
A67: 8598 | B67: Other State Revenue 8 | C67: 0 | D67: 0 | E67: 0 | F67: 0 | G67: 0 | H67: 0 | I67: 0 | J67: 0 | K67: 0 | L67: 0 | M67: 0 | N67: 0 | O67: 0 | P67: 0 | Q67: 0 | R67: 0 | S67: 0 | T67: 0 | U67: 0 | V67: 0 | W67: 0 | X67: 0 | Y67: 0 | Z67: 0 | AA67: 0 | AB67: 0 | AC67: 0 | AD67: 0
A68: 8599 | B68: Other State Revenue 9 | C68: 0 | D68: 0 | E68: 0 | F68: 0 | G68: 0 | H68: 0 | I68: 0 | J68: 0 | K68: 0 | L68: 0 | M68: 0 | N68: 0 | O68: 0 | P68: 0 | Q68: 0 | R68: 0 | S68: 0 | T68: 0 | U68: 0 | V68: 0 | W68: 0 | X68: 0 | Y68: 0 | Z68: 0 | AA68: 0 | AB68: 0 | AC68: 0 | AD68: 0
B70: Other State Revenue | C70: =SUM(C46:C69) -> 13499.99 | D70: 0 | E70: 0 | F70: 22571 | G70: 45142 | H70: 17399 | I70: 109843.02 | J70: 30404.38 | K70: 303255.05 | L70: 51450.85 | M70: 186713.4457 | N70: 157436.7671 | O70: 1335825.507 | P70: 398110.0042 | Q70: =SUM(Q46:Q69) -> 139349.785 | R70: 12940.785 | S70: 23518.413 | T70: 23518.413 | U70: 23518.413 | V70: 41972.1534 | W70: 36330.37338 | X70: 61960.46653 | Y70: 303939.6296 | Z70: 39869.91986 | AA70: 183989.8656 | AB70: 543469.1072 | AC70: 1568852.837 | AD70: 134475.5126
A72: Other Local Revenue
P73: =O73-SUM(C73:N73) -> 0 | AD73: =AC73-SUM(Q73:AB73) -> 0
A74: 8600 | B74: Other Local Revenue | C74: 0 | D74: 0 | E74: 0 | F74: 0 | G74: 0 | H74: 0 | I74: 0 | J74: 0 | K74: 0 | L74: 0 | M74: 0 | N74: 0 | P74: =O74-SUM(C74:N74) -> 0 | AD74: =AC74-SUM(Q74:AB74) -> 0
A75: 8631 | B75: Sales | C75: 0 | D75: 0 | E75: 0 | F75: 0 | G75: 0 | H75: 0 | I75: 0 | J75: 0 | K75: 0 | L75: 0 | M75: 0 | N75: 0 | O75: 0 | P75: 0 | Q75: 0 | R75: 0 | S75: 0 | T75: 0 | U75: 0 | V75: 0 | W75: 0 | X75: 0 | Y75: 0 | Z75: 0 | AA75: 0 | AB75: 0 | AC75: 0 | AD75: 0
A76: 8632 | B76: Sale of Publications | C76: 0 | D76: 0 | E76: 0 | F76: 0 | G76: 0 | H76: 0 | I76: 0 | J76: 0 | K76: 0 | L76: 0 | M76: 0 | N76: 0 | O76: 0 | P76: 0 | Q76: 0 | R76: 0 | S76: 0 | T76: 0 | U76: 0 | V76: 0 | W76: 0 | X76: 0 | Y76: 0 | Z76: 0 | AA76: 0 | AB76: 0 | AC76: 0 | AD76: 0
A77: 8634 | B77: Food Service Sales | C77: 0 | D77: 0 | E77: 0 | F77: 0 | G77: 0 | H77: 0 | I77: 0 | J77: 0 | K77: 0 | L77: 0 | M77: 0 | N77: 0 | O77: 0 | P77: 0 | Q77: 0 | R77: 0 | S77: 0 | T77: 0 | U77: 0 | V77: 0 | W77: 0 | X77: 0 | Y77: 0 | Z77: 0 | AA77: 0 | AB77: 0 | AC77: 0 | AD77: 0
A78: 8636 | B78: Uniforms | C78: 0 | D78: 0 | E78: 0 | F78: 0 | G78: 0 | H78: 0 | I78: 0 | J78: 0 | K78: 0 | L78: 0 | M78: 0 | N78: 0 | O78: 0 | P78: 0 | Q78: 0 | R78: 0 | S78: 0 | T78: 0 | U78: 0 | V78: 0 | W78: 0 | X78: 0 | Y78: 0 | Z78: 0 | AA78: 0 | AB78: 0 | AC78: 0 | AD78: 0
A79: 8638 | B79: Merchandise Sales | C79: 0 | D79: 0 | E79: 0 | F79: 0 | G79: 0 | H79: 0 | I79: 0 | J79: 0 | K79: 0 | L79: 0 | M79: 0 | N79: 0 | O79: 0 | P79: 0 | Q79: 0 | R79: 0 | S79: 0 | T79: 0 | U79: 0 | V79: 0 | W79: 0 | X79: 0 | Y79: 0 | Z79: 0 | AA79: 0 | AB79: 0 | AC79: 0 | AD79: 0
A80: 8639 | B80: All Other Sales | C80: 0 | D80: 0 | E80: 0 | F80: 0 | G80: 0 | H80: 0 | I80: 0 | J80: 0 | K80: 0 | L80: 0 | M80: 0 | N80: 0 | O80: 0 | P80: 0 | Q80: 0 | R80: 0 | S80: 0 | T80: 0 | U80: 0 | V80: 0 | W80: 0 | X80: 0 | Y80: 0 | Z80: 0 | AA80: 0 | AB80: 0 | AC80: 0 | AD80: 0
A81: 8650 | B81: Leases and Rentals | C81: 0 | D81: 0 | E81: 0 | F81: 0 | G81: 0 | H81: 0 | I81: 0 | J81: 0 | K81: 0 | L81: 0 | M81: 2875 | N81: 575 | O81: 3450 | P81: 0 | Q81: 0 | R81: 0 | S81: 0 | T81: 0 | U81: 0 | V81: 0 | W81: 575 | X81: 575 | Y81: 575 | Z81: 575 | AA81: 575 | AB81: 575 | AC81: 3450 | AD81: 0
A82: 8660 | B82: Interest | C82: 0 | D82: 0 | E82: 0 | F82: 0 | G82: 0 | H82: 0 | I82: 0 | J82: 0 | K82: 0 | L82: 0 | M82: 180 | N82: 180 | O82: 360 | P82: 0 | Q82: 30 | R82: 30 | S82: 30 | T82: 30 | U82: 30 | V82: 30 | W82: 30 | X82: 30 | Y82: 30 | Z82: 30 | AA82: 30 | AB82: 30 | AC82: 360 | AD82: 0
A83: 8661 | B83: Interest - Temporarily Restricted | C83: 0 | D83: 0 | E83: 0 | F83: 0 | G83: 0 | H83: 0 | I83: 0 | J83: 0 | K83: 0 | L83: 0 | M83: 0 | N83: 0 | O83: 0 | P83: 0 | Q83: 0 | R83: 0 | S83: 0 | T83: 0 | U83: 0 | V83: 0 | W83: 0 | X83: 0 | Y83: 0 | Z83: 0 | AA83: 0 | AB83: 0 | AC83: 0 | AD83: 0
A84: 8662 | B84: Net Increase (Decrease | C84: 0 | D84: 0 | E84: 0 | F84: 0 | G84: 0 | H84: 0 | I84: 0 | J84: 0 | K84: 0 | L84: 0 | M84: 0 | N84: 0 | O84: 0 | P84: 0 | Q84: 0 | R84: 0 | S84: 0 | T84: 0 | U84: 0 | V84: 0 | W84: 0 | X84: 0 | Y84: 0 | Z84: 0 | AA84: 0 | AB84: 0 | AC84: 0 | AD84: 0
A85: 8670 | B85: Fees and Contracts | C85: 0 | D85: 0 | E85: 0 | F85: 0 | G85: 0 | H85: 0 | I85: 0 | J85: 0 | K85: 0 | L85: 0 | M85: 0 | N85: 0 | O85: 0 | P85: 0 | Q85: 0 | R85: 0 | S85: 0 | T85: 0 | U85: 0 | V85: 0 | W85: 0 | X85: 0 | Y85: 0 | Z85: 0 | AA85: 0 | AB85: 0 | AC85: 0 | AD85: 0
A86: 8671 | B86: Adult Education Fees | C86: 0 | D86: 0 | E86: 0 | F86: 0 | G86: 0 | H86: 0 | I86: 0 | J86: 0 | K86: 0 | L86: 0 | M86: 0 | N86: 0 | O86: 0 | P86: 0 | Q86: 0 | R86: 0 | S86: 0 | T86: 0 | U86: 0 | V86: 0 | W86: 0 | X86: 0 | Y86: 0 | Z86: 0 | AA86: 0 | AB86: 0 | AC86: 0 | AD86: 0
A87: 8672 | B87: Pre School Revenue | C87: 0 | D87: 0 | E87: 0 | F87: 0 | G87: 0 | H87: 0 | I87: 0 | J87: 0 | K87: 0 | L87: 0 | M87: 0 | N87: 0 | O87: 0 | P87: 0 | Q87: 0 | R87: 0 | S87: 0 | T87: 0 | U87: 0 | V87: 0 | W87: 0 | X87: 0 | Y87: 0 | Z87: 0 | AA87: 0 | AB87: 0 | AC87: 0 | AD87: 0
A88: 8673 | B88: Child Development Parent Fees | C88: 0 | D88: 0 | E88: 0 | F88: 0 | G88: 0 | H88: 0 | I88: 0 | J88: 0 | K88: 0 | L88: 0 | M88: 0 | N88: 0 | O88: 0 | P88: 0 | Q88: 0 | R88: 0 | S88: 0 | T88: 0 | U88: 0 | V88: 0 | W88: 0 | X88: 0 | Y88: 0 | Z88: 0 | AA88: 0 | AB88: 0 | AC88: 0 | AD88: 0
A89: 8675 | B89: Transportation Fees from Individuals | C89: 0 | D89: 0 | E89: 0 | F89: 0 | G89: 0 | H89: 0 | I89: 0 | J89: 0 | K89: 0 | L89: 0 | M89: 0 | N89: 0 | O89: 0 | P89: 0 | Q89: 0 | R89: 0 | S89: 0 | T89: 0 | U89: 0 | V89: 0 | W89: 0 | X89: 0 | Y89: 0 | Z89: 0 | AA89: 0 | AB89: 0 | AC89: 0 | AD89: 0
A90: 8676 | B90: After School Program Revenue | C90: 0 | D90: 0 | E90: 0 | F90: 0 | G90: 0 | H90: 0 | I90: 0 | J90: 0 | K90: 0 | L90: 0 | M90: 0 | N90: 0 | O90: 0 | P90: 0 | Q90: 0 | R90: 0 | S90: 0 | T90: 0 | U90: 0 | V90: 0 | W90: 0 | X90: 0 | Y90: 0 | Z90: 0 | AA90: 0 | AB90: 0 | AC90: 0 | AD90: 0
A91: 8678 | B91: Parking Fees | C91: 0 | D91: 0 | E91: 0 | F91: 0 | G91: 0 | H91: 0 | I91: 0 | J91: 0 | K91: 0 | L91: 0 | M91: 0 | N91: 0 | O91: 0 | P91: 0 | Q91: 0 | R91: 0 | S91: 0 | T91: 0 | U91: 0 | V91: 0 | W91: 0 | X91: 0 | Y91: 0 | Z91: 0 | AA91: 0 | AB91: 0 | AC91: 0 | AD91: 0
A92: 8681 | B92: Fees & Contracts 1 | C92: 0 | D92: 0 | E92: 0 | F92: 0 | G92: 0 | H92: 0 | I92: 0 | J92: 0 | K92: 0 | L92: 0 | M92: 0 | N92: 0 | O92: 0 | P92: 0 | Q92: 0 | R92: 0 | S92: 0 | T92: 0 | U92: 0 | V92: 0 | W92: 0 | X92: 0 | Y92: 0 | Z92: 0 | AA92: 0 | AB92: 0 | AC92: 0 | AD92: 0
A93: 8682 | B93: Fees & Contracts 2 | C93: 0 | D93: 0 | E93: 0 | F93: 0 | G93: 0 | H93: 0 | I93: 0 | J93: 0 | K93: 0 | L93: 0 | M93: 0 | N93: 0 | O93: 0 | P93: 0 | Q93: 0 | R93: 0 | S93: 0 | T93: 0 | U93: 0 | V93: 0 | W93: 0 | X93: 0 | Y93: 0 | Z93: 0 | AA93: 0 | AB93: 0 | AC93: 0 | AD93: 0
A94: 8683 | B94: Fees & Contracts 3 | C94: 0 | D94: 0 | E94: 0 | F94: 0 | G94: 0 | H94: 0 | I94: 0 | J94: 0 | K94: 0 | L94: 0 | M94: 0 | N94: 0 | O94: 0 | P94: 0 | Q94: 0 | R94: 0 | S94: 0 | T94: 0 | U94: 0 | V94: 0 | W94: 0 | X94: 0 | Y94: 0 | Z94: 0 | AA94: 0 | AB94: 0 | AC94: 0 | AD94: 0
A95: 8684 | B95: Fees & Contracts 4 | C95: 0 | D95: 0 | E95: 0 | F95: 0 | G95: 0 | H95: 0 | I95: 0 | J95: 0 | K95: 0 | L95: 0 | M95: 0 | N95: 0 | O95: 0 | P95: 0 | Q95: 0 | R95: 0 | S95: 0 | T95: 0 | U95: 0 | V95: 0 | W95: 0 | X95: 0 | Y95: 0 | Z95: 0 | AA95: 0 | AB95: 0 | AC95: 0 | AD95: 0
A96: 8685 | B96: Fees & Contracts 5 | C96: 0 | D96: 0 | E96: 0 | F96: 0 | G96: 0 | H96: 0 | I96: 0 | J96: 0 | K96: 0 | L96: 0 | M96: 0 | N96: 0 | O96: 0 | P96: 0 | Q96: 0 | R96: 0 | S96: 0 | T96: 0 | U96: 0 | V96: 0 | W96: 0 | X96: 0 | Y96: 0 | Z96: 0 | AA96: 0 | AB96: 0 | AC96: 0 | AD96: 0
A97: 8686 | B97: Fees & Contracts 6 | C97: 0 | D97: 0 | E97: 0 | F97: 0 | G97: 0 | H97: 0 | I97: 0 | J97: 0 | K97: 0 | L97: 0 | M97: 0 | N97: 0 | O97: 0 | P97: 0 | Q97: 0 | R97: 0 | S97: 0 | T97: 0 | U97: 0 | V97: 0 | W97: 0 | X97: 0 | Y97: 0 | Z97: 0 | AA97: 0 | AB97: 0 | AC97: 0 | AD97: 0
A98: 8687 | B98: Fees & Contracts 7 | C98: 0 | D98: 0 | E98: 0 | F98: 0 | G98: 0 | H98: 0 | I98: 0 | J98: 0 | K98: 0 | L98: 0 | M98: 0 | N98: 0 | O98: 0 | P98: 0 | Q98: 0 | R98: 0 | S98: 0 | T98: 0 | U98: 0 | V98: 0 | W98: 0 | X98: 0 | Y98: 0 | Z98: 0 | AA98: 0 | AB98: 0 | AC98: 0 | AD98: 0
A99: 8688 | B99: Fees & Contracts 8 | C99: 0 | D99: 0 | E99: 0 | F99: 0 | G99: 0 | H99: 0 | I99: 0 | J99: 0 | K99: 0 | L99: 0 | M99: 0 | N99: 0 | O99: 0 | P99: 0 | Q99: 0 | R99: 0 | S99: 0 | T99: 0 | U99: 0 | V99: 0 | W99: 0 | X99: 0 | Y99: 0 | Z99: 0 | AA99: 0 | AB99: 0 | AC99: 0 | AD99: 0
A100: 8689 | B100: All Other Fees and Contracts | C100: 0 | D100: 0 | E100: 0 | F100: 0 | G100: 0 | H100: 0 | I100: 0 | J100: 0 | K100: 0 | L100: 0 | M100: 0 | N100: 0 | O100: 0 | P100: 0 | Q100: 0 | R100: 0 | S100: 0 | T100: 0 | U100: 0 | V100: 0 | W100: 0 | X100: 0 | Y100: 0 | Z100: 0 | AA100: 0 | AB100: 0 | AC100: 0 | AD100: 0
A101: 8690 | B101: Other Local Revenue | C101: 0 | D101: 0 | E101: 0 | F101: 0 | G101: 0 | H101: 0 | I101: 0 | J101: 0 | K101: 0 | L101: 0 | M101: 0 | N101: 0 | O101: 0 | P101: 0 | Q101: 0 | R101: 0 | S101: 0 | T101: 0 | U101: 0 | V101: 0 | W101: 0 | X101: 0 | Y101: 0 | Z101: 0 | AA101: 0 | AB101: 0 | AC101: 0 | AD101: 0
A102: 8693 | B102: Field Trips | C102: 0 | D102: 0 | E102: 0 | F102: 0 | G102: 0 | H102: 0 | I102: 0 | J102: 0 | K102: 0 | L102: 0 | M102: 0 | N102: 0 | O102: 0 | P102: 0 | Q102: 0 | R102: 0 | S102: 0 | T102: 0 | U102: 0 | V102: 0 | W102: 0 | X102: 0 | Y102: 0 | Z102: 0 | AA102: 0 | AB102: 0 | AC102: 0 | AD102: 0
A103: 8697 | B103: Pass through revenue from local sources | C103: 0 | D103: 0 | E103: 0 | F103: 0 | G103: 0 | H103: 0 | I103: 0 | J103: 0 | K103: 0 | L103: 0 | M103: 0 | N103: 0 | O103: 0 | P103: 0 | Q103: 0 | R103: 0 | S103: 0 | T103: 0 | U103: 0 | V103: 0 | W103: 0 | X103: 0 | Y103: 0 | Z103: 0 | AA103: 0 | AB103: 0 | AC103: 0 | AD103: 0
A104: 8699 | B104: All Other Local Revenue | C104: 0 | D104: 0 | E104: 0 | F104: 972.14 | G104: 12967 | H104: 216.55 | I104: 0.01 | J104: 0 | K104: 0 | L104: 0 | M104: 0 | N104: 53747 | O104: 123777.46 | P104: 55874.76 | Q104: 18468.41 | R104: 18468.41 | S104: 18468.41 | T104: 18468.41 | U104: 18468.41 | V104: 18468.41 | W104: 0 | X104: 0 | Y104: 0 | Z104: 0 | AA104: 0 | AB104: 0 | AC104: 110810.46 | AD104: 0
A105: 8701 | B105: Measure N | C105: 0 | D105: 0 | E105: 0 | F105: 0 | G105: 0 | H105: 80783.33 | I105: 0 | J105: 0 | K105: 0 | L105: 150966.5 | M105: 0 | N105: 79972.11578 | O105: 422625 | P105: 110903.0542 | Q105: 0 | R105: 0 | S105: 0 | T105: 0 | U105: 0 | V105: 80783.33 | W105: 0 | X105: 0 | Y105: 0 | Z105: 150966.5 | AA105: 0 | AB105: 79972.11578 | AC105: 422625 | AD105: 110903.0542
A106: 8702 | B106: CTEIG | C106: 0 | D106: 0 | E106: 0 | F106: 0 | G106: 0 | H106: 0 | I106: 0 | J106: 0 | K106: 0 | L106: 0 | M106: 0 | N106: 187500 | O106: 187500 | P106: 0 | Q106: 0 | R106: 0 | S106: 0 | T106: 0 | U106: 0 | V106: 0 | W106: 0 | X106: 0 | Y106: 0 | Z106: 0 | AA106: 0 | AB106: 187500 | AC106: 187500 | AD106: 0
A107: 8703 | B107: Revenue Program 3 | C107: 0 | D107: 0 | E107: 0 | F107: 0 | G107: 0 | H107: 0 | I107: 0 | J107: 0 | K107: 0 | L107: 0 | M107: 0 | N107: 0 | O107: 0 | P107: 0 | Q107: 0 | R107: 0 | S107: 0 | T107: 0 | U107: 0 | V107: 0 | W107: 0 | X107: 0 | Y107: 0 | Z107: 0 | AA107: 0 | AB107: 0 | AC107: 0 | AD107: 0
A108: 8704 | B108: Revenue Program 4 | C108: 0 | D108: 0 | E108: 0 | F108: 0 | G108: 0 | H108: 0 | I108: 0 | J108: 0 | K108: 0 | L108: 0 | M108: 0 | N108: 0 | O108: 0 | P108: 0 | Q108: 0 | R108: 0 | S108: 0 | T108: 0 | U108: 0 | V108: 0 | W108: 0 | X108: 0 | Y108: 0 | Z108: 0 | AA108: 0 | AB108: 0 | AC108: 0 | AD108: 0
A109: 8705 | B109: Revenue Program 5 | C109: 0 | D109: 0 | E109: 0 | F109: 0 | G109: 0 | H109: 0 | I109: 0 | J109: 0 | K109: 0 | L109: 0 | M109: 0 | N109: 0 | O109: 0 | P109: 0 | Q109: 0 | R109: 0 | S109: 0 | T109: 0 | U109: 0 | V109: 0 | W109: 0 | X109: 0 | Y109: 0 | Z109: 0 | AA109: 0 | AB109: 0 | AC109: 0 | AD109: 0
A110: 8706 | B110: Revenue Program 6 | C110: 0 | D110: 0 | E110: 0 | F110: 0 | G110: 0 | H110: 0 | I110: 0 | J110: 0 | K110: 0 | L110: 0 | M110: 0 | N110: 0 | O110: 0 | P110: 0 | Q110: 0 | R110: 0 | S110: 0 | T110: 0 | U110: 0 | V110: 0 | W110: 0 | X110: 0 | Y110: 0 | Z110: 0 | AA110: 0 | AB110: 0 | AC110: 0 | AD110: 0
A111: 8707 | B111: Revenue Program 7 | C111: 0 | D111: 0 | E111: 0 | F111: 0 | G111: 0 | H111: 0 | I111: 0 | J111: 0 | K111: 0 | L111: 0 | M111: 0 | N111: 0 | O111: 0 | P111: 0 | Q111: 0 | R111: 0 | S111: 0 | T111: 0 | U111: 0 | V111: 0 | W111: 0 | X111: 0 | Y111: 0 | Z111: 0 | AA111: 0 | AB111: 0 | AC111: 0 | AD111: 0
A112: 8708 | B112: Revenue Program 8 | C112: 0 | D112: 0 | E112: 0 | F112: 0 | G112: 0 | H112: 0 | I112: 0 | J112: 0 | K112: 0 | L112: 0 | M112: 0 | N112: 0 | O112: 0 | P112: 0 | Q112: 0 | R112: 0 | S112: 0 | T112: 0 | U112: 0 | V112: 0 | W112: 0 | X112: 0 | Y112: 0 | Z112: 0 | AA112: 0 | AB112: 0 | AC112: 0 | AD112: 0
A113: 8709 | B113: Revenue Program 9 | C113: 0 | D113: 0 | E113: 0 | F113: 0 | G113: 0 | H113: 0 | I113: 0 | J113: 0 | K113: 0 | L113: 0 | M113: 0 | N113: 0 | O113: 0 | P113: 0 | Q113: 0 | R113: 0 | S113: 0 | T113: 0 | U113: 0 | V113: 0 | W113: 0 | X113: 0 | Y113: 0 | Z113: 0 | AA113: 0 | AB113: 0 | AC113: 0 | AD113: 0
A114: 8711 | B114: Revenue Program 11 | C114: 0 | D114: 0 | E114: 0 | F114: 0 | G114: 0 | H114: 0 | I114: 0 | J114: 0 | K114: 0 | L114: 0 | M114: 0 | N114: 0 | O114: 0 | P114: 0 | Q114: 0 | R114: 0 | S114: 0 | T114: 0 | U114: 0 | V114: 0 | W114: 0 | X114: 0 | Y114: 0 | Z114: 0 | AA114: 0 | AB114: 0 | AC114: 0 | AD114: 0
A115: 8712 | B115: Revenue Program 12 | C115: 0 | D115: 0 | E115: 0 | F115: 0 | G115: 0 | H115: 0 | I115: 0 | J115: 0 | K115: 0 | L115: 0 | M115: 0 | N115: 0 | O115: 0 | P115: 0 | Q115: 0 | R115: 0 | S115: 0 | T115: 0 | U115: 0 | V115: 0 | W115: 0 | X115: 0 | Y115: 0 | Z115: 0 | AA115: 0 | AB115: 0 | AC115: 0 | AD115: 0
A116: 8713 | B116: Revenue Program 13 | C116: 0 | D116: 0 | E116: 0 | F116: 0 | G116: 0 | H116: 0 | I116: 0 | J116: 0 | K116: 0 | L116: 0 | M116: 0 | N116: 0 | O116: 0 | P116: 0 | Q116: 0 | R116: 0 | S116: 0 | T116: 0 | U116: 0 | V116: 0 | W116: 0 | X116: 0 | Y116: 0 | Z116: 0 | AA116: 0 | AB116: 0 | AC116: 0 | AD116: 0
A117: 8714 | B117: Revenue Program 14 | C117: 0 | D117: 0 | E117: 0 | F117: 0 | G117: 0 | H117: 0 | I117: 0 | J117: 0 | K117: 0 | L117: 0 | M117: 0 | N117: 0 | O117: 0 | P117: 0 | Q117: 0 | R117: 0 | S117: 0 | T117: 0 | U117: 0 | V117: 0 | W117: 0 | X117: 0 | Y117: 0 | Z117: 0 | AA117: 0 | AB117: 0 | AC117: 0 | AD117: 0
A118: 8715 | B118: Revenue Program 15 | C118: 0 | D118: 0 | E118: 0 | F118: 0 | G118: 0 | H118: 0 | I118: 0 | J118: 0 | K118: 0 | L118: 0 | M118: 0 | N118: 0 | O118: 0 | P118: 0 | Q118: 0 | R118: 0 | S118: 0 | T118: 0 | U118: 0 | V118: 0 | W118: 0 | X118: 0 | Y118: 0 | Z118: 0 | AA118: 0 | AB118: 0 | AC118: 0 | AD118: 0
A119: 8716 | B119: Revenue Program 16 | C119: 0 | D119: 0 | E119: 0 | F119: 0 | G119: 0 | H119: 0 | I119: 0 | J119: 0 | K119: 0 | L119: 0 | M119: 0 | N119: 0 | O119: 0 | P119: 0 | Q119: 0 | R119: 0 | S119: 0 | T119: 0 | U119: 0 | V119: 0 | W119: 0 | X119: 0 | Y119: 0 | Z119: 0 | AA119: 0 | AB119: 0 | AC119: 0 | AD119: 0
A120: 8717 | B120: Revenue Program 17 | C120: 0 | D120: 0 | E120: 0 | F120: 0 | G120: 0 | H120: 0 | I120: 0 | J120: 0 | K120: 0 | L120: 0 | M120: 0 | N120: 0 | O120: 0 | P120: 0 | Q120: 0 | R120: 0 | S120: 0 | T120: 0 | U120: 0 | V120: 0 | W120: 0 | X120: 0 | Y120: 0 | Z120: 0 | AA120: 0 | AB120: 0 | AC120: 0 | AD120: 0
A121: 8718 | B121: Revenue Program 18 | C121: 0 | D121: 0 | E121: 0 | F121: 0 | G121: 0 | H121: 0 | I121: 0 | J121: 0 | K121: 0 | L121: 0 | M121: 0 | N121: 0 | O121: 0 | P121: 0 | Q121: 0 | R121: 0 | S121: 0 | T121: 0 | U121: 0 | V121: 0 | W121: 0 | X121: 0 | Y121: 0 | Z121: 0 | AA121: 0 | AB121: 0 | AC121: 0 | AD121: 0
A122: 8719 | B122: Revenue Program 19 | C122: 0 | D122: 0 | E122: 0 | F122: 0 | G122: 0 | H122: 0 | I122: 0 | J122: 0 | K122: 0 | L122: 0 | M122: 0 | N122: 0 | O122: 0 | P122: 0 | Q122: 0 | R122: 0 | S122: 0 | T122: 0 | U122: 0 | V122: 0 | W122: 0 | X122: 0 | Y122: 0 | Z122: 0 | AA122: 0 | AB122: 0 | AC122: 0 | AD122: 0
A123: 8720 | B123: Revenue Program 20 | C123: 0 | D123: 0 | E123: 0 | F123: 0 | G123: 0 | H123: 0 | I123: 0 | J123: 0 | K123: 0 | L123: 0 | M123: 0 | N123: 0 | O123: 0 | P123: 0 | Q123: 0 | R123: 0 | S123: 0 | T123: 0 | U123: 0 | V123: 0 | W123: 0 | X123: 0 | Y123: 0 | Z123: 0 | AA123: 0 | AB123: 0 | AC123: 0 | AD123: 0
A124: 8721 | B124: CMO Fees Revenue | C124: 0 | D124: 0 | E124: 0 | F124: 0 | G124: 0 | H124: 0 | I124: 0 | J124: 0 | K124: 0 | L124: 0 | M124: 0 | N124: 0 | O124: 0 | P124: 0 | Q124: 0 | R124: 0 | S124: 0 | T124: 0 | U124: 0 | V124: 0 | W124: 0 | X124: 0 | Y124: 0 | Z124: 0 | AA124: 0 | AB124: 0 | AC124: 0 | AD124: 0
A125: 8722 | B125: Revenue Program 22 | C125: 0 | D125: 0 | E125: 0 | F125: 0 | G125: 0 | H125: 0 | I125: 0 | J125: 0 | K125: 0 | L125: 0 | M125: 0 | N125: 0 | O125: 0 | P125: 0 | Q125: 0 | R125: 0 | S125: 0 | T125: 0 | U125: 0 | V125: 0 | W125: 0 | X125: 0 | Y125: 0 | Z125: 0 | AA125: 0 | AB125: 0 | AC125: 0 | AD125: 0
A126: 8723 | B126: Revenue Program 23 | C126: 0 | D126: 0 | E126: 0 | F126: 0 | G126: 0 | H126: 0 | I126: 0 | J126: 0 | K126: 0 | L126: 0 | M126: 0 | N126: 0 | O126: 0 | P126: 0 | Q126: 0 | R126: 0 | S126: 0 | T126: 0 | U126: 0 | V126: 0 | W126: 0 | X126: 0 | Y126: 0 | Z126: 0 | AA126: 0 | AB126: 0 | AC126: 0 | AD126: 0
A127: 8724 | B127: Revenue Program 24 | C127: 0 | D127: 0 | E127: 0 | F127: 0 | G127: 0 | H127: 0 | I127: 0 | J127: 0 | K127: 0 | L127: 0 | M127: 0 | N127: 0 | O127: 0 | P127: 0 | Q127: 0 | R127: 0 | S127: 0 | T127: 0 | U127: 0 | V127: 0 | W127: 0 | X127: 0 | Y127: 0 | Z127: 0 | AA127: 0 | AB127: 0 | AC127: 0 | AD127: 0
A128: 8725 | B128: Revenue Program 25 | C128: 0 | D128: 0 | E128: 0 | F128: 0 | G128: 0 | H128: 0 | I128: 0 | J128: 0 | K128: 0 | L128: 0 | M128: 0 | N128: 0 | O128: 0 | P128: 0 | Q128: 0 | R128: 0 | S128: 0 | T128: 0 | U128: 0 | V128: 0 | W128: 0 | X128: 0 | Y128: 0 | Z128: 0 | AA128: 0 | AB128: 0 | AC128: 0 | AD128: 0
A129: 8726 | B129: Revenue Program 26 | C129: 0 | D129: 0 | E129: 0 | F129: 0 | G129: 0 | H129: 0 | I129: 0 | J129: 0 | K129: 0 | L129: 0 | M129: 0 | N129: 0 | O129: 0 | P129: 0 | Q129: 0 | R129: 0 | S129: 0 | T129: 0 | U129: 0 | V129: 0 | W129: 0 | X129: 0 | Y129: 0 | Z129: 0 | AA129: 0 | AB129: 0 | AC129: 0 | AD129: 0
A130: 8727 | B130: Revenue Program 27 | C130: 0 | D130: 0 | E130: 0 | F130: 0 | G130: 0 | H130: 0 | I130: 0 | J130: 0 | K130: 0 | L130: 0 | M130: 0 | N130: 0 | O130: 0 | P130: 0 | Q130: 0 | R130: 0 | S130: 0 | T130: 0 | U130: 0 | V130: 0 | W130: 0 | X130: 0 | Y130: 0 | Z130: 0 | AA130: 0 | AB130: 0 | AC130: 0 | AD130: 0
A131: 8728 | B131: Revenue Program 28 | C131: 0 | D131: 0 | E131: 0 | F131: 0 | G131: 0 | H131: 0 | I131: 0 | J131: 0 | K131: 0 | L131: 0 | M131: 0 | N131: 0 | O131: 0 | P131: 0 | Q131: 0 | R131: 0 | S131: 0 | T131: 0 | U131: 0 | V131: 0 | W131: 0 | X131: 0 | Y131: 0 | Z131: 0 | AA131: 0 | AB131: 0 | AC131: 0 | AD131: 0
A132: 8729 | B132: Revenue Program 29 | C132: 0 | D132: 0 | E132: 0 | F132: 0 | G132: 0 | H132: 0 | I132: 0 | J132: 0 | K132: 0 | L132: 0 | M132: 0 | N132: 0 | O132: 0 | P132: 0 | Q132: 0 | R132: 0 | S132: 0 | T132: 0 | U132: 0 | V132: 0 | W132: 0 | X132: 0 | Y132: 0 | Z132: 0 | AA132: 0 | AB132: 0 | AC132: 0 | AD132: 0
A133: 8730 | B133: Revenue Program 30 | C133: 0 | D133: 0 | E133: 0 | F133: 0 | G133: 0 | H133: 0 | I133: 0 | J133: 0 | K133: 0 | L133: 0 | M133: 0 | N133: 0 | O133: 0 | P133: 0 | Q133: 0 | R133: 0 | S133: 0 | T133: 0 | U133: 0 | V133: 0 | W133: 0 | X133: 0 | Y133: 0 | Z133: 0 | AA133: 0 | AB133: 0 | AC133: 0 | AD133: 0
A134: 8731 | B134: Revenue Program 31 | C134: 0 | D134: 0 | E134: 0 | F134: 0 | G134: 0 | H134: 0 | I134: 0 | J134: 0 | K134: 0 | L134: 0 | M134: 0 | N134: 0 | O134: 0 | P134: 0 | Q134: 0 | R134: 0 | S134: 0 | T134: 0 | U134: 0 | V134: 0 | W134: 0 | X134: 0 | Y134: 0 | Z134: 0 | AA134: 0 | AB134: 0 | AC134: 0 | AD134: 0
A135: 8732 | B135: Revenue Program 32 | C135: 0 | D135: 0 | E135: 0 | F135: 0 | G135: 0 | H135: 0 | I135: 0 | J135: 0 | K135: 0 | L135: 0 | M135: 0 | N135: 0 | O135: 0 | P135: 0 | Q135: 0 | R135: 0 | S135: 0 | T135: 0 | U135: 0 | V135: 0 | W135: 0 | X135: 0 | Y135: 0 | Z135: 0 | AA135: 0 | AB135: 0 | AC135: 0 | AD135: 0
A136: 8733 | B136: Revenue Program 33 | C136: 0 | D136: 0 | E136: 0 | F136: 0 | G136: 0 | H136: 0 | I136: 0 | J136: 0 | K136: 0 | L136: 0 | M136: 0 | N136: 0 | O136: 0 | P136: 0 | Q136: 0 | R136: 0 | S136: 0 | T136: 0 | U136: 0 | V136: 0 | W136: 0 | X136: 0 | Y136: 0 | Z136: 0 | AA136: 0 | AB136: 0 | AC136: 0 | AD136: 0
A137: 8734 | B137: Revenue Program 34 | C137: 0 | D137: 0 | E137: 0 | F137: 0 | G137: 0 | H137: 0 | I137: 0 | J137: 0 | K137: 0 | L137: 0 | M137: 0 | N137: 0 | O137: 0 | P137: 0 | Q137: 0 | R137: 0 | S137: 0 | T137: 0 | U137: 0 | V137: 0 | W137: 0 | X137: 0 | Y137: 0 | Z137: 0 | AA137: 0 | AB137: 0 | AC137: 0 | AD137: 0
A138: 8735 | B138: Revenue Program 35 | C138: 0 | D138: 0 | E138: 0 | F138: 0 | G138: 0 | H138: 0 | I138: 0 | J138: 0 | K138: 0 | L138: 0 | M138: 0 | N138: 0 | O138: 0 | P138: =O138-SUM(C138:N138) -> 0 | Q138: 0 | R138: 0 | S138: 0 | T138: 0 | U138: 0 | V138: 0 | W138: 0 | X138: 0 | Y138: 0 | Z138: 0 | AA138: 0 | AB138: 0 | AC138: 0 | AD138: =AC138-SUM(Q138:AB138) -> 0
A139: 8736 | B139: Revenue Program 36 | C139: 0 | D139: 0 | E139: 0 | F139: 0 | G139: 0 | H139: 0 | I139: 0 | J139: 0 | K139: 0 | L139: 0 | M139: 0 | N139: 0 | O139: 0 | P139: 0 | Q139: 0 | R139: 0 | S139: 0 | T139: 0 | U139: 0 | V139: 0 | W139: 0 | X139: 0 | Y139: 0 | Z139: 0 | AA139: 0 | AB139: 0 | AC139: 0 | AD139: 0
A140: 8737 | B140: Revenue Program 37 | C140: 0 | D140: 0 | E140: 0 | F140: 0 | G140: 0 | H140: 0 | I140: 0 | J140: 0 | K140: 0 | L140: 0 | M140: 0 | N140: 0 | O140: 0 | P140: 0 | Q140: 0 | R140: 0 | S140: 0 | T140: 0 | U140: 0 | V140: 0 | W140: 0 | X140: 0 | Y140: 0 | Z140: 0 | AA140: 0 | AB140: 0 | AC140: 0 | AD140: 0
A141: 8738 | B141: Revenue Program 38 | C141: 0 | D141: 0 | E141: 0 | F141: 0 | G141: 0 | H141: 0 | I141: 0 | J141: 0 | K141: 0 | L141: 0 | M141: 0 | N141: 0 | O141: 0 | P141: 0 | Q141: 0 | R141: 0 | S141: 0 | T141: 0 | U141: 0 | V141: 0 | W141: 0 | X141: 0 | Y141: 0 | Z141: 0 | AA141: 0 | AB141: 0 | AC141: 0 | AD141: 0
A142: 8739 | B142: Revenue Program 39 | C142: 0 | D142: 0 | E142: 0 | F142: 0 | G142: 0 | H142: 0 | I142: 0 | J142: 0 | K142: 0 | L142: 0 | M142: 0 | N142: 0 | O142: 0 | P142: 0 | Q142: 0 | R142: 0 | S142: 0 | T142: 0 | U142: 0 | V142: 0 | W142: 0 | X142: 0 | Y142: 0 | Z142: 0 | AA142: 0 | AB142: 0 | AC142: 0 | AD142: 0
A143: 8740 | B143: Revenue Program 40 | C143: 0 | D143: 0 | E143: 0 | F143: 0 | G143: 0 | H143: 0 | I143: 0 | J143: 0 | K143: 0 | L143: 0 | M143: 0 | N143: 0 | O143: 0 | P143: 0 | Q143: 0 | R143: 0 | S143: 0 | T143: 0 | U143: 0 | V143: 0 | W143: 0 | X143: 0 | Y143: 0 | Z143: 0 | AA143: 0 | AB143: 0 | AC143: 0 | AD143: 0
A144: 8741 | B144: Revenue Program 41 | C144: 0 | D144: 0 | E144: 0 | F144: 0 | G144: 0 | H144: 0 | I144: 0 | J144: 0 | K144: 0 | L144: 0 | M144: 0 | N144: 0 | O144: 0 | P144: 0 | Q144: 0 | R144: 0 | S144: 0 | T144: 0 | U144: 0 | V144: 0 | W144: 0 | X144: 0 | Y144: 0 | Z144: 0 | AA144: 0 | AB144: 0 | AC144: 0 | AD144: 0
A145: 8781 | B145: All Other transfers from Districts or Charter Schools | C145: 0 | D145: 0 | E145: 0 | F145: 0 | G145: 0 | H145: 0 | I145: 0 | J145: 0 | K145: 0 | L145: 0 | M145: 0 | N145: 0 | O145: 0 | P145: 0 | Q145: 0 | R145: 0 | S145: 0 | T145: 0 | U145: 0 | V145: 0 | W145: 0 | X145: 0 | Y145: 0 | Z145: 0 | AA145: 0 | AB145: 0 | AC145: 0 | AD145: 0
A146: 8797 | B146: All Other Financing Sources | C146: 0 | D146: 0 | E146: 0 | F146: 0 | G146: 0 | H146: 0 | I146: 0 | J146: 0 | K146: 0 | L146: 0 | M146: 0 | N146: 0 | O146: 0 | P146: 0 | Q146: 0 | R146: 0 | S146: 0 | T146: 0 | U146: 0 | V146: 0 | W146: 0 | X146: 0 | Y146: 0 | Z146: 0 | AA146: 0 | AB146: 0 | AC146: 0 | AD146: 0
A147: 8910 | B147: Interfund Transfers In | C147: 0 | D147: 0 | E147: 0 | F147: 0 | G147: 0 | H147: 0 | I147: 0 | J147: 0 | K147: 0 | L147: 0 | M147: 0 | N147: 0 | O147: 0 | P147: 0 | Q147: 0 | R147: 0 | S147: 0 | T147: 0 | U147: 0 | V147: 0 | W147: 0 | X147: 0 | Y147: 0 | Z147: 0 | AA147: 0 | AB147: 0 | AC147: 0 | AD147: 0
A148: 8931 | B148: Emergency Apportionments | C148: 0 | D148: 0 | E148: 0 | F148: 0 | G148: 0 | H148: 0 | I148: 0 | J148: 0 | K148: 0 | L148: 0 | M148: 0 | N148: 0 | O148: 0 | P148: 0 | Q148: 0 | R148: 0 | S148: 0 | T148: 0 | U148: 0 | V148: 0 | W148: 0 | X148: 0 | Y148: 0 | Z148: 0 | AA148: 0 | AB148: 0 | AC148: 0 | AD148: 0
A149: 8953 | B149: Proceeds from Sale/Lease Purchase of Land and Buildings | C149: 0 | D149: 0 | E149: 0 | F149: 0 | G149: 0 | H149: 0 | I149: 0 | J149: 0 | K149: 0 | L149: 0 | M149: 0 | N149: 0 | O149: 0 | P149: 0 | Q149: 0 | R149: 0 | S149: 0 | T149: 0 | U149: 0 | V149: 0 | W149: 0 | X149: 0 | Y149: 0 | Z149: 0 | AA149: 0 | AB149: 0 | AC149: 0 | AD149: 0
A150: 8999 | B150: Uncategorized Revenue | C150: 1065.91 | D150: 22329.51 | E150: 176.79 | F150: 6050.47 | G150: 338.73 | H150: 8694.53 | I150: 0 | J150: -14745 | K150: 1941.01 | L150: 0 | M150: 0 | N150: -25851.95 | O150: 0 | P150: 0 | AC150: 0 | AD150: 0
B152: Other Local Revenue | C152: =SUM(C73:C151) -> 1065.91 | D152: 22329.51 | E152: 176.79 | F152: 7022.61 | G152: 13305.73 | H152: 89694.41 | I152: 0.01 | J152: -14745 | K152: 1941.01 | L152: 150966.5 | M152: 3055 | N152: 296122.1658 | O152: 737712.46 | P152: 166777.8142 | Q152: =SUM(Q73:Q151) -> 18498.41 | R152: 18498.41 | S152: 18498.41 | T152: 18498.41 | U152: 18498.41 | V152: 99281.74 | W152: 605 | X152: 605 | Y152: 605 | Z152: 151571.5 | AA152: 605 | AB152: 268077.1158 | AC152: 724745.46 | AD152: 110903.0542
A154: Fundraising & Grants
P155: =O155-SUM(C155:N155) -> 0 | AD155: =AC155-SUM(Q155:AB155) -> 0
A156: 8800 | B156: Donations/Fundraising | C156: 0 | D156: 0 | E156: 0 | F156: 0 | G156: 0 | H156: 0 | I156: 0 | J156: 0 | K156: 0 | L156: 0 | M156: 0 | N156: 0 | P156: =O156-SUM(C156:N156) -> 0 | AD156: =AC156-SUM(Q156:AB156) -> 0
A157: 8801 | B157: Donations - Parents | C157: 0 | D157: 0 | E157: 0 | F157: 0 | G157: 0 | H157: 0 | I157: 0 | J157: 0 | K157: 0 | L157: 0 | M157: 0 | N157: 0 | O157: 0 | P157: 0 | Q157: 0 | R157: 0 | S157: 0 | T157: 0 | U157: 0 | V157: 0 | W157: 0 | X157: 0 | Y157: 0 | Z157: 0 | AA157: 0 | AB157: 0 | AC157: 0 | AD157: 0
A158: 8802 | B158: Donations - Private | C158: 0 | D158: 0 | E158: 0 | F158: 0 | G158: 0 | H158: 0 | I158: 14000 | J158: 1517.6 | K158: 9923.04 | L158: 0 | M158: 0.18 | N158: 0.18 | O158: 25441 | P158: 0 | Q158: 230000 | R158: 0 | S158: 0 | T158: 0 | U158: 0 | V158: 0 | W158: 0 | X158: 0 | Y158: 0 | Z158: 0 | AA158: 0 | AB158: 0 | AC158: 236000 | AD158: 6000
A159: 8803 | B159: Fundraising | C159: 0 | D159: 0 | E159: 0 | F159: 0 | G159: 0 | H159: 0 | I159: 0 | J159: 0 | K159: 0 | L159: 0 | M159: 0 | N159: 0 | O159: 0 | P159: 0 | Q159: 0 | R159: 0 | S159: 0 | T159: 0 | U159: 0 | V159: 0 | W159: 0 | X159: 0 | Y159: 0 | Z159: 0 | AA159: 0 | AB159: 0 | AC159: 0 | AD159: 0
A160: 8804 | B160: Fundraising - Fund Development | C160: 0 | D160: 0 | E160: 0 | F160: 0 | G160: 0 | H160: 0 | I160: 0 | J160: 0 | K160: 0 | L160: 0 | M160: 0 | N160: 0 | O160: 0 | P160: 0 | Q160: 0 | R160: 0 | S160: 0 | T160: 0 | U160: 0 | V160: 0 | W160: 0 | X160: 0 | Y160: 0 | Z160: 0 | AA160: 0 | AB160: 0 | AC160: 0 | AD160: 0
A161: 8811 | B161: School Defined Revenue 1 | C161: 0 | D161: 0 | E161: 0 | F161: 0 | G161: 0 | H161: 0 | I161: 0 | J161: 0 | K161: 0 | L161: 0 | M161: 0 | N161: 0 | O161: 0 | P161: 0 | Q161: 0 | R161: 0 | S161: 0 | T161: 0 | U161: 0 | V161: 0 | W161: 0 | X161: 0 | Y161: 0 | Z161: 0 | AA161: 0 | AB161: 0 | AC161: 0 | AD161: 0
A162: 8812 | B162: School Defined Revenue 2 | C162: 0 | D162: 0 | E162: 0 | F162: 0 | G162: 0 | H162: 0 | I162: 0 | J162: 0 | K162: 0 | L162: 0 | M162: 0 | N162: 0 | O162: 0 | P162: 0 | Q162: 0 | R162: 0 | S162: 0 | T162: 0 | U162: 0 | V162: 0 | W162: 0 | X162: 0 | Y162: 0 | Z162: 0 | AA162: 0 | AB162: 0 | AC162: 0 | AD162: 0
A163: 8813 | B163: School Defined Revenue 3 | C163: 0 | D163: 0 | E163: 0 | F163: 0 | G163: 0 | H163: 0 | I163: 0 | J163: 0 | K163: 0 | L163: 0 | M163: 0 | N163: 0 | O163: 0 | P163: 0 | Q163: 0 | R163: 0 | S163: 0 | T163: 0 | U163: 0 | V163: 0 | W163: 0 | X163: 0 | Y163: 0 | Z163: 0 | AA163: 0 | AB163: 0 | AC163: 0 | AD163: 0
A164: 8814 | B164: School Defined Revenue 4 | C164: 0 | D164: 0 | E164: 0 | F164: 0 | G164: 0 | H164: 0 | I164: 0 | J164: 0 | K164: 0 | L164: 0 | M164: 0 | N164: 0 | O164: 0 | P164: 0 | Q164: 0 | R164: 0 | S164: 0 | T164: 0 | U164: 0 | V164: 0 | W164: 0 | X164: 0 | Y164: 0 | Z164: 0 | AA164: 0 | AB164: 0 | AC164: 0 | AD164: 0
A165: 8815 | B165: School Defined Revenue 5 | C165: 0 | D165: 0 | E165: 0 | F165: 0 | G165: 0 | H165: 0 | I165: 0 | J165: 0 | K165: 0 | L165: 0 | M165: 0 | N165: 0 | O165: 0 | P165: 0 | Q165: 0 | R165: 0 | S165: 0 | T165: 0 | U165: 0 | V165: 0 | W165: 0 | X165: 0 | Y165: 0 | Z165: 0 | AA165: 0 | AB165: 0 | AC165: 0 | AD165: 0
A166: 8816 | B166: School Defined Revenue 6 | C166: 0 | D166: 0 | E166: 0 | F166: 0 | G166: 0 | H166: 0 | I166: 0 | J166: 0 | K166: 0 | L166: 0 | M166: 0 | N166: 0 | O166: 0 | P166: 0 | Q166: 0 | R166: 0 | S166: 0 | T166: 0 | U166: 0 | V166: 0 | W166: 0 | X166: 0 | Y166: 0 | Z166: 0 | AA166: 0 | AB166: 0 | AC166: 0 | AD166: 0
A167: 8817 | B167: School Defined Revenue 7 | C167: 0 | D167: 0 | E167: 0 | F167: 0 | G167: 0 | H167: 0 | I167: 0 | J167: 0 | K167: 0 | L167: 0 | M167: 0 | N167: 0 | O167: 0 | P167: 0 | Q167: 0 | R167: 0 | S167: 0 | T167: 0 | U167: 0 | V167: 0 | W167: 0 | X167: 0 | Y167: 0 | Z167: 0 | AA167: 0 | AB167: 0 | AC167: 0 | AD167: 0
A168: 8818 | B168: School Defined Revenue 8 | C168: 0 | D168: 0 | E168: 0 | F168: 0 | G168: 0 | H168: 0 | I168: 0 | J168: 0 | K168: 0 | L168: 0 | M168: 0 | N168: 0 | O168: 0 | P168: 0 | Q168: 0 | R168: 0 | S168: 0 | T168: 0 | U168: 0 | V168: 0 | W168: 0 | X168: 0 | Y168: 0 | Z168: 0 | AA168: 0 | AB168: 0 | AC168: 0 | AD168: 0
A169: 8819 | B169: School Defined Revenue 9 | C169: 0 | D169: 0 | E169: 0 | F169: 0 | G169: 0 | H169: 0 | I169: 0 | J169: 0 | K169: 0 | L169: 0 | M169: 0 | N169: 0 | O169: 0 | P169: 0 | Q169: 0 | R169: 0 | S169: 0 | T169: 0 | U169: 0 | V169: 0 | W169: 0 | X169: 0 | Y169: 0 | Z169: 0 | AA169: 0 | AB169: 0 | AC169: 0 | AD169: 0
A170: 8850 | B170: Donations - temporarily restricted | C170: 0 | D170: 0 | E170: 0 | F170: 0 | G170: 0 | H170: 0 | I170: 0 | J170: 0 | K170: 0 | L170: 0 | M170: 0 | N170: 0 | O170: 0 | P170: 0 | Q170: 0 | R170: 0 | S170: 0 | T170: 0 | U170: 0 | V170: 0 | W170: 0 | X170: 0 | Y170: 0 | Z170: 0 | AA170: 0 | AB170: 0 | AC170: 0 | AD170: 0
B172: Fundraising & Grants | C172: =SUM(C155:C171) -> 0 | D172: 0 | E172: 0 | F172: 0 | G172: 0 | H172: 0 | I172: 14000 | J172: 1517.6 | K172: 9923.04 | L172: 0 | M172: 0.18 | N172: 0.18 | O172: 25441 | P172: =O172-SUM(C172:N172) -> 0 | Q172: =SUM(Q155:Q171) -> 230000 | R172: 0 | S172: 0 | T172: 0 | U172: 0 | V172: 0 | W172: 0 | X172: 0 | Y172: 0 | Z172: 0 | AA172: 0 | AB172: 0 | AC172: 236000 | AD172: =AC172-SUM(Q172:AB172) -> 6000
B174: TOTAL REVENUE | C174: =SUM(C172,C152,C70,C43,C24) -> 73014.9 | D174: 156567.51 | E174: 134414.79 | F174: 837300.61 | G174: 382727.73 | H174: 431097.41 | I174: 790722.49 | J174: 368584.89 | K174: 777223.67 | L174: 764657.77 | M174: 526341.1874 | N174: 724673.1396 | O174: 7563324.537 | P174: =O174-SUM(C174:N174) -> 1595998.44 | Q174: =SUM(Q172,Q152,Q70,Q43,Q24) -> 387848.195 | R174: 243324.7928 | S174: 419248.75 | T174: 697935.732 | U174: 441243.464 | V174: 599960.8469 | W174: 695095.7469 | X174: 461792.1076 | Y174: 902823.708 | Z174: 978469.4459 | AA174: 637442.3791 | AB174: 1323874.049 | AC174: 8879701.692 | AD174: =AC174-SUM(Q174:AB174) -> 1090642.475
A176: EXPENSES
A178: Certificated Salaries
A180: 1000 | B180: Certificated Salaries | C180: 0 | D180: 0 | E180: 0 | F180: 0 | G180: 0 | H180: 0 | I180: 0 | J180: 0 | K180: 0 | L180: 0 | M180: 0 | N180: 0
A181: 1100 | B181: Teachers Salaries | C181: 7705.37 | D181: 150786.41 | E181: 152397.17 | F181: 151935.67 | G181: 150265.58 | H181: 153234.08 | I181: 158234.39 | J181: 159370.68 | K181: 159370.76 | L181: 159370.76 | M181: 139297.565 | N181: 188738.075 | O181: 1730706.51 | Q181: 6802.083333 | R181: 159903.3333 | S181: 159903.3333 | T181: 159903.3333 | U181: 159903.3333 | V181: 163508.3333 | W181: 159903.3333 | X181: 159903.3333 | Y181: 159903.3333 | Z181: 159903.3333 | AA181: 159903.3333 | AB181: 210098.2333 | AC181: 1819538.65
A182: 1101 | B182: Teacher - Stipends | C182: 0 | D182: 0 | E182: 0 | F182: 0 | G182: 0 | H182: 0 | I182: 0 | J182: 0 | K182: 0 | L182: 0 | M182: 0 | N182: 0 | O182: 0 | Q182: 0 | R182: 0 | S182: 0 | T182: 0 | U182: 0 | V182: 0 | W182: 0 | X182: 0 | Y182: 0 | Z182: 0 | AA182: 0 | AB182: 0 | AC182: 0
A183: 1102 | B183: Teachers - Extra Duty Hours | C183: 0 | D183: 0 | E183: 0 | F183: 0 | G183: 0 | H183: 0 | I183: 0 | J183: 0 | K183: 0 | L183: 0 | M183: 0 | N183: 0 | O183: 0 | Q183: 0 | R183: 0 | S183: 0 | T183: 0 | U183: 0 | V183: 0 | W183: 0 | X183: 0 | Y183: 0 | Z183: 0 | AA183: 0 | AB183: 0 | AC183: 0
A184: 1103 | B184: Teacher - Substitute Pay | C184: 0 | D184: 0 | E184: 0 | F184: 0 | G184: 0 | H184: 0 | I184: 0 | J184: 0 | K184: 0 | L184: 0 | M184: 0 | N184: 0 | O184: 0 | Q184: 0 | R184: 0 | S184: 0 | T184: 0 | U184: 0 | V184: 0 | W184: 0 | X184: 0 | Y184: 0 | Z184: 0 | AA184: 0 | AB184: 0 | AC184: 0
A185: 1111 | B185: Teacher - Elective | C185: 0 | D185: 0 | E185: 0 | F185: 0 | G185: 0 | H185: 0 | I185: 0 | J185: 0 | K185: 0 | L185: 0 | M185: 0 | N185: 0 | O185: 0 | Q185: 0 | R185: 0 | S185: 0 | T185: 0 | U185: 0 | V185: 0 | W185: 0 | X185: 0 | Y185: 0 | Z185: 0 | AA185: 0 | AB185: 0 | AC185: 0
A186: 1145 | B186: Teacher - Independent Study | C186: 0 | D186: 0 | E186: 0 | F186: 0 | G186: 0 | H186: 0 | I186: 0 | J186: 0 | K186: 0 | L186: 0 | M186: 0 | N186: 0 | O186: 0 | Q186: 0 | R186: 0 | S186: 0 | T186: 0 | U186: 0 | V186: 0 | W186: 0 | X186: 0 | Y186: 0 | Z186: 0 | AA186: 0 | AB186: 0 | AC186: 0
A187: 1148 | B187: Teacher - Special Ed | C187: 22796.95 | D187: 23738.55 | E187: 23738.56 | F187: 22924.41 | G187: 19842.73 | H187: 18706.51 | I187: 18696.9 | J187: 12333.26 | K187: 7955.76 | L187: 7955.76 | M187: 21988.43587 | N187: 23905.25587 | O187: 224583.0817 | Q187: 12915.41667 | R187: 25366.7803 | S187: 25366.7803 | T187: 25366.7803 | U187: 25366.7803 | V187: 25366.7803 | W187: 25366.7803 | X187: 25366.7803 | Y187: 25366.7803 | Z187: 25366.7803 | AA187: 25366.7803 | AB187: 27283.7803 | AC187: 293867
A188: 1150 | B188: Teacher - Custom 1 | C188: 0 | D188: 0 | E188: 0 | F188: 0 | G188: 0 | H188: 0 | I188: 0 | J188: 0 | K188: 0 | L188: 0 | M188: 0 | N188: 0 | O188: 0 | Q188: 0 | R188: 0 | S188: 0 | T188: 0 | U188: 0 | V188: 0 | W188: 0 | X188: 0 | Y188: 0 | Z188: 0 | AA188: 0 | AB188: 0 | AC188: 0
A189: 1155 | B189: Teacher - Custom 1.5 | C189: 0 | D189: 0 | E189: 0 | F189: 0 | G189: 0 | H189: 0 | I189: 0 | J189: 0 | K189: 0 | L189: 0 | M189: 0 | N189: 0 | O189: 0 | Q189: 0 | R189: 0 | S189: 0 | T189: 0 | U189: 0 | V189: 0 | W189: 0 | X189: 0 | Y189: 0 | Z189: 0 | AA189: 0 | AB189: 0 | AC189: 0
A190: 1160 | B190: Teacher - Custom 2 | C190: 0 | D190: 0 | E190: 0 | F190: 0 | G190: 0 | H190: 0 | I190: 0 | J190: 0 | K190: 0 | L190: 0 | M190: 0 | N190: 0 | O190: 0 | Q190: 0 | R190: 0 | S190: 0 | T190: 0 | U190: 0 | V190: 0 | W190: 0 | X190: 0 | Y190: 0 | Z190: 0 | AA190: 0 | AB190: 0 | AC190: 0
A191: 1165 | B191: Teacher - Custom 2.5 | C191: 0 | D191: 0 | E191: 0 | F191: 0 | G191: 0 | H191: 0 | I191: 0 | J191: 0 | K191: 0 | L191: 0 | M191: 0 | N191: 0 | O191: 0 | Q191: 0 | R191: 0 | S191: 0 | T191: 0 | U191: 0 | V191: 0 | W191: 0 | X191: 0 | Y191: 0 | Z191: 0 | AA191: 0 | AB191: 0 | AC191: 0
A192: 1170 | B192: Teacher - Custom 3 | C192: 0 | D192: 0 | E192: 0 | F192: 0 | G192: 0 | H192: 0 | I192: 0 | J192: 0 | K192: 0 | L192: 0 | M192: 0 | N192: 0 | O192: 0 | Q192: 0 | R192: 0 | S192: 0 | T192: 0 | U192: 0 | V192: 0 | W192: 0 | X192: 0 | Y192: 0 | Z192: 0 | AA192: 0 | AB192: 0 | AC192: 0
A193: 1175 | B193: Teacher - Custom 3.5 | C193: 0 | D193: 0 | E193: 0 | F193: 0 | G193: 0 | H193: 0 | I193: 0 | J193: 0 | K193: 0 | L193: 0 | M193: 0 | N193: 0 | O193: 0 | Q193: 0 | R193: 0 | S193: 0 | T193: 0 | U193: 0 | V193: 0 | W193: 0 | X193: 0 | Y193: 0 | Z193: 0 | AA193: 0 | AB193: 0 | AC193: 0
A194: 1180 | B194: Teacher - Custom 4 | C194: 0 | D194: 0 | E194: 0 | F194: 0 | G194: 0 | H194: 0 | I194: 0 | J194: 0 | K194: 0 | L194: 0 | M194: 0 | N194: 0 | O194: 0 | Q194: 0 | R194: 0 | S194: 0 | T194: 0 | U194: 0 | V194: 0 | W194: 0 | X194: 0 | Y194: 0 | Z194: 0 | AA194: 0 | AB194: 0 | AC194: 0
A195: 1185 | B195: Teacher - Custom 4.5 | C195: 0 | D195: 0 | E195: 0 | F195: 0 | G195: 0 | H195: 0 | I195: 0 | J195: 0 | K195: 0 | L195: 0 | M195: 0 | N195: 0 | O195: 0 | Q195: 0 | R195: 0 | S195: 0 | T195: 0 | U195: 0 | V195: 0 | W195: 0 | X195: 0 | Y195: 0 | Z195: 0 | AA195: 0 | AB195: 0 | AC195: 0
A196: 1190 | B196: Teacher - Custom 5 | C196: 0 | D196: 0 | E196: 0 | F196: 0 | G196: 0 | H196: 0 | I196: 0 | J196: 0 | K196: 0 | L196: 0 | M196: 0 | N196: 0 | O196: 0 | Q196: 0 | R196: 0 | S196: 0 | T196: 0 | U196: 0 | V196: 0 | W196: 0 | X196: 0 | Y196: 0 | Z196: 0 | AA196: 0 | AB196: 0 | AC196: 0
A197: 1200 | B197: Certificated Pupil Support Salaries | C197: 25447.5 | D197: 31020.23 | E197: 32138.84 | F197: 23891.52 | G197: 23058.18 | H197: 23444.23 | I197: 23512.73 | J197: 31512.7 | K197: 28846.08 | L197: 28846.08 | M197: 24368.15392 | N197: 24256.61837 | O197: 320342.8623 | Q197: 26566.41667 | R197: 26566.41667 | S197: 26566.41667 | T197: 26566.41667 | U197: 26566.41667 | V197: 26566.41667 | W197: 26566.41667 | X197: 26566.41667 | Y197: 26566.41667 | Z197: 26566.41667 | AA197: 26566.41667 | AB197: 31185.41667 | AC197: 323416
A198: 1201 | B198: Certificated Pupil Support Salaries - Custom 1 | C198: 0 | D198: 0 | E198: 0 | F198: 0 | G198: 0 | H198: 0 | I198: 0 | J198: 0 | K198: 0 | L198: 0 | M198: 0 | N198: 0 | O198: 0 | Q198: 0 | R198: 0 | S198: 0 | T198: 0 | U198: 0 | V198: 0 | W198: 0 | X198: 0 | Y198: 0 | Z198: 0 | AA198: 0 | AB198: 0 | AC198: 0
A199: 1202 | B199: Certificated Pupil Support Salaries - Custom 2 | C199: 0 | D199: 0 | E199: 0 | F199: 0 | G199: 0 | H199: 0 | I199: 0 | J199: 0 | K199: 0 | L199: 0 | M199: 0 | N199: 0 | O199: 0 | Q199: 0 | R199: 0 | S199: 0 | T199: 0 | U199: 0 | V199: 0 | W199: 0 | X199: 0 | Y199: 0 | Z199: 0 | AA199: 0 | AB199: 0 | AC199: 0
A200: 1203 | B200: Certificated Pupil Support Salaries - Custom 3 | C200: 0 | D200: 0 | E200: 0 | F200: 0 | G200: 0 | H200: 0 | I200: 0 | J200: 0 | K200: 0 | L200: 0 | M200: 0 | N200: 0 | O200: 0 | Q200: 0 | R200: 0 | S200: 0 | T200: 0 | U200: 0 | V200: 0 | W200: 0 | X200: 0 | Y200: 0 | Z200: 0 | AA200: 0 | AB200: 0 | AC200: 0
A201: 1204 | B201: Certificated Pupil Support Salaries - Custom 4 | C201: 0 | D201: 0 | E201: 0 | F201: 0 | G201: 0 | H201: 0 | I201: 0 | J201: 0 | K201: 0 | L201: 0 | M201: 0 | N201: 0 | O201: 0 | Q201: 0 | R201: 0 | S201: 0 | T201: 0 | U201: 0 | V201: 0 | W201: 0 | X201: 0 | Y201: 0 | Z201: 0 | AA201: 0 | AB201: 0 | AC201: 0
A202: 1205 | B202: Certificated Pupil Support Salaries - Custom 5 | C202: 0 | D202: 0 | E202: 0 | F202: 0 | G202: 0 | H202: 0 | I202: 0 | J202: 0 | K202: 0 | L202: 0 | M202: 0 | N202: 0 | O202: 0 | Q202: 0 | R202: 0 | S202: 0 | T202: 0 | U202: 0 | V202: 0 | W202: 0 | X202: 0 | Y202: 0 | Z202: 0 | AA202: 0 | AB202: 0 | AC202: 0
A203: 1300 | B203: Certificated Supervisor & Administrator Salaries | C203: 38843.26 | D203: 39143.26 | E203: 39143.27 | F203: 39143.28 | G203: 39143.28 | H203: 39145.65 | I203: 39434.94 | J203: 39184.92 | K203: 39184.94 | L203: 39184.94 | M203: 35724.01 | N203: 45481.82 | O203: 472757.57 | Q203: 42717.5 | R203: 42717.5 | S203: 42717.5 | T203: 42717.5 | U203: 42717.5 | V203: 42717.5 | W203: 42717.5 | X203: 42717.5 | Y203: 42717.5 | Z203: 42717.5 | AA203: 42717.5 | AB203: 49356.5 | AC203: 519249
A204: 1311 | B204: Cert Admin - Custom 1 | C204: 0 | D204: 0 | E204: 0 | F204: 0 | G204: 0 | H204: 0 | I204: 0 | J204: 0 | K204: 0 | L204: 0 | M204: 0 | N204: 0 | O204: 0 | Q204: 0 | R204: 0 | S204: 0 | T204: 0 | U204: 0 | V204: 0 | W204: 0 | X204: 0 | Y204: 0 | Z204: 0 | AA204: 0 | AB204: 0 | AC204: 0
A205: 1322 | B205: Cert Admin - Custom 2 | C205: 0 | D205: 0 | E205: 0 | F205: 0 | G205: 0 | H205: 0 | I205: 0 | J205: 0 | K205: 0 | L205: 0 | M205: 0 | N205: 0 | O205: 0 | Q205: 0 | R205: 0 | S205: 0 | T205: 0 | U205: 0 | V205: 0 | W205: 0 | X205: 0 | Y205: 0 | Z205: 0 | AA205: 0 | AB205: 0 | AC205: 0
A206: 1333 | B206: Cert Admin - Custom 3 | C206: 0 | D206: 0 | E206: 0 | F206: 0 | G206: 0 | H206: 0 | I206: 0 | J206: 0 | K206: 0 | L206: 0 | M206: 0 | N206: 0 | O206: 0 | Q206: 0 | R206: 0 | S206: 0 | T206: 0 | U206: 0 | V206: 0 | W206: 0 | X206: 0 | Y206: 0 | Z206: 0 | AA206: 0 | AB206: 0 | AC206: 0
A207: 1340 | B207: Cert Admin - Custom 4 | C207: 0 | D207: 0 | E207: 0 | F207: 0 | G207: 0 | H207: 0 | I207: 0 | J207: 0 | K207: 0 | L207: 0 | M207: 0 | N207: 0 | O207: 0 | Q207: 0 | R207: 0 | S207: 0 | T207: 0 | U207: 0 | V207: 0 | W207: 0 | X207: 0 | Y207: 0 | Z207: 0 | AA207: 0 | AB207: 0 | AC207: 0
A208: 1350 | B208: Cert Admin - Custom 5 | C208: 0 | D208: 0 | E208: 0 | F208: 0 | G208: 0 | H208: 0 | I208: 0 | J208: 0 | K208: 0 | L208: 0 | M208: 0 | N208: 0 | O208: 0 | Q208: 0 | R208: 0 | S208: 0 | T208: 0 | U208: 0 | V208: 0 | W208: 0 | X208: 0 | Y208: 0 | Z208: 0 | AA208: 0 | AB208: 0 | AC208: 0
A209: 1400 | B209: Certificated Bonuses & Extra Pay | C209: 0 | D209: 0 | E209: 0 | F209: 0 | G209: 0 | H209: 0 | I209: 0 | J209: 0 | K209: 0 | L209: 0 | M209: 0 | N209: 0 | O209: 0 | Q209: 0 | R209: 0 | S209: 0 | T209: 0 | U209: 0 | V209: 0 | W209: 0 | X209: 0 | Y209: 0 | Z209: 0 | AA209: 0 | AB209: 0 | AC209: 0
A210: 1401 | B210: Certificated bonuses - Custom 1 | C210: 0 | D210: 0 | E210: 0 | F210: 0 | G210: 0 | H210: 0 | I210: 0 | J210: 0 | K210: 0 | L210: 0 | M210: 0 | N210: 0 | O210: 0 | Q210: 0 | R210: 0 | S210: 0 | T210: 0 | U210: 0 | V210: 0 | W210: 0 | X210: 0 | Y210: 0 | Z210: 0 | AA210: 0 | AB210: 0 | AC210: 0
A211: 1402 | B211: Certificated bonuses - Custom 2 | C211: 0 | D211: 0 | E211: 0 | F211: 0 | G211: 0 | H211: 0 | I211: 0 | J211: 0 | K211: 0 | L211: 0 | M211: 0 | N211: 0 | O211: 0 | Q211: 0 | R211: 0 | S211: 0 | T211: 0 | U211: 0 | V211: 0 | W211: 0 | X211: 0 | Y211: 0 | Z211: 0 | AA211: 0 | AB211: 0 | AC211: 0
A212: 1403 | B212: Certificated bonuses - Custom 3 | C212: 0 | D212: 0 | E212: 0 | F212: 0 | G212: 0 | H212: 0 | I212: 0 | J212: 0 | K212: 0 | L212: 0 | M212: 0 | N212: 0 | O212: 0 | Q212: 0 | R212: 0 | S212: 0 | T212: 0 | U212: 0 | V212: 0 | W212: 0 | X212: 0 | Y212: 0 | Z212: 0 | AA212: 0 | AB212: 0 | AC212: 0
A213: 1404 | B213: Certificated bonuses - Custom 4 | C213: 0 | D213: 0 | E213: 0 | F213: 0 | G213: 0 | H213: 0 | I213: 0 | J213: 0 | K213: 0 | L213: 0 | M213: 0 | N213: 0 | O213: 0 | Q213: 0 | R213: 0 | S213: 0 | T213: 0 | U213: 0 | V213: 0 | W213: 0 | X213: 0 | Y213: 0 | Z213: 0 | AA213: 0 | AB213: 0 | AC213: 0
A214: 1405 | B214: Certificated bonuses - Custom 5 | C214: 0 | D214: 0 | E214: 0 | F214: 0 | G214: 0 | H214: 0 | I214: 0 | J214: 0 | K214: 0 | L214: 0 | M214: 0 | N214: 0 | O214: 0 | Q214: 0 | R214: 0 | S214: 0 | T214: 0 | U214: 0 | V214: 0 | W214: 0 | X214: 0 | Y214: 0 | Z214: 0 | AA214: 0 | AB214: 0 | AC214: 0
A215: 1900 | B215: Certificated Other Salaries | C215: 1298.26 | D215: 1298.26 | E215: 1298.26 | F215: 1298.26 | G215: 1298.26 | H215: 1298.26 | I215: 1298.26 | J215: 1298.26 | K215: 1298.26 | L215: 1298.26 | M215: 1298.15 | N215: 1522.78 | O215: 15803.53 | Q215: 0 | R215: 0 | S215: 0 | T215: 0 | U215: 0 | V215: 0 | W215: 0 | X215: 0 | Y215: 0 | Z215: 0 | AA215: 0 | AB215: 225 | AC215: 225
A216: 1904 | B216: Other Cert - After School | C216: 0 | D216: 0 | E216: 0 | F216: 0 | G216: 0 | H216: 0 | I216: 0 | J216: 0 | K216: 0 | L216: 0 | M216: 0 | N216: 0 | O216: 0 | Q216: 0 | R216: 0 | S216: 0 | T216: 0 | U216: 0 | V216: 0 | W216: 0 | X216: 0 | Y216: 0 | Z216: 0 | AA216: 0 | AB216: 0 | AC216: 0
A217: 1910 | B217: Other Cert - Preschool | C217: 0 | D217: 0 | E217: 0 | F217: 0 | G217: 0 | H217: 0 | I217: 0 | J217: 0 | K217: 0 | L217: 0 | M217: 0 | N217: 0 | O217: 0 | Q217: 0 | R217: 0 | S217: 0 | T217: 0 | U217: 0 | V217: 0 | W217: 0 | X217: 0 | Y217: 0 | Z217: 0 | AA217: 0 | AB217: 0 | AC217: 0
... 333 more rows

Sheet Payroll
A1: ARISE High School
A2: 2021-22
A3: As of Apr FY2022
A5: Payroll | G5: Year 1 | Q5: Year 2 | AA5: Year 3 | AK5: Year 4 | AU5: Year 5
G6: 2021-22 | Q6: 2022-23 | AA6: 2023-24 | AK6: 2024-25 | AU6: 2025-26
G7: Total Paid | L7: FTE Count | Q7: Total Paid | V7: FTE Count | AA7: Total Paid | AF7: FTE Count | AK7: Total Paid | AP7: FTE Count | AU7: Total Paid
A8: Head Count | B8: Last Name | C8: First Name | D8: Position Name | E8: Budget Category | G8: Total Paid | H8: Total Paid | J8: Total | L8: FTE Count | M8: FTE Count | O8: Total | Q8: Total Paid | R8: Total Paid | T8: Total | V8: FTE Count | W8: FTE Count | Y8: Total | AA8: Total Paid | AB8: Total Paid | AD8: Total | AF8: FTE Count | AG8: FTE Count | AI8: Total | AK8: Total Paid | AL8: Total Paid | AN8: Total | AP8: FTE Count | AQ8: FTE Count | AS8: Total | AU8: Total Paid | AW8: Total
A9: Click here and insert LID
A10: 1 | B10: Aguilar | C10: Armando | D10: Custodian | E10: 2930 | H10: 11378.29912 | J10: =SUM(G10:I10) -> 11378.29912 | M10: 0.284457478 | O10: =SUM(L10:N10) -> 0.284457478 | R10: 0 | T10: =SUM(Q10:S10) -> 0 | W10: 0 | Y10: =SUM(V10:X10) -> 0 | AB10: 0 | AD10: =SUM(AA10:AC10) -> 0 | AG10: 0 | AI10: =SUM(AF10:AH10) -> 0 | AL10: 0 | AN10: =SUM(AK10:AM10) -> 0 | AQ10: 0 | AS10: =SUM(AP10:AR10) -> 0 | AW10: =SUM(AV10:AV10) -> 0
A11: 1 | B11: Ahmed | C11: Hiba | D11: Dean of Language | E11: 1100 | H11: 70148 | J11: 70148 | M11: 1 | O11: 1 | R11: 93021 | T11: 93021 | W11: 1 | Y11: 1 | AB11: 95811.63 | AD11: 95811.63 | AG11: 1 | AI11: 1 | AL11: 98685.9789 | AN11: 98685.9789 | AQ11: 1 | AS11: 1 | AW11: =SUM(AV11:AV11) -> 0
A12: 1 | B12: Albert | C12: Brittany | D12: 12th Grade Academic Counselor | E12: 2200 | H12: 58500 | J12: 58500 | M12: 1 | O12: 1 | R12: 65800 | T12: 65800 | W12: 1 | Y12: 1 | AB12: 67774 | AD12: 67774 | AG12: 1 | AI12: 1 | AL12: 69807.22 | AN12: 69807.22 | AQ12: 1 | AS12: 1 | AW12: =SUM(AV12:AV12) -> 0
A13: 1 | B13: Alvarez | C13: Martha | D13: Science Teacher | E13: 1100 | H13: 58075 | J13: 58075 | M13: 1 | O13: 1 | R13: 71569 | T13: 71569 | W13: 1 | Y13: 1 | AB13: 73716.07 | AD13: 73716.07 | AG13: 1 | AI13: 1 | AL13: 75927.5521 | AN13: 75927.5521 | AQ13: 1 | AS13: 1 | AW13: =SUM(AV13:AV13) -> 0
A14: 1 | B14: Arrellano | C14: Martha Dias de | D14: Breakfast Coordinator | E14: 2928 | H14: 21600 | J14: 21600 | M14: 0.5 | O14: 0.5 | R14: 17304 | T14: 17304 | W14: 0.375 | Y14: 0.375 | AB14: 17823.12 | AD14: 17823.12 | AG14: 0.375 | AI14: 0.375 | AL14: 18357.8136 | AN14: 18357.8136 | AQ14: 0.375 | AS14: 0.375 | AW14: =SUM(AV14:AV14) -> 0
A15: 1 | B15: Arrellano | C15: Martha Dias de | D15: Custodian | E15: 2930 | H15: 32400 | J15: 32400 | M15: 0.75 | O15: 0.75 | R15: 0 | T15: 0 | W15: 0 | Y15: 0 | AB15: 0 | AD15: 0 | AG15: 0 | AI15: 0 | AL15: 0 | AN15: 0 | AQ15: 0 | AS15: 0 | AW15: =SUM(AV15:AV15) -> 0
A16: 1 | B16: Arrellano | C16: Martha Diaz de | D16: Admin Assistant | E16: 2200 | H16: 0 | J16: 0 | M16: 0 | O16: 0 | R16: 37192 | T16: 37192 | W16: 1 | Y16: 1 | AB16: 38307.76 | AD16: 38307.76 | AG16: 1 | AI16: 1 | AL16: 39456.9928 | AN16: 39456.9928 | AQ16: 1 | AS16: 1 | AW16: =SUM(AV16:AV16) -> 0
A17: 1 | B17: Bata | C17: Gabriella | D17: Electives Teacher | E17: 1100 | H17: 86000 | J17: 86000 | M17: 1 | O17: 1 | R17: 0 | T17: 0 | W17: 0 | Y17: 0 | AB17: 0 | AD17: 0 | AG17: 0 | AI17: 0 | AL17: 0 | AN17: 0 | AQ17: 0 | AS17: 0 | AW17: =SUM(AV17:AV17) -> 0
A18: 1 | B18: Bermudez | C18: Katherine | D18: 9th Grade Academic Counselor | E18: 2200 | H18: 58000 | J18: 58000 | M18: 1 | O18: 1 | R18: 69285 | T18: 69285 | W18: 1 | Y18: 1 | AB18: 71363.55 | AD18: 71363.55 | AG18: 1 | AI18: 1 | AL18: 73504.4565 | AN18: 73504.4565 | AQ18: 1 | AS18: 1 | AW18: =SUM(AV18:AV18) -> 0
A19: 1 | B19: Caplan | C19: Arianna | D19: Dean of School Culture | E19: 1300 | H19: 93254 | J19: 93254 | M19: 1 | O19: 1 | R19: 104619 | T19: 104619 | W19: 1 | Y19: 1 | AB19: 107757.57 | AD19: 107757.57 | AG19: 1 | AI19: 1 | AL19: 110990.2971 | AN19: 110990.2971 | AQ19: 1 | AS19: 1 | AW19: =SUM(AV19:AV19) -> 0
A20: 1 | B20: Carrasco-Zanini | C20: Emiliano | D20: Spanish | E20: 1100 | H20: 80134 | J20: 80134 | M20: 1 | O20: 1 | R20: 0 | T20: 0 | W20: 0 | Y20: 0 | AB20: 0 | AD20: 0 | AG20: 0 | AI20: 0 | AL20: 0 | AN20: 0 | AQ20: 0 | AS20: 0 | AW20: =SUM(AV20:AV20) -> 0
A21: 1 | B21: Castro | C21: Armando | D21: PE/RSP Teacher | E21: 1148 | H21: 69794.72141 | J21: 69794.72141 | M21: 0.9970674487 | O21: 0.9970674487 | R21: 77465 | T21: 77465 | W21: 1 | Y21: 1 | AB21: 79788.95 | AD21: 79788.95 | AG21: 1 | AI21: 1 | AL21: 82182.6185 | AN21: 82182.6185 | AQ21: 1 | AS21: 1 | AW21: =SUM(AV21:AV21) -> 0
A22: 1 | B22: Cervantes | C22: Oscar | D22: Soccer Coach | E22: 2100 | H22: 15000 | J22: 15000 | M22: 0.25 | O22: 0.25 | R22: 0 | T22: 0 | W22: 0 | Y22: 0 | AB22: 0 | AD22: 0 | AG22: 0 | AI22: 0 | AL22: 0 | AN22: 0 | AQ22: 0 | AS22: 0 | AW22: =SUM(AV22:AV22) -> 0
A23: 1 | B23: Collignon | C23: Robyn | D23: Director of SPED | E23: 1148 | H23: 95469 | J23: 95469 | M23: 1 | O23: 1 | R23: 99910 | T23: 99910 | W23: 1 | Y23: 1 | AB23: 102907.3 | AD23: 102907.3 | AG23: 1 | AI23: 1 | AL23: 105994.519 | AN23: 105994.519 | AQ23: 1 | AS23: 1 | AW23: =SUM(AV23:AV23) -> 0
A24: 1 | B24: Doan | C24: Thy | D24: Math | E24: 1100 | H24: 76179 | J24: 76179 | M24: 1 | O24: 1 | R24: 0 | T24: 0 | W24: 0 | Y24: 0 | AB24: 0 | AD24: 0 | AG24: 0 | AI24: 0 | AL24: 0 | AN24: 0 | AQ24: 0 | AS24: 0 | AW24: =SUM(AV24:AV24) -> 0
A25: 1 | B25: Figueroa | C25: Adalberto | D25: Student Enrichment Director | E25: 1200 | H25: 60769.44444 | J25: 60769.44444 | M25: 0.9277777778 | O25: 0.9277777778 | R25: 0 | T25: 0 | W25: 0 | Y25: 0 | AB25: 0 | AD25: 0 | AG25: 0 | AI25: 0 | AL25: 0 | AN25: 0 | AQ25: 0 | AS25: 0 | AW25: =SUM(AV25:AV25) -> 0
A26: 1 | B26: Fully | C26: Melissa | D26: Dean of Literacy | E26: 1200 | H26: 84450 | J26: 84450 | M26: 1 | O26: 1 | R26: 105354 | T26: 105354 | W26: 1 | Y26: 1 | AB26: 108514.62 | AD26: 108514.62 | AG26: 1 | AI26: 1 | AL26: 111770.0586 | AN26: 111770.0586 | AQ26: 1 | AS26: 1 | AW26: =SUM(AV26:AV26) -> 0
A27: 1 | B27: Gandiaga | C27: Karla | D27: Head of School | E27: 1300 | H27: 159393 | J27: 159393 | M27: 1 | O27: 1 | R27: 180000 | T27: 180000 | W27: 1 | Y27: 1 | AB27: 185400 | AD27: 185400 | AG27: 1 | AI27: 1 | AL27: 190962 | AN27: 190962 | AQ27: 1 | AS27: 1 | AW27: =SUM(AV27:AV27) -> 0
A28: 1 | B28: Gardner | C28: Trevor | D28: Director of Teaching and Learning | E28: 1300 | H28: 107236 | J28: 107236 | M28: 1 | O28: 1 | R28: 119274 | T28: 119274 | W28: 1 | Y28: 1 | AB28: 122852.22 | AD28: 122852.22 | AG28: 1 | AI28: 1 | AL28: 126537.7866 | AN28: 126537.7866 | AQ28: 1 | AS28: 1 | AW28: =SUM(AV28:AV28) -> 0
A29: 1 | B29: Gerosa | C29: Jennifer | D29: English Teacher | E29: 1100 | H29: 0 | J29: 0 | M29: 0 | O29: 0 | R29: 79571 | T29: 79571 | W29: 1 | Y29: 1 | AB29: 81958.13 | AD29: 81958.13 | AG29: 1 | AI29: 1 | AL29: 84416.8739 | AN29: 84416.8739 | AQ29: 1 | AS29: 1 | AW29: =SUM(AV29:AV29) -> 0
A30: 1 | B30: Henion | C30: Zoe | D30: Health | E30: 1100 | H30: 0 | J30: 0 | M30: 0 | O30: 0 | R30: 81286 | T30: 81286 | W30: 1 | Y30: 1 | AB30: 83724.58 | AD30: 83724.58 | AG30: 1 | AI30: 1 | AL30: 86236.3174 | AN30: 86236.3174 | AQ30: 1 | AS30: 1 | AW30: =SUM(AV30:AV30) -> 0
A31: 1 | B31: Hernandez | C31: Jeanette | D31: Academic Counselor | E31: 1148 | H31: 39985.87366 | J31: 39985.87366 | M31: 0.7612007168 | O31: 0.7612007168 | R31: 55075 | T31: 55075 | W31: 1 | Y31: 1 | AB31: 56727.25 | AD31: 56727.25 | AG31: 1 | AI31: 1 | AL31: 58429.0675 | AN31: 58429.0675 | AQ31: 1 | AS31: 1 | AW31: =SUM(AV31:AV31) -> 0
A32: 1 | B32: Hernandez | C32: Natalie | D32: College and Career Counselor | E32: 2200 | H32: 35020 | J32: 35020 | M32: 0.5 | O32: 0.5 | R32: 0 | T32: 0 | W32: 0 | Y32: 0 | AB32: 0 | AD32: 0 | AG32: 0 | AI32: 0 | AL32: 0 | AN32: 0 | AQ32: 0 | AS32: 0 | AW32: =SUM(AV32:AV32) -> 0
A33: 1 | B33: Hubl | C33: Mallory | D33: CTE Science Teacher | E33: 1100 | H33: 72500 | J33: 72500 | M33: 1 | O33: 1 | R33: 85601 | T33: 85601 | W33: 1 | Y33: 1 | AB33: 88169.03 | AD33: 88169.03 | AG33: 1 | AI33: 1 | AL33: 90814.1009 | AN33: 90814.1009 | AQ33: 1 | AS33: 1 | AW33: =SUM(AV33:AV33) -> 0
A34: 1 | B34: Iglesias | C34: Melissa | D34: Attendance and Student Engagement Coordinator | E34: 2400 | H34: 0 | J34: 0 | M34: 0 | O34: 0 | R34: 62830 | T34: 62830 | W34: 1 | Y34: 1 | AB34: 64714.9 | AD34: 64714.9 | AG34: 1 | AI34: 1 | AL34: 66656.347 | AN34: 66656.347 | AQ34: 1 | AS34: 1 | AW34: =SUM(AV34:AV34) -> 0
A35: 1 | B35: Iniguez | C35: Elvira | D35: Business and Ops Manager | E35: 2300 | H35: 90375 | J35: 90375 | M35: 1 | O35: 1 | R35: 0 | T35: 0 | W35: 0 | Y35: 0 | AB35: 0 | AD35: 0 | AG35: 0 | AI35: 0 | AL35: 0 | AN35: 0 | AQ35: 0 | AS35: 0 | AW35: =SUM(AV35:AV35) -> 0
A36: 1 | B36: Johnson | C36: Summer | D36: CTE Intermediate Public and Community Health and Chemistry Teacher | E36: 1100 | H36: 0 | J36: 0 | M36: 0 | O36: 0 | R36: 68286 | T36: 68286 | W36: 1 | Y36: 1 | AB36: 70334.58 | AD36: 70334.58 | AG36: 1 | AI36: 1 | AL36: 72444.6174 | AN36: 72444.6174 | AQ36: 1 | AS36: 1 | AW36: =SUM(AV36:AV36) -> 0
A37: 1 | B37: Kahn | C37: Gabriel | D37: Teacher - Statistics | E37: 1100 | H37: 65920 | J37: 65920 | M37: 1 | O37: 1 | R37: 73645 | T37: 73645 | W37: 1 | Y37: 1 | AB37: 75854.35 | AD37: 75854.35 | AG37: 1 | AI37: 1 | AL37: 78129.9805 | AN37: 78129.9805 | AQ37: 1 | AS37: 1 | AW37: =SUM(AV37:AV37) -> 0
A38: 1 | B38: Kurzfeld | C38: Gena | D38: Math | E38: 1100 | H38: 108041 | J38: 108041 | M38: 1 | O38: 1 | R38: 0 | T38: 0 | W38: 0 | Y38: 0 | AB38: 0 | AD38: 0 | AG38: 0 | AI38: 0 | AL38: 0 | AN38: 0 | AQ38: 0 | AS38: 0 | AW38: =SUM(AV38:AV38) -> 0
A39: 1 | B39: Lay | C39: Rubys | D39: Math Teacher | E39: 1100 | H39: 85380 | J39: 85380 | M39: 1 | O39: 1 | R39: 93250 | T39: 93250 | W39: 1 | Y39: 1 | AB39: 96047.5 | AD39: 96047.5 | AG39: 1 | AI39: 1 | AL39: 98928.925 | AN39: 98928.925 | AQ39: 1 | AS39: 1 | AW39: =SUM(AV39:AV39) -> 0
A40: 1 | B40: Leindecker | C40: Dana | D40: Data Coordinator | E40: 1900 | H40: 15579 | J40: 15579 | M40: 0.25 | O40: 0.25 | R40: 0 | T40: 0 | W40: 0 | Y40: 0 | AB40: 0 | AD40: 0 | AG40: 0 | AI40: 0 | AL40: 0 | AN40: 0 | AQ40: 0 | AS40: 0 | AW40: =SUM(AV40:AV40) -> 0
A41: 1 | B41: Liguori | C41: Patricia | D41: Science Coach | E41: 1100 | H41: 74850 | J41: 74850 | M41: 1 | O41: 1 | R41: 0 | T41: 0 | W41: 0 | Y41: 0 | AB41: 0 | AD41: 0 | AG41: 0 | AI41: 0 | AL41: 0 | AN41: 0 | AQ41: 0 | AS41: 0 | AW41: =SUM(AV41:AV41) -> 0
A42: 1 | B42: Lujano | C42: Lucy | D42: Director of Operations | E42: 2400 | H42: 0 | J42: 0 | M42: 0 | O42: 0 | R42: 82875 | T42: 82875 | W42: 1 | Y42: 1 | AB42: 85361.25 | AD42: 85361.25 | AG42: 1 | AI42: 1 | AL42: 87922.0875 | AN42: 87922.0875 | AQ42: 1 | AS42: 1 | AW42: =SUM(AV42:AV42) -> 0
A43: 1 | B43: Mahoney | C43: Jay | D43: Social Science | E43: 1100 | H43: 52530 | J43: 52530 | M43: 1 | O43: 1 | R43: 61653 | T43: 61653 | W43: 1 | Y43: 1 | AB43: 63502.59 | AD43: 63502.59 | AG43: 1 | AI43: 1 | AL43: 65407.6677 | AN43: 65407.6677 | AQ43: 1 | AS43: 1 | AW43: =SUM(AV43:AV43) -> 0
A44: 1 | B44: Marquez | C44: Daniela | D44: Pathway Student Support Coordinator | E44: 2200 | H44: 54000 | J44: 54000 | M44: 1 | O44: 1 | R44: 70165 | T44: 70165 | W44: 1 | Y44: 1 | AB44: 72269.95 | AD44: 72269.95 | AG44: 1 | AI44: 1 | AL44: 74438.0485 | AN44: 74438.0485 | AQ44: 1 | AS44: 1 | AW44: =SUM(AV44:AV44) -> 0
A45: 1 | B45: Matejkova | C45: Daniela | D45: RSP Teacher | E45: 1148 | H45: 0 | J45: 0 | M45: 0 | O45: 0 | R45: 59500 | T45: 59500 | W45: 1 | Y45: 1 | AB45: 61285 | AD45: 61285 | AG45: 1 | AI45: 1 | AL45: 63123.55 | AN45: 63123.55 | AQ45: 1 | AS45: 1 | AW45: =SUM(AV45:AV45) -> 0
A46: 1 | B46: Maxwell | C46: Daniel | D46: Pathway Coordinator | E46: 2200 | H46: 78538 | J46: 78538 | M46: 1 | O46: 1 | R46: 90000 | T46: 90000 | W46: 1 | Y46: 1 | AB46: 92700 | AD46: 92700 | AG46: 1 | AI46: 1 | AL46: 95481 | AN46: 95481 | AQ46: 1 | AS46: 1 | AW46: =SUM(AV46:AV46) -> 0
A47: 1 | B47: Mora-Hernandez | C47: Estella | D47: Custodian | E47: 2930 | H47: 32800 | J47: 32800 | M47: 1 | O47: 1 | R47: 42848 | T47: 42848 | W47: 1 | Y47: 1 | AB47: 44133.44 | AD47: 44133.44 | AG47: 1 | AI47: 1 | AL47: 45457.4432 | AN47: 45457.4432 | AQ47: 1 | AS47: 1 | AW47: =SUM(AV47:AV47) -> 0
A48: 1 | B48: Morales Serrano | C48: Viridiana | D48: Workbase Liaison | E48: 2400 | H48: 57165 | J48: 57165 | M48: 1 | O48: 1 | R48: 58710 | T48: 58710 | W48: 1 | Y48: 1 | AB48: 60471.3 | AD48: 60471.3 | AG48: 1 | AI48: 1 | AL48: 62285.439 | AN48: 62285.439 | AQ48: 1 | AS48: 1 | AW48: =SUM(AV48:AV48) -> 0
A49: 1 | B49: Moreno | C49: Gustavo | D49: Public and Community Health | E49: 1100 | H49: 54500 | J49: 54500 | M49: 1 | O49: 1 | R49: 70037 | T49: 70037 | W49: 1 | Y49: 1 | AB49: 72138.11 | AD49: 72138.11 | AG49: 1 | AI49: 1 | AL49: 74302.2533 | AN49: 74302.2533 | AQ49: 1 | AS49: 1 | AW49: =SUM(AV49:AV49) -> 0
A50: 1 | B50: Moreno | C50: Nataly | D50: Pathway Student Support | E50: 1200 | H50: 58000 | J50: 58000 | M50: 1 | O50: 1 | R50: 65405 | T50: 65405 | W50: 1 | Y50: 1 | AB50: 67367.15 | AD50: 67367.15 | AG50: 1 | AI50: 1 | AL50: 69388.1645 | AN50: 69388.1645 | AQ50: 1 | AS50: 1 | AW50: =SUM(AV50:AV50) -> 0
A51: 1 | B51: Moya Fajardo | C51: Aleah | D51: Building Sub | E51: 1100 | H51: 55500 | J51: 55500 | M51: 1 | O51: 1 | R51: 0 | T51: 0 | W51: 0 | Y51: 0 | AB51: 0 | AD51: 0 | AG51: 0 | AI51: 0 | AL51: 0 | AN51: 0 | AQ51: 0 | AS51: 0 | AW51: =SUM(AV51:AV51) -> 0
A52: 1 | B52: Moya Fajardo | C52: Aleah | D52: Senior Administrative Assistant | E52: 2400 | H52: 0 | J52: 0 | M52: 0 | O52: 0 | R52: 68495 | T52: 68495 | W52: 1 | Y52: 1 | AB52: 70549.85 | AD52: 70549.85 | AG52: 1 | AI52: 1 | AL52: 72666.3455 | AN52: 72666.3455 | AQ52: 1 | AS52: 1 | AW52: =SUM(AV52:AV52) -> 0
A53: 1 | B53: Navarro | C53: Velia | D53: Parent Coordinator | E53: 2400 | H53: 60255 | J53: 60255 | M53: 1 | O53: 1 | R53: 0 | T53: 0 | W53: 0 | Y53: 0 | AB53: 0 | AD53: 0 | AG53: 0 | AI53: 0 | AL53: 0 | AN53: 0 | AQ53: 0 | AS53: 0 | AW53: =SUM(AV53:AV53) -> 0
A54: 1 | B54: Nguyen | C54: Hannah | D54: Social Studies, Ethnic Studies | E54: 1100 | H54: 81199 | J54: 81199 | M54: 1 | O54: 1 | R54: 0 | T54: 0 | W54: 0 | Y54: 0 | AB54: 0 | AD54: 0 | AG54: 0 | AI54: 0 | AL54: 0 | AN54: 0 | AQ54: 0 | AS54: 0 | AW54: =SUM(AV54:AV54) -> 0
A55: 1 | B55: Nixon | C55: Izzie (Christina) | D55: Art | E55: 1100 | H55: 72568 | J55: 72568 | M55: 1 | O55: 1 | R55: 77422 | T55: 77422 | W55: 1 | Y55: 1 | AB55: 79744.66 | AD55: 79744.66 | AG55: 1 | AI55: 1 | AL55: 82136.9998 | AN55: 82136.9998 | AQ55: 1 | AS55: 1 | AW55: =SUM(AV55:AV55) -> 0
A56: 1 | B56: Pelayo | C56: Olga | D56: Admin Asst | E56: 2400 | H56: 29166.66667 | J56: 29166.66667 | M56: 0.5833333333 | O56: 0.5833333333 | R56: 0 | T56: 0 | W56: 0 | Y56: 0 | AB56: 0 | AD56: 0 | AG56: 0 | AI56: 0 | AL56: 0 | AN56: 0 | AQ56: 0 | AS56: 0 | AW56: =SUM(AV56:AV56) -> 0
A57: 1 | B57: Rice | C57: Molly | D57: Dean of Science | E57: 1100 | H57: 0 | J57: 0 | M57: 0 | O57: 0 | R57: 81625 | T57: 81625 | W57: 1 | Y57: 1 | AB57: 84073.75 | AD57: 84073.75 | AG57: 1 | AI57: 1 | AL57: 86595.9625 | AN57: 86595.9625 | AQ57: 1 | AS57: 1 | AW57: =SUM(AV57:AV57) -> 0
A58: 1 | B58: Rios-Doran | C58: Marbella | D58: Spanish Teacher | E58: 1100 | H58: 66435 | J58: 66435 | M58: 1 | O58: 1 | R58: 77691 | T58: 77691 | W58: 1 | Y58: 1 | AB58: 80021.73 | AD58: 80021.73 | AG58: 1 | AI58: 1 | AL58: 82422.3819 | AN58: 82422.3819 | AQ58: 1 | AS58: 1 | AW58: =SUM(AV58:AV58) -> 0
A59: 1 | B59: Robles | C59: Isabel | D59: Math Teacher | E59: 1100 | H59: 0 | J59: 0 | M59: 0 | O59: 0 | R59: 63143 | T59: 63143 | W59: 1 | Y59: 1 | AB59: 65037.29 | AD59: 65037.29 | AG59: 1 | AI59: 1 | AL59: 66988.4087 | AN59: 66988.4087 | AQ59: 1 | AS59: 1 | AW59: =SUM(AV59:AV59) -> 0
A60: 1 | B60: Rodriguez | C60: Michael | D60: Math Teacher | E60: 1100 | H60: 0 | J60: 0 | M60: 0 | O60: 0 | R60: 71714 | T60: 71714 | W60: 1 | Y60: 1 | AB60: 73865.42 | AD60: 73865.42 | AG60: 1 | AI60: 1 | AL60: 76081.3826 | AN60: 76081.3826 | AQ60: 1 | AS60: 1 | AW60: =SUM(AV60:AV60) -> 0
A61: 1 | B61: Roiz | C61: Anabelen | D61: Special Education Support | E61: 2400 | H61: 44000 | J61: 44000 | M61: 1 | O61: 1 | R61: 58195 | T61: 58195 | W61: 1 | Y61: 1 | AB61: 59940.85 | AD61: 59940.85 | AG61: 1 | AI61: 1 | AL61: 61739.0755 | AN61: 61739.0755 | AQ61: 1 | AS61: 1 | AW61: =SUM(AV61:AV61) -> 0
A62: 1 | B62: Rosen | C62: Ben | D62: English | E62: 1100 | H62: 87962 | J62: 87962 | M62: 1 | O62: 1 | R62: 89198 | T62: 89198 | W62: 1 | Y62: 1 | AB62: 91873.94 | AD62: 91873.94 | AG62: 1 | AI62: 1 | AL62: 94630.1582 | AN62: 94630.1582 | AQ62: 1 | AS62: 1 | AW62: =SUM(AV62:AV62) -> 0
A63: 1 | B63: Rozeville | C63: Chris | D63: Dean of STEM | E63: 1300 | H63: 106236 | J63: 106236 | M63: 1 | O63: 1 | R63: 108717 | T63: 108717 | W63: 1 | Y63: 1 | AB63: 111978.51 | AD63: 111978.51 | AG63: 1 | AI63: 1 | AL63: 115337.8653 | AN63: 115337.8653 | AQ63: 1 | AS63: 1 | AW63: =SUM(AV63:AV63) -> 0
A64: 1 | B64: Sampang | C64: Rafaello | D64: Math - Numeracy and Freshman Success | E64: 1100 | H64: 65285 | J64: 65285 | M64: 1 | O64: 1 | R64: 0 | T64: 0 | W64: 0 | Y64: 0 | AB64: 0 | AD64: 0 | AG64: 0 | AI64: 0 | AL64: 0 | AN64: 0 | AQ64: 0 | AS64: 0 | AW64: =SUM(AV64:AV64) -> 0
A65: 1 | B65: Sanchez | C65: Alejandra | D65: English | E65: 1100 | H65: 57165 | J65: 57165 | M65: 1 | O65: 1 | R65: 58710 | T65: 58710 | W65: 1 | Y65: 1 | AB65: 60471.3 | AD65: 60471.3 | AG65: 1 | AI65: 1 | AL65: 62285.439 | AN65: 62285.439 | AQ65: 1 | AS65: 1 | AW65: =SUM(AV65:AV65) -> 0
A66: 1 | B66: Sanchez | C66: Ana (Gaby) | D66: Special Ed Admin | E66: 2400 | H66: 70405 | J66: 70405 | M66: 1 | O66: 1 | R66: 74577 | T66: 74577 | W66: 1 | Y66: 1 | AB66: 76814.31 | AD66: 76814.31 | AG66: 1 | AI66: 1 | AL66: 79118.7393 | AN66: 79118.7393 | AQ66: 1 | AS66: 1 | AW66: =SUM(AV66:AV66) -> 0
A67: 1 | B67: Sanchez | C67: Ana (Gaby) | D67: Ops | E67: 2300 | H67: 0 | J67: 0 | M67: 0 | O67: 0 | R67: 0 | T67: 0 | W67: 0 | Y67: 0 | AB67: 0 | AD67: 0 | AG67: 0 | AI67: 0 | AL67: 0 | AN67: 0 | AQ67: 0 | AS67: 0 | AW67: =SUM(AV67:AV67) -> 0
A68: 1 | B68: Segal | C68: Adam | D68: Math Teacher | E68: 1100 | H68: 0 | J68: 0 | M68: 0 | O68: 0 | R68: 67286 | T68: 67286 | W68: 1 | Y68: 1 | AB68: 69304.58 | AD68: 69304.58 | AG68: 1 | AI68: 1 | AL68: 71383.7174 | AN68: 71383.7174 | AQ68: 1 | AS68: 1 | AW68: =SUM(AV68:AV68) -> 0
A69: 1 | B69: Shotiveyaratana | C69: Kim | D69: English | E69: 1100 | H69: 70684 | J69: 70684 | M69: 1 | O69: 1 | R69: 0 | T69: 0 | W69: 0 | Y69: 0 | AB69: 0 | AD69: 0 | AG69: 0 | AI69: 0 | AL69: 0 | AN69: 0 | AQ69: 0 | AS69: 0 | AW69: =SUM(AV69:AV69) -> 0
A70: 1 | B70: Suarez | C70: Carlos | D70: Social Studies | E70: 1100 | H70: 53560 | J70: 53560 | M70: 1 | O70: 1 | R70: 62683 | T70: 62683 | W70: 1 | Y70: 1 | AB70: 64563.49 | AD70: 64563.49 | AG70: 1 | AI70: 1 | AL70: 66500.3947 | AN70: 66500.3947 | AQ70: 1 | AS70: 1 | AW70: =SUM(AV70:AV70) -> 0
A71: 1 | B71: Suter-Donaldson | C71: Jamen | D71: School Culture Coordinator | E71: 1200 | H71: 29591.39785 | J71: 29591.39785 | M71: 0.4623655914 | O71: 0.4623655914 | R71: 72075 | T71: 72075 | W71: 1 | Y71: 1 | AB71: 74237.25 | AD71: 74237.25 | AG71: 1 | AI71: 1 | AL71: 76464.3675 | AN71: 76464.3675 | AQ71: 1 | AS71: 1 | AW71: =SUM(AV71:AV71) -> 0
A72: 1 | B72: Takiff | C72: Matt | D72: Music | E72: 1100 | H72: 43775 | J72: 43775 | M72: 0.85 | O72: 0.85 | R72: 39783.75 | T72: 39783.75 | W72: 0.75 | Y72: 0.75 | AB72: 40977.2625 | AD72: 40977.2625 | AG72: 0.75 | AI72: 0.75 | AL72: 42206.58037 | AN72: 42206.58037 | AQ72: 0.75 | AS72: 0.75 | AW72: =SUM(AV72:AV72) -> 0
A73: 1 | B73: Thayer | C73: Elizabeth | D73: Physics of Engineering Teacher | E73: 1100 | H73: 0 | J73: 0 | M73: 0 | O73: 0 | R73: 60429 | T73: 60429 | W73: 1 | Y73: 1 | AB73: 62241.87 | AD73: 62241.87 | AG73: 1 | AI73: 1 | AL73: 64109.1261 | AN73: 64109.1261 | AQ73: 1 | AS73: 1 | AW73: =SUM(AV73:AV73) -> 0
A74: 1 | B74: Torres | C74: Susana | D74: Administrative Assistant | E74: 2400 | H74: 0 | J74: =SUM(G74:I74) -> 0 | M74: 0 | O74: =SUM(L74:N74) -> 0 | R74: 41200 | T74: =SUM(Q74:S74) -> 41200 | W74: 1 | Y74: =SUM(V74:X74) -> 1 | AB74: 42436 | AD74: =SUM(AA74:AC74) -> 42436 | AG74: 1 | AI74: =SUM(AF74:AH74) -> 1 | AL74: 43709.08 | AN74: =SUM(AK74:AM74) -> 43709.08 | AQ74: 1 | AS74: =SUM(AP74:AR74) -> 1 | AW74: =SUM(AV74:AV74) -> 0
A75: 1 | B75: Trujillo | C75: Liliana | D75: Social Studies, Ethnic Studies | E75: 1100 | H75: 0 | J75: 0 | M75: 0 | O75: 0 | R75: 93214 | T75: 93214 | W75: 1 | Y75: 1 | AB75: 96010.42 | AD75: 96010.42 | AG75: 1 | AI75: 1 | AL75: 98890.7326 | AN75: 98890.7326 | AQ75: 1 | AS75: 1 | AW75: =SUM(AV75:AV75) -> 0
A76: 1 | B76: Vasquez | C76: Alejandro | D76: Coach and Athletic Director | E76: 2200 | H76: 0 | J76: 0 | M76: 0 | O76: 0 | R76: 0 | T76: 0 | W76: 0 | Y76: 0 | AB76: 0 | AD76: 0 | AG76: 0 | AI76: 0 | AL76: 0 | AN76: 0 | AQ76: 0 | AS76: 0 | AW76: =SUM(AV76:AV76) -> 0
A77: 1 | B77: Warren | C77: John | D77: Dean of Community Based Learning | E77: 2200 | H77: 25846.33333 | J77: 25846.33333 | M77: 0.3533333333 | O77: 0.3533333333 | R77: 89996 | T77: 89996 | W77: 1 | Y77: 1 | AB77: 92695.88 | AD77: 92695.88 | AG77: 1 | AI77: 1 | AL77: 95476.7564 | AN77: 95476.7564 | AQ77: 1 | AS77: 1 | AW77: =SUM(AV77:AV77) -> 0
A78: 1 | B78: West | C78: Ashley | D78: Social Studies Teacher | E78: 1100 | H78: 83756 | J78: 83756 | M78: 1 | O78: 1 | R78: 70092 | T78: 70092 | W78: 1 | Y78: 1 | AB78: 72194.76 | AD78: 72194.76 | AG78: 1 | AI78: 1 | AL78: 74360.6028 | AN78: 74360.6028 | AQ78: 1 | AS78: 1 | AW78: =SUM(AV78:AV78) -> 0
A79: 1 | B79: Wilcox | C79: Danny | D79: Clinician | E79: 2200 | H79: 0 | J79: 0 | M79: 0 | O79: 0 | R79: 60800 | T79: 60800 | W79: 1 | Y79: 1 | AB79: 62624 | AD79: 62624 | AG79: 1 | AI79: 1 | AL79: 64502.72 | AN79: 64502.72 | AQ79: 1 | AS79: 1 | AW79: =SUM(AV79:AV79) -> 0
A80: 1 | B80: Willhite | C80: Alana | D80: Psychologist | E80: 2200 | H80: 13909.09091 | J80: 13909.09091 | M80: 0.1363636364 | O80: 0.1363636364 | R80: 0 | T80: 0 | W80: 0 | Y80: 0 | AB80: 0 | AD80: 0 | AG80: 0 | AI80: 0 | AL80: 0 | AN80: 0 | AQ80: 0 | AS80: 0 | AW80: =SUM(AV80:AV80) -> 0
A81: 1 | B81: Willis | C81: Jonathan | D81: Dean of Restorative Justice | E81: 1200 | H81: 65148 | J81: 65148 | M81: 1 | O81: 1 | R81: 75963 | T81: 75963 | W81: 1 | Y81: 1 | AB81: 78241.89 | AD81: 78241.89 | AG81: 1 | AI81: 1 | AL81: 80589.1467 | AN81: 80589.1467 | AQ81: 1 | AS81: 1 | AW81: =SUM(AV81:AV81) -> 0
A82: 1 | B82: Wooley | C82: Graham | D82: Science | E82: 1100 | H82: 55620 | J82: 55620 | M82: 1 | O82: 1 | R82: 0 | T82: 0 | W82: 0 | Y82: 0 | AB82: 0 | AD82: 0 | AG82: 0 | AI82: 0 | AL82: 0 | AN82: 0 | AQ82: 0 | AS82: 0 | AW82: =SUM(AV82:AV82) -> 0
A83: 1 | B83: FY23 EL and Literacy Teacher | D83: EL and Literacy Teacher | E83: 1100 | H83: 0 | J83: 0 | M83: 0 | O83: 0 | R83: 56429 | T83: 56429 | W83: 1 | Y83: 1 | AB83: 58121.87 | AD83: 58121.87 | AG83: 1 | AI83: 1 | AL83: 59865.5261 | AN83: 59865.5261 | AQ83: 1 | AS83: 1 | AW83: =SUM(AV83:AV83) -> 0
A84: 1 | B84: FY23 Substitute Teacher | D84: Substitute Teacher | E84: 1100 | H84: 0 | J84: 0 | M84: 0 | O84: 0 | R84: 18400 | T84: 18400 | W84: 0.4 | Y84: 0.4 | AB84: 18952 | AD84: 18952 | AG84: 0.4 | AI84: 0.4 | AL84: 19520.56 | AN84: 19520.56 | AQ84: 0.4 | AS84: 0.4 | AW84: =SUM(AV84:AV84) -> 0
A85: 1 | B85: Cappels | C85: Jimmy | D85: RSP Teacher | E85: 1148 | H85: 17416.66667 | J85: 17416.66667 | M85: 0.2878787879 | O85: 0.2878787879 | R85: 0 | T85: 0 | W85: 0 | Y85: 0 | AB85: 0 | AD85: 0 | AG85: 0 | AI85: 0 | AL85: 0 | AN85: 0 | AQ85: 0 | AS85: 0 | AW85: =SUM(AV85:AV85) -> 0
A86: 1 | B86: Soriano-Ponce | C86: Karina | D86: Freshman Success | E86: 1100 | H86: 0 | J86: 0 | M86: 0 | O86: 0 | R86: 0 | T86: 0 | W86: 0 | Y86: 0 | AB86: 0 | AD86: 0 | AG86: 0 | AI86: 0 | AL86: 0 | AN86: 0 | AQ86: 0 | AS86: 0 | AW86: =SUM(AV86:AV86) -> 0
A87: 1 | B87: Soriano-Ponce | C87: Karina | D87: Pathway Academic Counselor Director | E87: 1200 | H87: 17765 | J87: 17765 | M87: 0.2083333333 | O87: 0.2083333333 | R87: 0 | T87: 0 | W87: 0 | Y87: 0 | AB87: 0 | AD87: 0 | AG87: 0 | AI87: 0 | AL87: 0 | AN87: 0 | AQ87: 0 | AS87: 0 | AW87: =SUM(AV87:AV87) -> 0
A88: 1 | B88: Sanchez | C88: Ana (Gaby) | D88: Sr. Administrative Assistant | E88: 2400 | H88: 0 | J88: 0 | M88: 0 | O88: 0 | R88: 0 | T88: 0 | W88: 0 | Y88: 0 | AB88: 0 | AD88: 0 | AG88: 0 | AI88: 0 | AL88: 0 | AN88: 0 | AQ88: 0 | AS88: 0 | AW88: =SUM(AV88:AV88) -> 0
A89: 1 | B89: Prado | C89: Victor | D89: Student Intervention & Support Coordinator | E89: 2100 | H89: 0 | J89: 0 | M89: 0 | O89: 0 | R89: 0 | T89: 0 | W89: 0 | Y89: 0 | AB89: 0 | AD89: 0 | AG89: 0 | AI89: 0 | AL89: 0 | AN89: 0 | AQ89: 0 | AS89: 0 | AW89: =SUM(AV89:AV89) -> 0
A90: 1 | B90: McCafferty | C90: Kara | D90: Clinician | E90: 2100 | H90: 0 | J90: 0 | M90: 0 | O90: 0 | R90: 0 | T90: 0 | W90: 0 | Y90: 0 | AB90: 0 | AD90: 0 | AG90: 0 | AI90: 0 | AL90: 0 | AN90: 0 | AQ90: 0 | AS90: 0 | AW90: =SUM(AV90:AV90) -> 0
A91: 1 | B91: Montano | C91: Leslie | D91: Director of Operations | E91: 2300 | H91: 15451.50278 | J91: 15451.50278 | M91: 0.1861111111 | O91: 0.1861111111 | R91: 0 | T91: 0 | W91: 0 | Y91: 0 | AB91: 0 | AD91: 0 | AG91: 0 | AI91: 0 | AL91: 0 | AN91: 0 | AQ91: 0 | AS91: 0 | AW91: =SUM(AV91:AV91) -> 0
A92: 1 | B92: Martinez | C92: Magdalene | D92: Clinician | E92: 2200 | H92: 27621.72043 | J92: 27621.72043 | M92: 0.4623655914 | O92: 0.4623655914 | R92: 0 | T92: 0 | W92: 0 | Y92: 0 | AB92: 0 | AD92: 0 | AG92: 0 | AI92: 0 | AL92: 0 | AN92: 0 | AQ92: 0 | AS92: 0 | AW92: =SUM(AV92:AV92) -> 0
J93: 0 | O93: 0 | T93: 0 | Y93: 0 | AD93: 0 | AI93: 0 | AN93: 0 | AS93: 0 | AW93: =SUM(AV93:AV93) -> 0
A95: Payroll Total | G95: =SUBTOTAL(9,G9:G94) -> 0 | H95: =SUBTOTAL(9,H9:H94) -> 2333686.326 | I95: =SUBTOTAL(9,I9:I94) -> 0 | J95: =SUBTOTAL(9,J9:J94) -> 2333686.326 | L95: =SUBTOTAL(9,L9:L94) -> 0 | M95: =SUBTOTAL(9,M9:M94) -> 32.92396709 | N95: =SUBTOTAL(9,N9:N94) -> 0 | O95: =SUBTOTAL(9,O9:O94) -> 32.92396709 | Q95: =SUBTOTAL(9,Q9:Q94) -> 0 | R95: =SUBTOTAL(9,R9:R94) -> 3879367.75 | S95: =SUBTOTAL(9,S9:S94) -> 0 | T95: =SUBTOTAL(9,T9:T94) -> 3879367.75 | V95: =SUBTOTAL(9,V9:V94) -> 0 | W95: =SUBTOTAL(9,W9:W94) -> 51.525 | X95: =SUBTOTAL(9,X9:X94) -> 0 | Y95: =SUBTOTAL(9,Y9:Y94) -> 51.525 | AA95: =SUBTOTAL(9,AA9:AA94) -> 0 | AB95: =SUBTOTAL(9,AB9:AB94) -> 3995748.783 | AC95: =SUBTOTAL(9,AC9:AC94) -> 0 | AD95: =SUBTOTAL(9,AD9:AD94) -> 3995748.783 | AF95: =SUBTOTAL(9,AF9:AF94) -> 0 | AG95: =SUBTOTAL(9,AG9:AG94) -> 51.525 | AH95: =SUBTOTAL(9,AH9:AH94) -> 0 | AI95: =SUBTOTAL(9,AI9:AI94) -> 51.525 | AK95: =SUBTOTAL(9,AK9:AK94) -> 0 | AL95: =SUBTOTAL(9,AL9:AL94) -> 4115621.246 | AM95: =SUBTOTAL(9,AM9:AM94) -> 0 | AN95: =SUBTOTAL(9,AN9:AN94) -> 4115621.246 | AP95: =SUBTOTAL(9,AP9:AP94) -> 0 | AQ95: =SUBTOTAL(9,AQ9:AQ94) -> 51.525 | AR95: =SUBTOTAL(9,AR9:AR94) -> 0 | AS95: =SUBTOTAL(9,AS9:AS94) -> 51.525 | AU95: =SUBTOTAL(9,AU9:AU94) -> 0 | AV95: =SUBTOTAL(9,AV9:AV94) -> 0 | AW95: =SUBTOTAL(9,AW9:AW94) -> 0
J96: =SUM(G96:I96) -> 0 | O96: =SUM(L96:N96) -> 0 | T96: =SUM(Q96:S96) -> 0 | Y96: =SUM(V96:X96) -> 0 | AD96: =SUM(AA96:AC96) -> 0 | AI96: =SUM(AF96:AH96) -> 0 | AN96: =SUM(AK96:AM96) -> 0 | AS96: =SUM(AP96:AR96) -> 0 | AW96: =SUM(AV96:AV96) -> 0
A98: Extra Pay
A99: Description | E99: Budget Category
J101: =SUM(G101:I101) -> 0 | T101: =SUM(Q101:S101) -> 0 | AD101: =SUM(AA101:AC101) -> 0 | AN101: =SUM(AK101:AM101) -> 0
A103: Click here and insert LID
A104: One-time stipends | E104: 1100 | H104: 0 | J104: =SUM(G104:I104) -> 0 | R104: 0 | T104: =SUM(Q104:S104) -> 0 | AB104: 0 | AD104: =SUM(AA104:AC104) -> 0 | AL104: 0 | AN104: =SUM(AK104:AM104) -> 0
A105: Tas (Academic Mentor) | E105: 2100 | H105: 510000 | J105: 510000 | R105: 640000 | T105: 640000 | AB105: 400000 | AD105: 400000 | AL105: 300000 | AN105: 300000
A106: Moving Allowance | E106: 2200 | H106: 5000 | J106: 5000 | R106: 5150 | T106: 5150 | AB106: 5304.5 | AD106: 5304.5 | AL106: 5463.635 | AN106: 5463.635
A107: Pathway development | E107: 1100 | H107: 7000 | J107: 7000 | R107: 7210 | T107: 7210 | AB107: 7426.3 | AD107: 7426.3 | AL107: 7649.089 | AN107: 7649.089
A108: Summer Bridge | E108: 1100 | H108: 21630 | J108: 21630 | R108: 22278.9 | T108: 22278.9 | AB108: 22947.267 | AD108: 22947.267 | AL108: 23635.68501 | AN108: 23635.68501
A109: Measure G1 | E109: 1100 | H109: 24310.51 | J109: 24310.51 | R109: 24311 | T109: 24311 | AB109: 24311 | AD109: 24311 | AL109: 24311 | AN109: 24311
A110: Measure G1 | E110: 1148 | H110: 1916.82 | J110: 1916.82 | R110: 1917 | T110: 1917 | AB110: 1917 | AD110: 1917 | AL110: 1917 | AN110: 1917
A111: Measure G1 | E111: 1200 | H111: 4619.02 | J111: 4619.02 | R111: 4619 | T111: 4619 | AB111: 4619 | AD111: 4619 | AL111: 4619 | AN111: 4619
A112: Measure G1 | E112: 1300 | H112: 6638.57 | J112: 6638.57 | R112: 6639 | T112: 6639 | AB112: 6639 | AD112: 6639 | AL112: 6639 | AN112: 6639
A113: Measure G1 | E113: 1900 | H113: 224.53 | J113: 224.53 | R113: 225 | T113: 225 | AB113: 225 | AD113: 225 | AL113: 225 | AN113: 225
A114: Measure G1 | E114: 2100 | H114: 6371.07 | J114: 6371.07 | R114: 6371 | T114: 6371 | AB114: 6371 | AD114: 6371 | AL114: 6371 | AN114: 6371
A115: Measure G1 | E115: 2200 | H115: 5274.55 | J115: 5274.55 | R115: 5275 | T115: 5275 | AB115: 5275 | AD115: 5275 | AL115: 5275 | AN115: 5275
A116: Measure G1 | E116: 2300 | H116: 1120.17 | J116: 1120.17 | R116: 1120 | T116: 1120 | AB116: 1120 | AD116: 1120 | AL116: 1120 | AN116: 1120
A117: Measure G1 | E117: 2400 | H117: 2398.77 | J117: 2398.77 | R117: 2399 | T117: 2399 | AB117: 2399 | AD117: 2399 | AL117: 2399 | AN117: 2399
A118: Measure G1 | E118: 2930 | H118: 873.1 | J118: 873.1 | R118: 873 | T118: 873 | AB118: 873 | AD118: 873 | AL118: 873 | AN118: 873
A119: Additional TAs | E119: 2100 | H119: 0 | J119: 0 | R119: 0 | T119: 0 | AB119: 0 | AD119: 0 | AL119: 0 | AN119: 0
J120: 0 | T120: 0 | AD120: 0 | AN120: 0
A122: Extra Pay Total | G122: =SUM(G103:G121) -> 0 | H122: =SUM(H103:H121) -> 597377.11 | I122: =SUM(I103:I121) -> 0 | J122: =SUM(J103:J121) -> 597377.11 | Q122: =SUM(Q103:Q121) -> 0 | R122: =SUM(R103:R121) -> 728387.9 | S122: =SUM(S103:S121) -> 0 | T122: =SUM(T103:T121) -> 728387.9 | AA122: =SUM(AA103:AA121) -> 0 | AB122: =SUM(AB103:AB121) -> 489427.067 | AC122: =SUM(AC103:AC121) -> 0 | AD122: =SUM(AD103:AD121) -> 489427.067 | AK122: =SUM(AK103:AK121) -> 0 | AL122: =SUM(AL103:AL121) -> 390497.409 | AM122: =SUM(AM103:AM121) -> 0 | AN122: =SUM(AN103:AN121) -> 390497.409 | AU122: =SUM(AU103:AU121) -> 0
A124: Certificated Summary
J125: =SUM(G125:I125) -> 0 | O125: =SUM(L125:N125) -> 0 | T125: =SUM(Q125:S125) -> 0 | Y125: =SUM(V125:X125) -> 0 | AD125: =SUM(AA125:AC125) -> 0 | AI125: =SUM(AF125:AH125) -> 0 | AN125: =SUM(AK125:AM125) -> 0 | AS125: =SUM(AP125:AR125) -> 0 | AW125: =SUM(AV125:AV125) -> 0
A126: 1000 | B126: Certificated Salaries | J126: 0 | O126: 0 | T126: 0 | Y126: 0 | AD126: 0 | AI126: 0 | AN126: 0 | AS126: 0 | AW126: =SUM(AV126:AV126) -> 0
A127: 1100 | B127: Teachers Salaries | H127: 1730706.51 | J127: 1730706.51 | M127: 23.85 | O127: 23.85 | R127: 1819538.65 | T127: 1819538.65 | W127: 24.15 | Y127: 24.15 | AB127: 1873395.479 | AD127: 1873395.479 | AG127: 24.15 | AI127: 24.15 | AL127: 1928868.014 | AN127: 1928868.014 | AQ127: 24.15 | AS127: 24.15 | AW127: =SUM(AV127:AV127) -> 0
A128: 1101 | B128: Teacher - Stipends | H128: 0 | J128: 0 | M128: 0 | O128: 0 | R128: 0 | T128: 0 | W128: 0 | Y128: 0 | AB128: 0 | AD128: 0 | AG128: 0 | AI128: 0 | AL128: 0 | AN128: 0 | AQ128: 0 | AS128: 0 | AW128: =SUM(AV128:AV128) -> 0
A129: 1102 | B129: Teachers - Extra Duty Hours | H129: 0 | J129: 0 | M129: 0 | O129: 0 | R129: 0 | T129: 0 | W129: 0 | Y129: 0 | AB129: 0 | AD129: 0 | AG129: 0 | AI129: 0 | AL129: 0 | AN129: 0 | AQ129: 0 | AS129: 0 | AW129: =SUM(AV129:AV129) -> 0
A130: 1103 | B130: Teacher - Substitute Pay | H130: 0 | J130: 0 | M130: 0 | O130: 0 | R130: 0 | T130: 0 | W130: 0 | Y130: 0 | AB130: 0 | AD130: 0 | AG130: 0 | AI130: 0 | AL130: 0 | AN130: 0 | AQ130: 0 | AS130: 0 | AW130: =SUM(AV130:AV130) -> 0
A131: 1111 | B131: Teacher - Elective | H131: 0 | J131: 0 | M131: 0 | O131: 0 | R131: 0 | T131: 0 | W131: 0 | Y131: 0 | AB131: 0 | AD131: 0 | AG131: 0 | AI131: 0 | AL131: 0 | AN131: 0 | AQ131: 0 | AS131: 0 | AW131: =SUM(AV131:AV131) -> 0
A132: 1145 | B132: Teacher - Independent Study | H132: 0 | J132: 0 | M132: 0 | O132: 0 | R132: 0 | T132: 0 | W132: 0 | Y132: 0 | AB132: 0 | AD132: 0 | AG132: 0 | AI132: 0 | AL132: 0 | AN132: 0 | AQ132: 0 | AS132: 0 | AW132: =SUM(AV132:AV132) -> 0
A133: 1148 | B133: Teacher - Special Ed | H133: 224583.0817 | J133: 224583.0817 | M133: 3.046146953 | O133: 3.046146953 | R133: 293867 | T133: 293867 | W133: 4 | Y133: 4 | AB133: 302625.5 | AD133: 302625.5 | AG133: 4 | AI133: 4 | AL133: 311646.755 | AN133: 311646.755 | AQ133: 4 | AS133: 4 | AW133: =SUM(AV133:AV133) -> 0
A134: 1150 | B134: Teacher - Custom 1 | H134: 0 | J134: 0 | M134: 0 | O134: 0 | R134: 0 | T134: 0 | W134: 0 | Y134: 0 | AB134: 0 | AD134: 0 | AG134: 0 | AI134: 0 | AL134: 0 | AN134: 0 | AQ134: 0 | AS134: 0 | AW134: =SUM(AV134:AV134) -> 0
A135: 1155 | B135: Teacher - Custom 1.5 | H135: 0 | J135: 0 | M135: 0 | O135: 0 | R135: 0 | T135: 0 | W135: 0 | Y135: 0 | AB135: 0 | AD135: 0 | AG135: 0 | AI135: 0 | AL135: 0 | AN135: 0 | AQ135: 0 | AS135: 0 | AW135: =SUM(AV135:AV135) -> 0
A136: 1160 | B136: Teacher - Custom 2 | H136: 0 | J136: 0 | M136: 0 | O136: 0 | R136: 0 | T136: 0 | W136: 0 | Y136: 0 | AB136: 0 | AD136: 0 | AG136: 0 | AI136: 0 | AL136: 0 | AN136: 0 | AQ136: 0 | AS136: 0 | AW136: =SUM(AV136:AV136) -> 0
A137: 1165 | B137: Teacher - Custom 2.5 | H137: 0 | J137: 0 | M137: 0 | O137: 0 | R137: 0 | T137: 0 | W137: 0 | Y137: 0 | AB137: 0 | AD137: 0 | AG137: 0 | AI137: 0 | AL137: 0 | AN137: 0 | AQ137: 0 | AS137: 0 | AW137: =SUM(AV137:AV137) -> 0
A138: 1170 | B138: Teacher - Custom 3 | H138: 0 | J138: 0 | M138: 0 | O138: 0 | R138: 0 | T138: 0 | W138: 0 | Y138: 0 | AB138: 0 | AD138: 0 | AG138: 0 | AI138: 0 | AL138: 0 | AN138: 0 | AQ138: 0 | AS138: 0 | AW138: =SUM(AV138:AV138) -> 0
A139: 1175 | B139: Teacher - Custom 3.5 | H139: 0 | J139: 0 | M139: 0 | O139: 0 | R139: 0 | T139: 0 | W139: 0 | Y139: 0 | AB139: 0 | AD139: 0 | AG139: 0 | AI139: 0 | AL139: 0 | AN139: 0 | AQ139: 0 | AS139: 0 | AW139: =SUM(AV139:AV139) -> 0
A140: 1180 | B140: Teacher - Custom 4 | H140: 0 | J140: 0 | M140: 0 | O140: 0 | R140: 0 | T140: 0 | W140: 0 | Y140: 0 | AB140: 0 | AD140: 0 | AG140: 0 | AI140: 0 | AL140: 0 | AN140: 0 | AQ140: 0 | AS140: 0 | AW140: =SUM(AV140:AV140) -> 0
A141: 1185 | B141: Teacher - Custom 4.5 | H141: 0 | J141: 0 | M141: 0 | O141: 0 | R141: 0 | T141: 0 | W141: 0 | Y141: 0 | AB141: 0 | AD141: 0 | AG141: 0 | AI141: 0 | AL141: 0 | AN141: 0 | AQ141: 0 | AS141: 0 | AW141: =SUM(AV141:AV141) -> 0
A142: 1190 | B142: Teacher - Custom 5 | H142: 0 | J142: 0 | M142: 0 | O142: 0 | R142: 0 | T142: 0 | W142: 0 | Y142: 0 | AB142: 0 | AD142: 0 | AG142: 0 | AI142: 0 | AL142: 0 | AN142: 0 | AQ142: 0 | AS142: 0 | AW142: =SUM(AV142:AV142) -> 0
A143: 1200 | B143: Certificated Pupil Support Salaries | H143: 320342.8623 | J143: 320342.8623 | M143: 4.598476703 | O143: 4.598476703 | R143: 323416 | T143: 323416 | W143: 4 | Y143: 4 | AB143: 332979.91 | AD143: 332979.91 | AG143: 4 | AI143: 4 | AL143: 342830.7373 | AN143: 342830.7373 | AQ143: 4 | AS143: 4 | AW143: =SUM(AV143:AV143) -> 0
A144: 1201 | B144: Certificated Pupil Support Salaries - Custom 1 | H144: 0 | J144: 0 | M144: 0 | O144: 0 | R144: 0 | T144: 0 | W144: 0 | Y144: 0 | AB144: 0 | AD144: 0 | AG144: 0 | AI144: 0 | AL144: 0 | AN144: 0 | AQ144: 0 | AS144: 0 | AW144: =SUM(AV144:AV144) -> 0
A145: 1202 | B145: Certificated Pupil Support Salaries - Custom 2 | H145: 0 | J145: 0 | M145: 0 | O145: 0 | R145: 0 | T145: 0 | W145: 0 | Y145: 0 | AB145: 0 | AD145: 0 | AG145: 0 | AI145: 0 | AL145: 0 | AN145: 0 | AQ145: 0 | AS145: 0 | AW145: =SUM(AV145:AV145) -> 0
A146: 1203 | B146: Certificated Pupil Support Salaries - Custom 3 | H146: 0 | J146: 0 | M146: 0 | O146: 0 | R146: 0 | T146: 0 | W146: 0 | Y146: 0 | AB146: 0 | AD146: 0 | AG146: 0 | AI146: 0 | AL146: 0 | AN146: 0 | AQ146: 0 | AS146: 0 | AW146: =SUM(AV146:AV146) -> 0
A147: 1204 | B147: Certificated Pupil Support Salaries - Custom 4 | H147: 0 | J147: 0 | M147: 0 | O147: 0 | R147: 0 | T147: 0 | W147: 0 | Y147: 0 | AB147: 0 | AD147: 0 | AG147: 0 | AI147: 0 | AL147: 0 | AN147: 0 | AQ147: 0 | AS147: 0 | AW147: =SUM(AV147:AV147) -> 0
A148: 1205 | B148: Certificated Pupil Support Salaries - Custom 5 | H148: 0 | J148: 0 | M148: 0 | O148: 0 | R148: 0 | T148: 0 | W148: 0 | Y148: 0 | AB148: 0 | AD148: 0 | AG148: 0 | AI148: 0 | AL148: 0 | AN148: 0 | AQ148: 0 | AS148: 0 | AW148: =SUM(AV148:AV148) -> 0
A149: 1300 | B149: Certificated Supervisor & Administrator Salaries | H149: 472757.57 | J149: 472757.57 | M149: 4 | O149: 4 | R149: 519249 | T149: 519249 | W149: 4 | Y149: 4 | AB149: 534627.3 | AD149: 534627.3 | AG149: 4 | AI149: 4 | AL149: 550466.949 | AN149: 550466.949 | AQ149: 4 | AS149: 4 | AW149: =SUM(AV149:AV149) -> 0
A150: 1311 | B150: Cert Admin - Custom 1 | H150: 0 | J150: 0 | M150: 0 | O150: 0 | R150: 0 | T150: 0 | W150: 0 | Y150: 0 | AB150: 0 | AD150: 0 | AG150: 0 | AI150: 0 | AL150: 0 | AN150: 0 | AQ150: 0 | AS150: 0 | AW150: =SUM(AV150:AV150) -> 0
A151: 1322 | B151: Cert Admin - Custom 2 | H151: 0 | J151: 0 | M151: 0 | O151: 0 | R151: 0 | T151: 0 | W151: 0 | Y151: 0 | AB151: 0 | AD151: 0 | AG151: 0 | AI151: 0 | AL151: 0 | AN151: 0 | AQ151: 0 | AS151: 0 | AW151: =SUM(AV151:AV151) -> 0
A152: 1333 | B152: Cert Admin - Custom 3 | H152: 0 | J152: 0 | M152: 0 | O152: 0 | R152: 0 | T152: 0 | W152: 0 | Y152: 0 | AB152: 0 | AD152: 0 | AG152: 0 | AI152: 0 | AL152: 0 | AN152: 0 | AQ152: 0 | AS152: 0 | AW152: =SUM(AV152:AV152) -> 0
A153: 1340 | B153: Cert Admin - Custom 4 | H153: 0 | J153: 0 | M153: 0 | O153: 0 | R153: 0 | T153: 0 | W153: 0 | Y153: 0 | AB153: 0 | AD153: 0 | AG153: 0 | AI153: 0 | AL153: 0 | AN153: 0 | AQ153: 0 | AS153: 0 | AW153: =SUM(AV153:AV153) -> 0
A154: 1350 | B154: Cert Admin - Custom 5 | H154: 0 | J154: 0 | M154: 0 | O154: 0 | R154: 0 | T154: 0 | W154: 0 | Y154: 0 | AB154: 0 | AD154: 0 | AG154: 0 | AI154: 0 | AL154: 0 | AN154: 0 | AQ154: 0 | AS154: 0 | AW154: =SUM(AV154:AV154) -> 0
A155: 1400 | B155: Certificated Bonuses & Extra Pay | H155: 0 | J155: 0 | M155: 0 | O155: 0 | R155: 0 | T155: 0 | W155: 0 | Y155: 0 | AB155: 0 | AD155: 0 | AG155: 0 | AI155: 0 | AL155: 0 | AN155: 0 | AQ155: 0 | AS155: 0 | AW155: =SUM(AV155:AV155) -> 0
A156: 1401 | B156: Certificated bonuses - Custom 1 | H156: 0 | J156: 0 | M156: 0 | O156: 0 | R156: 0 | T156: 0 | W156: 0 | Y156: 0 | AB156: 0 | AD156: 0 | AG156: 0 | AI156: 0 | AL156: 0 | AN156: 0 | AQ156: 0 | AS156: 0 | AW156: =SUM(AV156:AV156) -> 0
A157: 1402 | B157: Certificated bonuses - Custom 2 | H157: 0 | J157: 0 | M157: 0 | O157: 0 | R157: 0 | T157: 0 | W157: 0 | Y157: 0 | AB157: 0 | AD157: 0 | AG157: 0 | AI157: 0 | AL157: 0 | AN157: 0 | AQ157: 0 | AS157: 0 | AW157: =SUM(AV157:AV157) -> 0
A158: 1403 | B158: Certificated bonuses - Custom 3 | H158: 0 | J158: 0 | M158: 0 | O158: 0 | R158: 0 | T158: 0 | W158: 0 | Y158: 0 | AB158: 0 | AD158: 0 | AG158: 0 | AI158: 0 | AL158: 0 | AN158: 0 | AQ158: 0 | AS158: 0 | AW158: =SUM(AV158:AV158) -> 0
A159: 1404 | B159: Certificated bonuses - Custom 4 | H159: 0 | J159: 0 | M159: 0 | O159: 0 | R159: 0 | T159: 0 | W159: 0 | Y159: 0 | AB159: 0 | AD159: 0 | AG159: 0 | AI159: 0 | AL159: 0 | AN159: 0 | AQ159: 0 | AS159: 0 | AW159: =SUM(AV159:AV159) -> 0
A160: 1405 | B160: Certificated bonuses - Custom 5 | H160: 0 | J160: 0 | M160: 0 | O160: 0 | R160: 0 | T160: 0 | W160: 0 | Y160: 0 | AB160: 0 | AD160: 0 | AG160: 0 | AI160: 0 | AL160: 0 | AN160: 0 | AQ160: 0 | AS160: 0 | AW160: =SUM(AV160:AV160) -> 0
A161: 1900 | B161: Certificated Other Salaries | H161: 15803.53 | J161: 15803.53 | M161: 0.25 | O161: 0.25 | R161: 225 | T161: 225 | W161: 0 | Y161: 0 | AB161: 225 | AD161: 225 | AG161: 0 | AI161: 0 | AL161: 225 | AN161: 225 | AQ161: 0 | AS161: 0 | AW161: =SUM(AV161:AV161) -> 0
A162: 1904 | B162: Other Cert - After School | H162: 0 | J162: 0 | M162: 0 | O162: 0 | R162: 0 | T162: 0 | W162: 0 | Y162: 0 | AB162: 0 | AD162: 0 | AG162: 0 | AI162: 0 | AL162: 0 | AN162: 0 | AQ162: 0 | AS162: 0 | AW162: =SUM(AV162:AV162) -> 0
A163: 1910 | B163: Other Cert - Preschool | H163: 0 | J163: 0 | M163: 0 | O163: 0 | R163: 0 | T163: 0 | W163: 0 | Y163: 0 | AB163: 0 | AD163: 0 | AG163: 0 | AI163: 0 | AL163: 0 | AN163: 0 | AQ163: 0 | AS163: 0 | AW163: =SUM(AV163:AV163) -> 0
A164: 1920 | B164: Other Cert - Summer | H164: 0 | J164: 0 | M164: 0 | O164: 0 | R164: 0 | T164: 0 | W164: 0 | Y164: 0 | AB164: 0 | AD164: 0 | AG164: 0 | AI164: 0 | AL164: 0 | AN164: 0 | AQ164: 0 | AS164: 0 | AW164: =SUM(AV164:AV164) -> 0
A165: 1921 | B165: Other Cert - Summer School Special Ed | H165: 0 | J165: 0 | M165: 0 | O165: 0 | R165: 0 | T165: 0 | W165: 0 | Y165: 0 | AB165: 0 | AD165: 0 | AG165: 0 | AI165: 0 | AL165: 0 | AN165: 0 | AQ165: 0 | AS165: 0 | AW165: =SUM(AV165:AV165) -> 0
A166: 1930 | B166: Other Cert - Counselor | H166: 0 | J166: 0 | M166: 0 | O166: 0 | R166: 0 | T166: 0 | W166: 0 | Y166: 0 | AB166: 0 | AD166: 0 | AG166: 0 | AI166: 0 | AL166: 0 | AN166: 0 | AQ166: 0 | AS166: 0 | AW166: =SUM(AV166:AV166) -> 0
A167: 1940 | B167: Other Cert - Custom 1 | H167: 0 | J167: 0 | M167: 0 | O167: 0 | R167: 0 | T167: 0 | W167: 0 | Y167: 0 | AB167: 0 | AD167: 0 | AG167: 0 | AI167: 0 | AL167: 0 | AN167: 0 | AQ167: 0 | AS167: 0 | AW167: =SUM(AV167:AV167) -> 0
A168: 1950 | B168: Other Cert - Custom 2 | H168: 0 | J168: 0 | M168: 0 | O168: 0 | R168: 0 | T168: 0 | W168: 0 | Y168: 0 | AB168: 0 | AD168: 0 | AG168: 0 | AI168: 0 | AL168: 0 | AN168: 0 | AQ168: 0 | AS168: 0 | AW168: =SUM(AV168:AV168) -> 0
A169: 1960 | B169: Other Cert - Custom 3 | H169: 0 | J169: 0 | M169: 0 | O169: 0 | R169: 0 | T169: 0 | W169: 0 | Y169: 0 | AB169: 0 | AD169: 0 | AG169: 0 | AI169: 0 | AL169: 0 | AN169: 0 | AQ169: 0 | AS169: 0 | AW169: =SUM(AV169:AV169) -> 0
A170: 1970 | B170: Other Cert - Custom 4 | H170: 0 | J170: 0 | M170: 0 | O170: 0 | R170: 0 | T170: 0 | W170: 0 | Y170: 0 | AB170: 0 | AD170: 0 | AG170: 0 | AI170: 0 | AL170: 0 | AN170: 0 | AQ170: 0 | AS170: 0 | AW170: =SUM(AV170:AV170) -> 0
A171: 1980 | B171: Other Cert - Custom 5 | H171: 0 | J171: 0 | M171: 0 | O171: 0 | R171: 0 | T171: 0 | W171: 0 | Y171: 0 | AB171: 0 | AD171: 0 | AG171: 0 | AI171: 0 | AL171: 0 | AN171: 0 | AQ171: 0 | AS171: 0 | AW171: =SUM(AV171:AV171) -> 0
A173: Certificated Total | G173: =SUM(G125:G172) -> 0 | H173: =SUM(H125:H172) -> 2764193.554 | J173: =SUM(G173:I173) -> 2764193.554 | L173: =SUM(L125:L172) -> 0 | M173: =SUM(M125:M172) -> 35.74462366 | O173: =SUM(L173:N173) -> 35.74462366 | Q173: =SUM(Q125:Q172) -> 0 | R173: =SUM(R125:R172) -> 2956295.65 | T173: =SUM(Q173:S173) -> 2956295.65 | V173: =SUM(V125:V172) -> 0 | W173: =SUM(W125:W172) -> 36.15 | Y173: =SUM(V173:X173) -> 36.15 | AA173: =SUM(AA125:AA172) -> 0 | AB173: =SUM(AB125:AB172) -> 3043853.19 | AD173: =SUM(AA173:AC173) -> 3043853.19 | AF173: =SUM(AF125:AF172) -> 0 | AG173: =SUM(AG125:AG172) -> 36.15 | AI173: =SUM(AF173:AH173) -> 36.15 | AK173: =SUM(AK125:AK172) -> 0 | AL173: =SUM(AL125:AL172) -> 3134037.455 | AN173: =SUM(AK173:AM173) -> 3134037.455 | AP173: =SUM(AP125:AP172) -> 0 | AQ173: =SUM(AQ125:AQ172) -> 36.15 | AS173: =SUM(AP173:AR173) -> 36.15 | AU173: =SUM(AU125:AU172) -> 0 | AW173: =SUM(AV173:AV173) -> 0
A177: Classified Summary
J178: =SUM(G178:I178) -> 0 | O178: =SUM(L178:N178) -> 0 | T178: =SUM(Q178:S178) -> 0 | Y178: =SUM(V178:X178) -> 0 | AD178: =SUM(AA178:AC178) -> 0 | AI178: =SUM(AF178:AH178) -> 0 | AN178: =SUM(AK178:AM178) -> 0 | AS178: =SUM(AP178:AR178) -> 0 | AW178: =SUM(AV178:AV178) -> 0
A179: 2000 | B179: Classified Salaries | J179: =SUM(G179:I179) -> 0 | O179: 0 | T179: 0 | Y179: 0 | AD179: 0 | AI179: 0 | AN179: 0 | AS179: 0 | AW179: =SUM(AV179:AV179) -> 0
A180: 2100 | B180: Classified Instructional Aide Salaries | H180: 531371.07 | J180: 531371.07 | M180: 0.25 | O180: 0.25 | R180: 646371 | T180: 646371 | W180: 0 | Y180: 0 | AB180: 406371 | AD180: 406371 | AG180: 0 | AI180: 0 | AL180: 306371 | AN180: 306371 | AQ180: 0 | AS180: 0 | AW180: =SUM(AV180:AV180) -> 0
A181: 2101 | B181: Classified - Electives | H181: 0 | J181: 0 | M181: 0 | O181: 0 | R181: 0 | T181: 0 | W181: 0 | Y181: 0 | AB181: 0 | AD181: 0 | AG181: 0 | AI181: 0 | AL181: 0 | AN181: 0 | AQ181: 0 | AS181: 0 | AW181: =SUM(AV181:AV181) -> 0
A182: 2102 | B182: Classified - Counselors | H182: 0 | J182: 0 | M182: 0 | O182: 0 | R182: 0 | T182: 0 | W182: 0 | Y182: 0 | AB182: 0 | AD182: 0 | AG182: 0 | AI182: 0 | AL182: 0 | AN182: 0 | AQ182: 0 | AS182: 0 | AW182: =SUM(AV182:AV182) -> 0
A183: 2103 | B183: Classified - Custom 1 | H183: 0 | J183: 0 | M183: 0 | O183: 0 | R183: 0 | T183: 0 | W183: 0 | Y183: 0 | AB183: 0 | AD183: 0 | AG183: 0 | AI183: 0 | AL183: 0 | AN183: 0 | AQ183: 0 | AS183: 0 | AW183: =SUM(AV183:AV183) -> 0
A184: 2104 | B184: Classified - Custom 2 | H184: 0 | J184: 0 | M184: 0 | O184: 0 | R184: 0 | T184: 0 | W184: 0 | Y184: 0 | AB184: 0 | AD184: 0 | AG184: 0 | AI184: 0 | AL184: 0 | AN184: 0 | AQ184: 0 | AS184: 0 | AW184: =SUM(AV184:AV184) -> 0
A185: 2105 | B185: Classified - Custom 3 | H185: 0 | J185: 0 | M185: 0 | O185: 0 | R185: 0 | T185: 0 | W185: 0 | Y185: 0 | AB185: 0 | AD185: 0 | AG185: 0 | AI185: 0 | AL185: 0 | AN185: 0 | AQ185: 0 | AS185: 0 | AW185: =SUM(AV185:AV185) -> 0
A186: 2106 | B186: Classified - Custom 4 | H186: 0 | J186: 0 | M186: 0 | O186: 0 | R186: 0 | T186: 0 | W186: 0 | Y186: 0 | AB186: 0 | AD186: 0 | AG186: 0 | AI186: 0 | AL186: 0 | AN186: 0 | AQ186: 0 | AS186: 0 | AW186: =SUM(AV186:AV186) -> 0
A187: 2107 | B187: Classified - Custom 5 | H187: 0 | J187: 0 | M187: 0 | O187: 0 | R187: 0 | T187: 0 | W187: 0 | Y187: 0 | AB187: 0 | AD187: 0 | AG187: 0 | AI187: 0 | AL187: 0 | AN187: 0 | AQ187: 0 | AS187: 0 | AW187: =SUM(AV187:AV187) -> 0
A188: 2108 | B188: Classified - Custom 6 (CAHSEE | H188: 0 | J188: 0 | M188: 0 | O188: 0 | R188: 0 | T188: 0 | W188: 0 | Y188: 0 | AB188: 0 | AD188: 0 | AG188: 0 | AI188: 0 | AL188: 0 | AN188: 0 | AQ188: 0 | AS188: 0 | AW188: =SUM(AV188:AV188) -> 0
A189: 2109 | B189: Classified - Custom 7 | H189: 0 | J189: 0 | M189: 0 | O189: 0 | R189: 0 | T189: 0 | W189: 0 | Y189: 0 | AB189: 0 | AD189: 0 | AG189: 0 | AI189: 0 | AL189: 0 | AN189: 0 | AQ189: 0 | AS189: 0 | AW189: =SUM(AV189:AV189) -> 0
A190: 2200 | B190: Classified Support Salaries | H190: 361709.6947 | J190: 361709.6947 | M190: 5.452062561 | O190: 5.452062561 | R190: 493663 | T190: 493663 | W190: 7 | Y190: 7 | AB190: 508314.64 | AD190: 508314.64 | AG190: 7 | AI190: 7 | AL190: 523405.8292 | AN190: 523405.8292 | AQ190: 7 | AS190: 7 | AW190: =SUM(AV190:AV190) -> 0
A191: 2201 | B191: Classified Support Salaries - Custom 1 | H191: 0 | J191: 0 | M191: 0 | O191: 0 | R191: 0 | T191: 0 | W191: 0 | Y191: 0 | AB191: 0 | AD191: 0 | AG191: 0 | AI191: 0 | AL191: 0 | AN191: 0 | AQ191: 0 | AS191: 0 | AW191: =SUM(AV191:AV191) -> 0
A192: 2202 | B192: Classified Support Salaries - Custom 2 | H192: 0 | J192: 0 | M192: 0 | O192: 0 | R192: 0 | T192: 0 | W192: 0 | Y192: 0 | AB192: 0 | AD192: 0 | AG192: 0 | AI192: 0 | AL192: 0 | AN192: 0 | AQ192: 0 | AS192: 0 | AW192: =SUM(AV192:AV192) -> 0
A193: 2203 | B193: Classified Support Salaries - Custom 3 | H193: 0 | J193: 0 | M193: 0 | O193: 0 | R193: 0 | T193: 0 | W193: 0 | Y193: 0 | AB193: 0 | AD193: 0 | AG193: 0 | AI193: 0 | AL193: 0 | AN193: 0 | AQ193: 0 | AS193: 0 | AW193: =SUM(AV193:AV193) -> 0
A194: 2204 | B194: Classified Support Salaries - Custom 4 | H194: 0 | J194: 0 | M194: 0 | O194: 0 | R194: 0 | T194: 0 | W194: 0 | Y194: 0 | AB194: 0 | AD194: 0 | AG194: 0 | AI194: 0 | AL194: 0 | AN194: 0 | AQ194: 0 | AS194: 0 | AW194: =SUM(AV194:AV194) -> 0
A195: 2205 | B195: Classified Support Salaries - Custom 5 | H195: 0 | J195: 0 | M195: 0 | O195: 0 | R195: 0 | T195: 0 | W195: 0 | Y195: 0 | AB195: 0 | AD195: 0 | AG195: 0 | AI195: 0 | AL195: 0 | AN195: 0 | AQ195: 0 | AS195: 0 | AW195: =SUM(AV195:AV195) -> 0
A196: 2206 | B196: Classified Support Salaries - Custom 6 | H196: 0 | J196: 0 | M196: 0 | O196: 0 | R196: 0 | T196: 0 | W196: 0 | Y196: 0 | AB196: 0 | AD196: 0 | AG196: 0 | AI196: 0 | AL196: 0 | AN196: 0 | AQ196: 0 | AS196: 0 | AW196: =SUM(AV196:AV196) -> 0
A197: 2207 | B197: Classified Support Salaries - Custom 7 | H197: 0 | J197: 0 | M197: 0 | O197: 0 | R197: 0 | T197: 0 | W197: 0 | Y197: 0 | AB197: 0 | AD197: 0 | AG197: 0 | AI197: 0 | AL197: 0 | AN197: 0 | AQ197: 0 | AS197: 0 | AW197: =SUM(AV197:AV197) -> 0
A198: 2300 | B198: Classified Supervisor & Administrator Salaries | H198: 106946.6728 | J198: 106946.6728 | M198: 1.186111111 | O198: 1.186111111 | R198: 1120 | T198: 1120 | W198: 0 | Y198: 0 | AB198: 1120 | AD198: 1120 | AG198: 0 | AI198: 0 | AL198: 1120 | AN198: 1120 | AQ198: 0 | AS198: 0 | AW198: =SUM(AV198:AV198) -> 0
A199: 2311 | B199: Classified Admin - Custom 1 | H199: 0 | J199: 0 | M199: 0 | O199: 0 | R199: 0 | T199: 0 | W199: 0 | Y199: 0 | AB199: 0 | AD199: 0 | AG199: 0 | AI199: 0 | AL199: 0 | AN199: 0 | AQ199: 0 | AS199: 0 | AW199: =SUM(AV199:AV199) -> 0
A200: 2322 | B200: Classified Admin - Custom 2 | H200: 0 | J200: 0 | M200: 0 | O200: 0 | R200: 0 | T200: 0 | W200: 0 | Y200: 0 | AB200: 0 | AD200: 0 | AG200: 0 | AI200: 0 | AL200: 0 | AN200: 0 | AQ200: 0 | AS200: 0 | AW200: =SUM(AV200:AV200) -> 0
A201: 2330 | B201: Classified Admin - Custom 3 | H201: 0 | J201: 0 | M201: 0 | O201: 0 | R201: 0 | T201: 0 | W201: 0 | Y201: 0 | AB201: 0 | AD201: 0 | AG201: 0 | AI201: 0 | AL201: 0 | AN201: 0 | AQ201: 0 | AS201: 0 | AW201: =SUM(AV201:AV201) -> 0
A202: 2340 | B202: Classified Admin - Custom 4 | H202: 0 | J202: 0 | M202: 0 | O202: 0 | R202: 0 | T202: 0 | W202: 0 | Y202: 0 | AB202: 0 | AD202: 0 | AG202: 0 | AI202: 0 | AL202: 0 | AN202: 0 | AQ202: 0 | AS202: 0 | AW202: =SUM(AV202:AV202) -> 0
A203: 2350 | B203: Classified Admin - Custom 5 | H203: 0 | J203: 0 | M203: 0 | O203: 0 | R203: 0 | T203: 0 | W203: 0 | Y203: 0 | AB203: 0 | AD203: 0 | AG203: 0 | AI203: 0 | AL203: 0 | AN203: 0 | AQ203: 0 | AS203: 0 | AW203: =SUM(AV203:AV203) -> 0
A204: 2400 | B204: Classified Clerical & Office Salaries | H204: 263390.4367 | J204: 263390.4367 | M204: 4.583333333 | O204: 4.583333333 | R204: 449281 | T204: 449281 | W204: 7 | Y204: 7 | AB204: 462687.46 | AD204: 462687.46 | AG204: 7 | AI204: 7 | AL204: 476496.1138 | AN204: 476496.1138 | AQ204: 7 | AS204: 7 | AW204: =SUM(AV204:AV204) -> 0
A205: 2401 | B205: Classified Clerical & Office Salaries - Custom 1 | H205: 0 | J205: 0 | M205: 0 | O205: 0 | R205: 0 | T205: 0 | W205: 0 | Y205: 0 | AB205: 0 | AD205: 0 | AG205: 0 | AI205: 0 | AL205: 0 | AN205: 0 | AQ205: 0 | AS205: 0 | AW205: =SUM(AV205:AV205) -> 0
A206: 2402 | B206: Classified Clerical & Office Salaries - Custom 2 | H206: 0 | J206: 0 | M206: 0 | O206: 0 | R206: 0 | T206: 0 | W206: 0 | Y206: 0 | AB206: 0 | AD206: 0 | AG206: 0 | AI206: 0 | AL206: 0 | AN206: 0 | AQ206: 0 | AS206: 0 | AW206: =SUM(AV206:AV206) -> 0
A207: 2403 | B207: Classified Clerical & Office Salaries - Custom 3 | H207: 0 | J207: 0 | M207: 0 | O207: 0 | R207: 0 | T207: 0 | W207: 0 | Y207: 0 | AB207: 0 | AD207: 0 | AG207: 0 | AI207: 0 | AL207: 0 | AN207: 0 | AQ207: 0 | AS207: 0 | AW207: =SUM(AV207:AV207) -> 0
A208: 2404 | B208: Classified Clerical & Office Salaries - Custom 4 | H208: 0 | J208: 0 | M208: 0 | O208: 0 | R208: 0 | T208: 0 | W208: 0 | Y208: 0 | AB208: 0 | AD208: 0 | AG208: 0 | AI208: 0 | AL208: 0 | AN208: 0 | AQ208: 0 | AS208: 0 | AW208: =SUM(AV208:AV208) -> 0
A209: 2405 | B209: Classified Clerical & Office Salaries - Custom 5 | H209: 0 | J209: 0 | M209: 0 | O209: 0 | R209: 0 | T209: 0 | W209: 0 | Y209: 0 | AB209: 0 | AD209: 0 | AG209: 0 | AI209: 0 | AL209: 0 | AN209: 0 | AQ209: 0 | AS209: 0 | AW209: =SUM(AV209:AV209) -> 0
A210: 2600 | B210: Classified Bonuses & Extra Pay | H210: 0 | J210: 0 | M210: 0 | O210: =SUM(L210:N210) -> 0 | R210: 0 | T210: =SUM(Q210:S210) -> 0 | W210: 0 | Y210: =SUM(V210:X210) -> 0 | AB210: 0 | AD210: =SUM(AA210:AC210) -> 0 | AG210: 0 | AI210: =SUM(AF210:AH210) -> 0 | AL210: 0 | AN210: =SUM(AK210:AM210) -> 0 | AQ210: 0 | AS210: =SUM(AP210:AR210) -> 0 | AW210: =SUM(AV210:AV210) -> 0
A211: 2601 | B211: Classified bonuses - Custom 1 | H211: 0 | J211: 0 | M211: 0 | O211: 0 | R211: 0 | T211: 0 | W211: 0 | Y211: 0 | AB211: 0 | AD211: 0 | AG211: 0 | AI211: 0 | AL211: 0 | AN211: 0 | AQ211: 0 | AS211: 0 | AW211: =SUM(AV211:AV211) -> 0
... 29 more rows

Sheet vena.tmp.7EC47338204F4F1F (hidden)
